Workbook

Sheet Report_1
A1: * DIVA * Dialoggesteuertes Verkehrsmanagement- und Auskunftsystem * DIVA *
A2: 15.12.2024 - 13.12.2025
A5: Fahrplanprojekt: | F5: 2025-02-14T15:09:47
A6: Angebotsplanung 2025
A8: Linien:
A9: MO2
A11: Unternehmer:
A12: HEAG Verkehrs-GmbH
A14: Regelfahrplan | C14: Samstag | D14: Sonn. u. Feiertag | E14: Montag-Freitag | F14: Summe
B16: Solo-Überlandbus-NF
B17: Nutz-km | C17: 29497.824 | D17: 28731.332 | E17: 295093.266 | F17: 353322.422
B18: Sitzplatz-km | C18: 0 | D18: 0 | E18: 0 | F18: 0
B19: Stehplatz-km | C19: 0 | D19: 0 | E19: 0 | F19: 0
B21: Summe
B22: Nutz-km | C22: 29497.824 | D22: 28731.332 | E22: 295093.266 | F22: 353322.422
B23: Sitzplatz-km | C23: 0 | D23: 0 | E23: 0 | F23: 0
B24: Stehplatz-km | C24: 0 | D24: 0 | E24: 0 | F24: 0

Sheet Pivot
A1: LIN | B1: (Alle)
E3: WT
A4: FP | B4: TG | C4: Daten | D4: LANDKREIS | E4: Sa | F4: So | G4: Mo-Fr | H4: Gesamtergebnis
A5: REG | B5: Solo-Überlandbus-NF | C5: Summe von NUTZ_KM | D5: Fischbachtal | E5: 7901.766 | F5: 7733.78 | G5: 69046.722 | H5: 84682.268
D6: Groß-Bieberau | E6: 4964.112 | F6: 4419.07 | G6: 40380.904 | H6: 49764.086
D7: Lautertal (Odenwald) | E7: 4551.876 | F7: 4479.624 | G7: 52355.34 | H7: 61386.84
D8: Modautal | E8: 9404.37 | F8: 9715.276 | G8: 112865.628 | H8: 131985.274
D9: Reinheim | E9: 2675.7 | F9: 2383.582 | G9: 20444.672 | H9: 25503.954
C10: Summe von SITZ_KM | D10: Fischbachtal | E10: 0 | F10: 0 | G10: 0 | H10: 0
D11: Groß-Bieberau | E11: 0 | F11: 0 | G11: 0 | H11: 0
D12: Lautertal (Odenwald) | E12: 0 | F12: 0 | G12: 0 | H12: 0
D13: Modautal | E13: 0 | F13: 0 | G13: 0 | H13: 0
D14: Reinheim | E14: 0 | F14: 0 | G14: 0 | H14: 0
C15: Summe von STEH_KM | D15: Fischbachtal | E15: 0 | F15: 0 | G15: 0 | H15: 0
D16: Groß-Bieberau | E16: 0 | F16: 0 | G16: 0 | H16: 0
D17: Lautertal (Odenwald) | E17: 0 | F17: 0 | G17: 0 | H17: 0
D18: Modautal | E18: 0 | F18: 0 | G18: 0 | H18: 0
D19: Reinheim | E19: 0 | F19: 0 | G19: 0 | H19: 0
B20: Solo-Überlandbus-NF Summe von NUTZ_KM | E20: 29497.824 | F20: 28731.332 | G20: 295093.266 | H20: 353322.422
B21: Solo-Überlandbus-NF Summe von SITZ_KM | E21: 0 | F21: 0 | G21: 0 | H21: 0
B22: Solo-Überlandbus-NF Summe von STEH_KM | E22: 0 | F22: 0 | G22: 0 | H22: 0
A23: REG Summe von NUTZ_KM | E23: 29497.824 | F23: 28731.332 | G23: 295093.266 | H23: 353322.422
A24: REG Summe von SITZ_KM | E24: 0 | F24: 0 | G24: 0 | H24: 0
A25: REG Summe von STEH_KM | E25: 0 | F25: 0 | G25: 0 | H25: 0
A26: Gesamt: Summe von NUTZ_KM | E26: 29497.824 | F26: 28731.332 | G26: 295093.266 | H26: 353322.422
A27: Gesamt: Summe von SITZ_KM | E27: 0 | F27: 0 | G27: 0 | H27: 0
A28: Gesamt: Summe von STEH_KM | E28: 0 | F28: 0 | G28: 0 | H28: 0

Sheet Grunddaten
A1: FP | B1: BZWG | C1: UNTERNEHMER | D1: KOSTENTRAEGER | E1: LIN | F1: KURS | G1: RICHTUNG | H1: WT | I1: FSCHL | J1: ARTF | K1: LANDKREIS | L1: TG | M1: WAGEN_KM | N1: KOSTEN_KM | O1: KOSTEN_STD | P1: SITZ_KM | Q1: STEH_KM | R1: AB | S1: AN | T1: FAHRZEIT | U1: Ermittlung Fahrplanstunden | V1: VB | W1: VT | X1: STRECKE_M | Y1: NUTZ_KM | Z1: LEER_KM | AA1: DIENST_NR | AB1: VERKEHRSTAGE | AC1: BUCH_UEBERSCHRIFT_NUMMER | AD1: BUCH_UEBERSCHRIFT_TEXT_1
A2: REG | B2: 18 | C2: HEAG Verkehrs-GmbH | E2: 057_ | F2: 0 | G2: H | H2: Mo-Fr | I2: 512 | K2: Reinheim | L2: Solo-Überlandbus-NF | M2: 0 | N2: 0 | O2: 0 | P2: 0 | Q2: 0 | R2: 2000-01-01T05:12:00 | S2: 2000-01-01T05:17:00 | T2: 0.8611111103 | U2: =T2*24 -> 20.66666665 | W2: 248 | X2: 2066 | Y2: 512.368 | Z2: 0 | AA2: 0 | AB2: OlllllOOlOOOlOOlOOllOOlllllOOlllllOOlllllOOlllllOOlllllOOlllllOOlllllOOlllllOOlllllOOlllllOOlllllOOlllllOOlllllOOlllllOOllllOOOOllllOOlllOlOOlllllOOlllllOOlllllOOlllOlOOlllllOOOllllOOlllOlOOlllllOOlllllOOlllllOOlllllOOlllllOOlllllOOlllllOOlllllOOlllllOOlllllOOlllllOOlllllOOlllllOOlllllOOllllOOOlllllOOlllllOOlllllOOlllllOOlllllOOlllllOOlllllOOlllllOOlllllOOlllllO | AC2: MO2 | AD2: Reinheim Bf # Niedernhausen # Brandau #
A3: REG | B3: 18 | C3: HEAG Verkehrs-GmbH | E3: 057_ | F3: 0 | G3: H | H3: Mo-Fr | I3: 512 | K3: Groß-Bieberau | L3: Solo-Überlandbus-NF | M3: 0 | N3: 0 | O3: 0 | P3: 0 | Q3: 0 | R3: 2000-01-01T05:17:00 | S3: 2000-01-01T05:25:30 | T3: 1.46388889 | U3: =T3*24 -> 35.13333336 | W3: 248 | X3: 3620 | Y3: 897.76 | Z3: 0 | AA3: 0 | AB3: OlllllOOlOOOlOOlOOllOOlllllOOlllllOOlllllOOlllllOOlllllOOlllllOOlllllOOlllllOOlllllOOlllllOOlllllOOlllllOOlllllOOlllllOOllllOOOOllllOOlllOlOOlllllOOlllllOOlllllOOlllOlOOlllllOOOllllOOlllOlOOlllllOOlllllOOlllllOOlllllOOlllllOOlllllOOlllllOOlllllOOlllllOOlllllOOlllllOOlllllOOlllllOOlllllOOllllOOOlllllOOlllllOOlllllOOlllllOOlllllOOlllllOOlllllOOlllllOOlllllOOlllllO | AC3: MO2 | AD3: Reinheim Bf # Niedernhausen # Brandau #
A4: REG | B4: 18 | C4: HEAG Verkehrs-GmbH | E4: 057_ | F4: 0 | G4: H | H4: Mo-Fr | I4: 512 | K4: Fischbachtal | L4: Solo-Überlandbus-NF | M4: 0 | N4: 0 | O4: 0 | P4: 0 | Q4: 0 | R4: 2000-01-01T05:25:30 | S4: 2000-01-01T05:33:54 | T4: 1.446666666 | U4: 34.71999997 | W4: 248 | X4: 6649 | Y4: 1648.952 | Z4: 0 | AA4: 0 | AB4: OlllllOOlOOOlOOlOOllOOlllllOOlllllOOlllllOOlllllOOlllllOOlllllOOlllllOOlllllOOlllllOOlllllOOlllllOOlllllOOlllllOOlllllOOllllOOOOllllOOlllOlOOlllllOOlllllOOlllllOOlllOlOOlllllOOOllllOOlllOlOOlllllOOlllllOOlllllOOlllllOOlllllOOlllllOOlllllOOlllllOOlllllOOlllllOOlllllOOlllllOOlllllOOlllllOOllllOOOlllllOOlllllOOlllllOOlllllOOlllllOOlllllOOlllllOOlllllOOlllllOOlllllO | AC4: MO2 | AD4: Reinheim Bf # Niedernhausen # Brandau #
A5: REG | B5: 18 | C5: HEAG Verkehrs-GmbH | E5: 057_ | F5: 0 | G5: H | H5: Mo-Fr | I5: 512 | K5: Modautal | L5: Solo-Überlandbus-NF | M5: 0 | N5: 0 | O5: 0 | P5: 0 | Q5: 0 | R5: 2000-01-01T05:33:54 | S5: 2000-01-01T05:47:00 | T5: 2.256111112 | U5: 54.14666668 | W5: 248 | X5: 8797 | Y5: 2181.656 | Z5: 0 | AA5: 0 | AB5: OlllllOOlOOOlOOlOOllOOlllllOOlllllOOlllllOOlllllOOlllllOOlllllOOlllllOOlllllOOlllllOOlllllOOlllllOOlllllOOlllllOOlllllOOllllOOOOllllOOlllOlOOlllllOOlllllOOlllllOOlllOlOOlllllOOOllllOOlllOlOOlllllOOlllllOOlllllOOlllllOOlllllOOlllllOOlllllOOlllllOOlllllOOlllllOOlllllOOlllllOOlllllOOlllllOOllllOOOlllllOOlllllOOlllllOOlllllOOlllllOOlllllOOlllllOOlllllOOlllllOOlllllO | AC5: MO2 | AD5: Reinheim Bf # Niedernhausen # Brandau #
A6: REG | B6: 18 | C6: HEAG Verkehrs-GmbH | E6: 057_ | F6: 0 | G6: H | H6: Mo-Fr | I6: 512 | K6: Lautertal (Odenwald) | L6: Solo-Überlandbus-NF | M6: 0 | N6: 0 | O6: 0 | P6: 0 | Q6: 0 | R6: 2000-01-01T05:47:00 | S6: 2000-01-01T05:58:00 | T6: 1.894444445 | U6: 45.46666668 | W6: 248 | X6: 5965 | Y6: 1479.32 | Z6: 0 | AA6: 0 | AB6: OlllllOOlOOOlOOlOOllOOlllllOOlllllOOlllllOOlllllOOlllllOOlllllOOlllllOOlllllOOlllllOOlllllOOlllllOOlllllOOlllllOOlllllOOllllOOOOllllOOlllOlOOlllllOOlllllOOlllllOOlllOlOOlllllOOOllllOOlllOlOOlllllOOlllllOOlllllOOlllllOOlllllOOlllllOOlllllOOlllllOOlllllOOlllllOOlllllOOlllllOOlllllOOlllllOOllllOOOlllllOOlllllOOlllllOOlllllOOlllllOOlllllOOlllllOOlllllOOlllllOOlllllO | AC6: MO2 | AD6: Reinheim Bf # Niedernhausen # Brandau #
A7: REG | B7: 18 | C7: HEAG Verkehrs-GmbH | E7: 057_ | F7: 0 | G7: H | H7: Mo-Fr | I7: 612 | K7: Reinheim | L7: Solo-Überlandbus-NF | M7: 0 | N7: 0 | O7: 0 | P7: 0 | Q7: 0 | R7: 2000-01-01T06:12:00 | S7: 2000-01-01T06:17:00 | T7: 0.8611111121 | U7: 20.66666669 | W7: 248 | X7: 2066 | Y7: 512.368 | Z7: 0 | AA7: 0 | AB7: OlllllOOlOOOlOOlOOllOOlllllOOlllllOOlllllOOlllllOOlllllOOlllllOOlllllOOlllllOOlllllOOlllllOOlllllOOlllllOOlllllOOlllllOOllllOOOOllllOOlllOlOOlllllOOlllllOOlllllOOlllOlOOlllllOOOllllOOlllOlOOlllllOOlllllOOlllllOOlllllOOlllllOOlllllOOlllllOOlllllOOlllllOOlllllOOlllllOOlllllOOlllllOOlllllOOllllOOOlllllOOlllllOOlllllOOlllllOOlllllOOlllllOOlllllOOlllllOOlllllOOlllllO | AC7: MO2 | AD7: Reinheim Bf # Niedernhausen # Brandau #
A8: REG | B8: 18 | C8: HEAG Verkehrs-GmbH | E8: 057_ | F8: 0 | G8: H | H8: Mo-Fr | I8: 612 | K8: Groß-Bieberau | L8: Solo-Überlandbus-NF | M8: 0 | N8: 0 | O8: 0 | P8: 0 | Q8: 0 | R8: 2000-01-01T06:17:00 | S8: 2000-01-01T06:25:30 | T8: 1.463888888 | U8: 35.13333332 | W8: 248 | X8: 3620 | Y8: 897.76 | Z8: 0 | AA8: 0 | AB8: OlllllOOlOOOlOOlOOllOOlllllOOlllllOOlllllOOlllllOOlllllOOlllllOOlllllOOlllllOOlllllOOlllllOOlllllOOlllllOOlllllOOlllllOOllllOOOOllllOOlllOlOOlllllOOlllllOOlllllOOlllOlOOlllllOOOllllOOlllOlOOlllllOOlllllOOlllllOOlllllOOlllllOOlllllOOlllllOOlllllOOlllllOOlllllOOlllllOOlllllOOlllllOOlllllOOllllOOOlllllOOlllllOOlllllOOlllllOOlllllOOlllllOOlllllOOlllllOOlllllOOlllllO | AC8: MO2 | AD8: Reinheim Bf # Niedernhausen # Brandau #
A9: REG | B9: 18 | C9: HEAG Verkehrs-GmbH | E9: 057_ | F9: 0 | G9: H | H9: Mo-Fr | I9: 612 | K9: Fischbachtal | L9: Solo-Überlandbus-NF | M9: 0 | N9: 0 | O9: 0 | P9: 0 | Q9: 0 | R9: 2000-01-01T06:25:30 | S9: 2000-01-01T06:33:54 | T9: 1.446666667 | U9: 34.72000002 | W9: 248 | X9: 6649 | Y9: 1648.952 | Z9: 0 | AA9: 0 | AB9: OlllllOOlOOOlOOlOOllOOlllllOOlllllOOlllllOOlllllOOlllllOOlllllOOlllllOOlllllOOlllllOOlllllOOlllllOOlllllOOlllllOOlllllOOllllOOOOllllOOlllOlOOlllllOOlllllOOlllllOOlllOlOOlllllOOOllllOOlllOlOOlllllOOlllllOOlllllOOlllllOOlllllOOlllllOOlllllOOlllllOOlllllOOlllllOOlllllOOlllllOOlllllOOlllllOOllllOOOlllllOOlllllOOlllllOOlllllOOlllllOOlllllOOlllllOOlllllOOlllllOOlllllO | AC9: MO2 | AD9: Reinheim Bf # Niedernhausen # Brandau #
A10: REG | B10: 18 | C10: HEAG Verkehrs-GmbH | E10: 057_ | F10: 0 | G10: H | H10: Mo-Fr | I10: 612 | K10: Modautal | L10: Solo-Überlandbus-NF | M10: 0 | N10: 0 | O10: 0 | P10: 0 | Q10: 0 | R10: 2000-01-01T06:33:54 | S10: 2000-01-01T06:47:00 | T10: 2.25611111 | U10: 54.14666664 | W10: 248 | X10: 8797 | Y10: 2181.656 | Z10: 0 | AA10: 0 | AB10: OlllllOOlOOOlOOlOOllOOlllllOOlllllOOlllllOOlllllOOlllllOOlllllOOlllllOOlllllOOlllllOOlllllOOlllllOOlllllOOlllllOOlllllOOllllOOOOllllOOlllOlOOlllllOOlllllOOlllllOOlllOlOOlllllOOOllllOOlllOlOOlllllOOlllllOOlllllOOlllllOOlllllOOlllllOOlllllOOlllllOOlllllOOlllllOOlllllOOlllllOOlllllOOlllllOOllllOOOlllllOOlllllOOlllllOOlllllOOlllllOOlllllOOlllllOOlllllOOlllllOOlllllO | AC10: MO2 | AD10: Reinheim Bf # Niedernhausen # Brandau #
A11: REG | B11: 18 | C11: HEAG Verkehrs-GmbH | E11: 057_ | F11: 0 | G11: H | H11: Mo-Fr | I11: 612 | K11: Lautertal (Odenwald) | L11: Solo-Überlandbus-NF | M11: 0 | N11: 0 | O11: 0 | P11: 0 | Q11: 0 | R11: 2000-01-01T06:47:00 | S11: 2000-01-01T06:58:00 | T11: 1.894444445 | U11: 45.46666668 | W11: 248 | X11: 5965 | Y11: 1479.32 | Z11: 0 | AA11: 0 | AB11: OlllllOOlOOOlOOlOOllOOlllllOOlllllOOlllllOOlllllOOlllllOOlllllOOlllllOOlllllOOlllllOOlllllOOlllllOOlllllOOlllllOOlllllOOllllOOOOllllOOlllOlOOlllllOOlllllOOlllllOOlllOlOOlllllOOOllllOOlllOlOOlllllOOlllllOOlllllOOlllllOOlllllOOlllllOOlllllOOlllllOOlllllOOlllllOOlllllOOlllllOOlllllOOlllllOOllllOOOlllllOOlllllOOlllllOOlllllOOlllllOOlllllOOlllllOOlllllOOlllllOOlllllO | AC11: MO2 | AD11: Reinheim Bf # Niedernhausen # Brandau #
A12: REG | B12: 18 | C12: HEAG Verkehrs-GmbH | E12: 057_ | F12: 0 | G12: H | H12: Mo-Fr | I12: 703 | K12: Modautal | L12: Solo-Überlandbus-NF | M12: 0 | N12: 0 | O12: 0 | P12: 0 | Q12: 0 | R12: 2000-01-01T07:03:00 | S12: 2000-01-01T07:05:00 | T12: 0.2694444453 | U12: 6.466666688 | V12: 09 - nur an Schultagen | W12: 194 | X12: 1469 | Y12: 284.986 | Z12: 0 | AA12: 0 | AB12: OlllllOOOOOOOOOOOOOOOOlllllOOlllllOOlllllOOlllllOOlllllOOlllllOOlllllOOlllllOOlllllOOlllllOOlllllOOlllllOOlllllOOOOOOOOOOOOOOOOOllllOOlllOlOOlllllOOlllllOOlllllOOlllOlOOlllllOOOllllOOlllOlOOlllllOOlllllOOOOOOOOOOOOOOOOOOOOOOOOOOOOOOOOOOOOOOOOOOOOlllllOOlllllOOlllllOOlllllOOlllllOOlllllOOllllOOOOOOOOOOOOOOOOOlllllOOlllllOOlllllOOlllllOOlllllOOlllllOOlllllOOlllllO | AC12: MO2 | AD12: Reinheim Bf # Niedernhausen # Brandau #
A13: REG | B13: 18 | C13: HEAG Verkehrs-GmbH | E13: 057_ | F13: 0 | G13: H | H13: Mo-Fr | I13: 712 | K13: Reinheim | L13: Solo-Überlandbus-NF | M13: 0 | N13: 0 | O13: 0 | P13: 0 | Q13: 0 | R13: 2000-01-01T07:12:00 | S13: 2000-01-01T07:17:00 | T13: 0.1874999998 | U13: 4.499999996 | V13: 10 - nicht an Schultagen | W13: 54 | X13: 2066 | Y13: 111.564 | Z13: 0 | AA13: 0 | AB13: OOOOOOOOlOOOlOOlOOllOOOOOOOOOOOOOOOOOOOOOOOOOOOOOOOOOOOOOOOOOOOOOOOOOOOOOOOOOOOOOOOOOOOOOOOOOOOOOOOOOOOOOOOOOOOOOlllllOOllllOOOOOOOOOOOOOOOOOOOOOOOOOOOOOOOOOOOOOOOOOOOOOOOOOOOOOOOOOOOOOOOOOOOOOOOOOOOOOOOOlllllOOlllllOOlllllOOlllllOOlllllOOlllllOOOOOOOOOOOOOOOOOOOOOOOOOOOOOOOOOOOOOOOOOOOOOOOOOOOlllllOOlllllOOOOOOOOOOOOOOOOOOOOOOOOOOOOOOOOOOOOOOOOOOOOOOOOOOOOOOOOO | AC13: MO2 | AD13: Reinheim Bf # Niedernhausen # Brandau #
A14: REG | B14: 18 | C14: HEAG Verkehrs-GmbH | E14: 057_ | F14: 0 | G14: H | H14: Mo-Fr | I14: 712 | K14: Groß-Bieberau | L14: Solo-Überlandbus-NF | M14: 0 | N14: 0 | O14: 0 | P14: 0 | Q14: 0 | R14: 2000-01-01T07:17:00 | S14: 2000-01-01T07:25:30 | T14: 0.3187499999 | U14: 7.649999997 | V14: 10 - nicht an Schultagen | W14: 54 | X14: 3620 | Y14: 195.48 | Z14: 0 | AA14: 0 | AB14: OOOOOOOOlOOOlOOlOOllOOOOOOOOOOOOOOOOOOOOOOOOOOOOOOOOOOOOOOOOOOOOOOOOOOOOOOOOOOOOOOOOOOOOOOOOOOOOOOOOOOOOOOOOOOOOOlllllOOllllOOOOOOOOOOOOOOOOOOOOOOOOOOOOOOOOOOOOOOOOOOOOOOOOOOOOOOOOOOOOOOOOOOOOOOOOOOOOOOOOlllllOOlllllOOlllllOOlllllOOlllllOOlllllOOOOOOOOOOOOOOOOOOOOOOOOOOOOOOOOOOOOOOOOOOOOOOOOOOOlllllOOlllllOOOOOOOOOOOOOOOOOOOOOOOOOOOOOOOOOOOOOOOOOOOOOOOOOOOOOOOOO | AC14: MO2 | AD14: Reinheim Bf # Niedernhausen # Brandau #
A15: REG | B15: 18 | C15: HEAG Verkehrs-GmbH | E15: 057_ | F15: 0 | G15: H | H15: Mo-Fr | I15: 712 | K15: Fischbachtal | L15: Solo-Überlandbus-NF | M15: 0 | N15: 0 | O15: 0 | P15: 0 | Q15: 0 | R15: 2000-01-01T07:25:30 | S15: 2000-01-01T07:33:54 | T15: 0.3150000002 | U15: 7.560000004 | V15: 10 - nicht an Schultagen | W15: 54 | X15: 6649 | Y15: 359.046 | Z15: 0 | AA15: 0 | AB15: OOOOOOOOlOOOlOOlOOllOOOOOOOOOOOOOOOOOOOOOOOOOOOOOOOOOOOOOOOOOOOOOOOOOOOOOOOOOOOOOOOOOOOOOOOOOOOOOOOOOOOOOOOOOOOOOlllllOOllllOOOOOOOOOOOOOOOOOOOOOOOOOOOOOOOOOOOOOOOOOOOOOOOOOOOOOOOOOOOOOOOOOOOOOOOOOOOOOOOOlllllOOlllllOOlllllOOlllllOOlllllOOlllllOOOOOOOOOOOOOOOOOOOOOOOOOOOOOOOOOOOOOOOOOOOOOOOOOOOlllllOOlllllOOOOOOOOOOOOOOOOOOOOOOOOOOOOOOOOOOOOOOOOOOOOOOOOOOOOOOOOO | AC15: MO2 | AD15: Reinheim Bf # Niedernhausen # Brandau #
A16: REG | B16: 18 | C16: HEAG Verkehrs-GmbH | E16: 057_ | F16: 0 | G16: H | H16: Mo-Fr | I16: 712 | K16: Modautal | L16: Solo-Überlandbus-NF | M16: 0 | N16: 0 | O16: 0 | P16: 0 | Q16: 0 | R16: 2000-01-01T07:33:54 | S16: 2000-01-01T07:47:00 | T16: 0.4912500001 | U16: 11.79 | V16: 10 - nicht an Schultagen | W16: 54 | X16: 8797 | Y16: 475.038 | Z16: 0 | AA16: 0 | AB16: OOOOOOOOlOOOlOOlOOllOOOOOOOOOOOOOOOOOOOOOOOOOOOOOOOOOOOOOOOOOOOOOOOOOOOOOOOOOOOOOOOOOOOOOOOOOOOOOOOOOOOOOOOOOOOOOlllllOOllllOOOOOOOOOOOOOOOOOOOOOOOOOOOOOOOOOOOOOOOOOOOOOOOOOOOOOOOOOOOOOOOOOOOOOOOOOOOOOOOOlllllOOlllllOOlllllOOlllllOOlllllOOlllllOOOOOOOOOOOOOOOOOOOOOOOOOOOOOOOOOOOOOOOOOOOOOOOOOOOlllllOOlllllOOOOOOOOOOOOOOOOOOOOOOOOOOOOOOOOOOOOOOOOOOOOOOOOOOOOOOOOO | AC16: MO2 | AD16: Reinheim Bf # Niedernhausen # Brandau #
A17: REG | B17: 18 | C17: HEAG Verkehrs-GmbH | E17: 057_ | F17: 0 | G17: H | H17: Mo-Fr | I17: 712 | K17: Lautertal (Odenwald) | L17: Solo-Überlandbus-NF | M17: 0 | N17: 0 | O17: 0 | P17: 0 | Q17: 0 | R17: 2000-01-01T07:47:00 | S17: 2000-01-01T07:58:00 | T17: 0.4124999998 | U17: 9.899999995 | V17: 10 - nicht an Schultagen | W17: 54 | X17: 5965 | Y17: 322.11 | Z17: 0 | AA17: 0 | AB17: OOOOOOOOlOOOlOOlOOllOOOOOOOOOOOOOOOOOOOOOOOOOOOOOOOOOOOOOOOOOOOOOOOOOOOOOOOOOOOOOOOOOOOOOOOOOOOOOOOOOOOOOOOOOOOOOlllllOOllllOOOOOOOOOOOOOOOOOOOOOOOOOOOOOOOOOOOOOOOOOOOOOOOOOOOOOOOOOOOOOOOOOOOOOOOOOOOOOOOOlllllOOlllllOOlllllOOlllllOOlllllOOlllllOOOOOOOOOOOOOOOOOOOOOOOOOOOOOOOOOOOOOOOOOOOOOOOOOOOlllllOOlllllOOOOOOOOOOOOOOOOOOOOOOOOOOOOOOOOOOOOOOOOOOOOOOOOOOOOOOOOO | AC17: MO2 | AD17: Reinheim Bf # Niedernhausen # Brandau #
A18: REG | B18: 18 | C18: HEAG Verkehrs-GmbH | E18: 057_ | F18: 0 | G18: H | H18: Mo-Fr | I18: 726 | K18: Modautal | L18: Solo-Überlandbus-NF | M18: 0 | N18: 0 | O18: 0 | P18: 0 | Q18: 0 | R18: 2000-01-01T07:29:30 | S18: 2000-01-01T07:52:00 | T18: 3.03125 | U18: 72.75 | V18: 09 - nur an Schultagen | W18: 194 | X18: 12719 | Y18: 2467.486 | Z18: 0 | AA18: 0 | AB18: OlllllOOOOOOOOOOOOOOOOlllllOOlllllOOlllllOOlllllOOlllllOOlllllOOlllllOOlllllOOlllllOOlllllOOlllllOOlllllOOlllllOOOOOOOOOOOOOOOOOllllOOlllOlOOlllllOOlllllOOlllllOOlllOlOOlllllOOOllllOOlllOlOOlllllOOlllllOOOOOOOOOOOOOOOOOOOOOOOOOOOOOOOOOOOOOOOOOOOOlllllOOlllllOOlllllOOlllllOOlllllOOlllllOOllllOOOOOOOOOOOOOOOOOlllllOOlllllOOlllllOOlllllOOlllllOOlllllOOlllllOOlllllO | AC18: MO2 | AD18: Reinheim Bf # Niedernhausen # Brandau #
A19: REG | B19: 18 | C19: HEAG Verkehrs-GmbH | E19: 057_ | F19: 0 | G19: H | H19: Mo-Fr | I19: 726 | K19: Lautertal (Odenwald) | L19: Solo-Überlandbus-NF | M19: 0 | N19: 0 | O19: 0 | P19: 0 | Q19: 0 | R19: 2000-01-01T07:39:00 | S19: 2000-01-01T07:42:30 | T19: 0.4715277779 | U19: 11.31666667 | V19: 09 - nur an Schultagen | W19: 194 | X19: 2146 | Y19: 416.324 | Z19: 0 | AA19: 0 | AB19: OlllllOOOOOOOOOOOOOOOOlllllOOlllllOOlllllOOlllllOOlllllOOlllllOOlllllOOlllllOOlllllOOlllllOOlllllOOlllllOOlllllOOOOOOOOOOOOOOOOOllllOOlllOlOOlllllOOlllllOOlllllOOlllOlOOlllllOOOllllOOlllOlOOlllllOOlllllOOOOOOOOOOOOOOOOOOOOOOOOOOOOOOOOOOOOOOOOOOOOlllllOOlllllOOlllllOOlllllOOlllllOOlllllOOllllOOOOOOOOOOOOOOOOOlllllOOlllllOOlllllOOlllllOOlllllOOlllllOOlllllOOlllllO | AC19: MO2 | AD19: Reinheim Bf # Niedernhausen # Brandau #
A20: REG | B20: 18 | C20: HEAG Verkehrs-GmbH | E20: 057_ | F20: 0 | G20: H | H20: Mo-Fr | I20: 811 | K20: Modautal | L20: Solo-Überlandbus-NF | M20: 0 | N20: 0 | O20: 0 | P20: 0 | Q20: 0 | R20: 2000-01-01T08:14:30 | S20: 2000-01-01T08:37:00 | T20: 3.03125 | U20: 72.75 | V20: 09 - nur an Schultagen | W20: 194 | X20: 12719 | Y20: 2467.486 | Z20: 0 | AA20: 0 | AB20: OlllllOOOOOOOOOOOOOOOOlllllOOlllllOOlllllOOlllllOOlllllOOlllllOOlllllOOlllllOOlllllOOlllllOOlllllOOlllllOOlllllOOOOOOOOOOOOOOOOOllllOOlllOlOOlllllOOlllllOOlllllOOlllOlOOlllllOOOllllOOlllOlOOlllllOOlllllOOOOOOOOOOOOOOOOOOOOOOOOOOOOOOOOOOOOOOOOOOOOlllllOOlllllOOlllllOOlllllOOlllllOOlllllOOllllOOOOOOOOOOOOOOOOOlllllOOlllllOOlllllOOlllllOOlllllOOlllllOOlllllOOlllllO | AC20: MO2 | AD20: Reinheim Bf # Niedernhausen # Brandau #
A21: REG | B21: 18 | C21: HEAG Verkehrs-GmbH | E21: 057_ | F21: 0 | G21: H | H21: Mo-Fr | I21: 811 | K21: Lautertal (Odenwald) | L21: Solo-Überlandbus-NF | M21: 0 | N21: 0 | O21: 0 | P21: 0 | Q21: 0 | R21: 2000-01-01T08:24:00 | S21: 2000-01-01T08:27:30 | T21: 0.4715277779 | U21: 11.31666667 | V21: 09 - nur an Schultagen | W21: 194 | X21: 2146 | Y21: 416.324 | Z21: 0 | AA21: 0 | AB21: OlllllOOOOOOOOOOOOOOOOlllllOOlllllOOlllllOOlllllOOlllllOOlllllOOlllllOOlllllOOlllllOOlllllOOlllllOOlllllOOlllllOOOOOOOOOOOOOOOOOllllOOlllOlOOlllllOOlllllOOlllllOOlllOlOOlllllOOOllllOOlllOlOOlllllOOlllllOOOOOOOOOOOOOOOOOOOOOOOOOOOOOOOOOOOOOOOOOOOOlllllOOlllllOOlllllOOlllllOOlllllOOlllllOOllllOOOOOOOOOOOOOOOOOlllllOOlllllOOlllllOOlllllOOlllllOOlllllOOlllllOOlllllO | AC21: MO2 | AD21: Reinheim Bf # Niedernhausen # Brandau #
A22: REG | B22: 18 | C22: HEAG Verkehrs-GmbH | E22: 057_ | F22: 0 | G22: H | H22: Mo-Fr | I22: 812 | K22: Reinheim | L22: Solo-Überlandbus-NF | M22: 0 | N22: 0 | O22: 0 | P22: 0 | Q22: 0 | R22: 2000-01-01T08:12:00 | S22: 2000-01-01T08:17:00 | T22: 0.8611111103 | U22: 20.66666665 | W22: 248 | X22: 2066 | Y22: 512.368 | Z22: 0 | AA22: 0 | AB22: OlllllOOlOOOlOOlOOllOOlllllOOlllllOOlllllOOlllllOOlllllOOlllllOOlllllOOlllllOOlllllOOlllllOOlllllOOlllllOOlllllOOlllllOOllllOOOOllllOOlllOlOOlllllOOlllllOOlllllOOlllOlOOlllllOOOllllOOlllOlOOlllllOOlllllOOlllllOOlllllOOlllllOOlllllOOlllllOOlllllOOlllllOOlllllOOlllllOOlllllOOlllllOOlllllOOllllOOOlllllOOlllllOOlllllOOlllllOOlllllOOlllllOOlllllOOlllllOOlllllOOlllllO | AC22: MO2 | AD22: Reinheim Bf # Niedernhausen # Brandau #
A23: REG | B23: 18 | C23: HEAG Verkehrs-GmbH | E23: 057_ | F23: 0 | G23: H | H23: Mo-Fr | I23: 812 | K23: Groß-Bieberau | L23: Solo-Überlandbus-NF | M23: 0 | N23: 0 | O23: 0 | P23: 0 | Q23: 0 | R23: 2000-01-01T08:17:00 | S23: 2000-01-01T08:25:30 | T23: 1.46388889 | U23: 35.13333336 | W23: 248 | X23: 3620 | Y23: 897.76 | Z23: 0 | AA23: 0 | AB23: OlllllOOlOOOlOOlOOllOOlllllOOlllllOOlllllOOlllllOOlllllOOlllllOOlllllOOlllllOOlllllOOlllllOOlllllOOlllllOOlllllOOlllllOOllllOOOOllllOOlllOlOOlllllOOlllllOOlllllOOlllOlOOlllllOOOllllOOlllOlOOlllllOOlllllOOlllllOOlllllOOlllllOOlllllOOlllllOOlllllOOlllllOOlllllOOlllllOOlllllOOlllllOOlllllOOllllOOOlllllOOlllllOOlllllOOlllllOOlllllOOlllllOOlllllOOlllllOOlllllOOlllllO | AC23: MO2 | AD23: Reinheim Bf # Niedernhausen # Brandau #
A24: REG | B24: 18 | C24: HEAG Verkehrs-GmbH | E24: 057_ | F24: 0 | G24: H | H24: Mo-Fr | I24: 812 | K24: Fischbachtal | L24: Solo-Überlandbus-NF | M24: 0 | N24: 0 | O24: 0 | P24: 0 | Q24: 0 | R24: 2000-01-01T08:25:30 | S24: 2000-01-01T08:33:54 | T24: 1.446666666 | U24: 34.71999997 | W24: 248 | X24: 6649 | Y24: 1648.952 | Z24: 0 | AA24: 0 | AB24: OlllllOOlOOOlOOlOOllOOlllllOOlllllOOlllllOOlllllOOlllllOOlllllOOlllllOOlllllOOlllllOOlllllOOlllllOOlllllOOlllllOOlllllOOllllOOOOllllOOlllOlOOlllllOOlllllOOlllllOOlllOlOOlllllOOOllllOOlllOlOOlllllOOlllllOOlllllOOlllllOOlllllOOlllllOOlllllOOlllllOOlllllOOlllllOOlllllOOlllllOOlllllOOlllllOOllllOOOlllllOOlllllOOlllllOOlllllOOlllllOOlllllOOlllllOOlllllOOlllllOOlllllO | AC24: MO2 | AD24: Reinheim Bf # Niedernhausen # Brandau #
A25: REG | B25: 18 | C25: HEAG Verkehrs-GmbH | E25: 057_ | F25: 0 | G25: H | H25: Mo-Fr | I25: 812 | K25: Modautal | L25: Solo-Überlandbus-NF | M25: 0 | N25: 0 | O25: 0 | P25: 0 | Q25: 0 | R25: 2000-01-01T08:33:54 | S25: 2000-01-01T08:47:00 | T25: 2.256111112 | U25: 54.14666668 | W25: 248 | X25: 8797 | Y25: 2181.656 | Z25: 0 | AA25: 0 | AB25: OlllllOOlOOOlOOlOOllOOlllllOOlllllOOlllllOOlllllOOlllllOOlllllOOlllllOOlllllOOlllllOOlllllOOlllllOOlllllOOlllllOOlllllOOllllOOOOllllOOlllOlOOlllllOOlllllOOlllllOOlllOlOOlllllOOOllllOOlllOlOOlllllOOlllllOOlllllOOlllllOOlllllOOlllllOOlllllOOlllllOOlllllOOlllllOOlllllOOlllllOOlllllOOlllllOOllllOOOlllllOOlllllOOlllllOOlllllOOlllllOOlllllOOlllllOOlllllOOlllllOOlllllO | AC25: MO2 | AD25: Reinheim Bf # Niedernhausen # Brandau #
A26: REG | B26: 18 | C26: HEAG Verkehrs-GmbH | E26: 057_ | F26: 0 | G26: H | H26: Mo-Fr | I26: 812 | K26: Lautertal (Odenwald) | L26: Solo-Überlandbus-NF | M26: 0 | N26: 0 | O26: 0 | P26: 0 | Q26: 0 | R26: 2000-01-01T08:47:00 | S26: 2000-01-01T08:58:00 | T26: 1.894444445 | U26: 45.46666668 | W26: 248 | X26: 5965 | Y26: 1479.32 | Z26: 0 | AA26: 0 | AB26: OlllllOOlOOOlOOlOOllOOlllllOOlllllOOlllllOOlllllOOlllllOOlllllOOlllllOOlllllOOlllllOOlllllOOlllllOOlllllOOlllllOOlllllOOllllOOOOllllOOlllOlOOlllllOOlllllOOlllllOOlllOlOOlllllOOOllllOOlllOlOOlllllOOlllllOOlllllOOlllllOOlllllOOlllllOOlllllOOlllllOOlllllOOlllllOOlllllOOlllllOOlllllOOlllllOOllllOOOlllllOOlllllOOlllllOOlllllOOlllllOOlllllOOlllllOOlllllOOlllllOOlllllO | AC26: MO2 | AD26: Reinheim Bf # Niedernhausen # Brandau #
A27: REG | B27: 18 | C27: HEAG Verkehrs-GmbH | E27: 057_ | F27: 0 | G27: H | H27: Mo-Fr | I27: 912 | K27: Reinheim | L27: Solo-Überlandbus-NF | M27: 0 | N27: 0 | O27: 0 | P27: 0 | Q27: 0 | R27: 2000-01-01T09:12:00 | S27: 2000-01-01T09:17:00 | T27: 0.8611111121 | U27: 20.66666669 | W27: 248 | X27: 2066 | Y27: 512.368 | Z27: 0 | AA27: 0 | AB27: OlllllOOlOOOlOOlOOllOOlllllOOlllllOOlllllOOlllllOOlllllOOlllllOOlllllOOlllllOOlllllOOlllllOOlllllOOlllllOOlllllOOlllllOOllllOOOOllllOOlllOlOOlllllOOlllllOOlllllOOlllOlOOlllllOOOllllOOlllOlOOlllllOOlllllOOlllllOOlllllOOlllllOOlllllOOlllllOOlllllOOlllllOOlllllOOlllllOOlllllOOlllllOOlllllOOllllOOOlllllOOlllllOOlllllOOlllllOOlllllOOlllllOOlllllOOlllllOOlllllOOlllllO | AC27: MO2 | AD27: Reinheim Bf # Niedernhausen # Brandau #
A28: REG | B28: 18 | C28: HEAG Verkehrs-GmbH | E28: 057_ | F28: 0 | G28: H | H28: Mo-Fr | I28: 912 | K28: Groß-Bieberau | L28: Solo-Überlandbus-NF | M28: 0 | N28: 0 | O28: 0 | P28: 0 | Q28: 0 | R28: 2000-01-01T09:17:00 | S28: 2000-01-01T09:25:30 | T28: 1.463888888 | U28: 35.13333332 | W28: 248 | X28: 3620 | Y28: 897.76 | Z28: 0 | AA28: 0 | AB28: OlllllOOlOOOlOOlOOllOOlllllOOlllllOOlllllOOlllllOOlllllOOlllllOOlllllOOlllllOOlllllOOlllllOOlllllOOlllllOOlllllOOlllllOOllllOOOOllllOOlllOlOOlllllOOlllllOOlllllOOlllOlOOlllllOOOllllOOlllOlOOlllllOOlllllOOlllllOOlllllOOlllllOOlllllOOlllllOOlllllOOlllllOOlllllOOlllllOOlllllOOlllllOOlllllOOllllOOOlllllOOlllllOOlllllOOlllllOOlllllOOlllllOOlllllOOlllllOOlllllOOlllllO | AC28: MO2 | AD28: Reinheim Bf # Niedernhausen # Brandau #
A29: REG | B29: 18 | C29: HEAG Verkehrs-GmbH | E29: 057_ | F29: 0 | G29: H | H29: Mo-Fr | I29: 912 | K29: Fischbachtal | L29: Solo-Überlandbus-NF | M29: 0 | N29: 0 | O29: 0 | P29: 0 | Q29: 0 | R29: 2000-01-01T09:25:30 | S29: 2000-01-01T09:33:54 | T29: 1.446666667 | U29: 34.72000002 | W29: 248 | X29: 6649 | Y29: 1648.952 | Z29: 0 | AA29: 0 | AB29: OlllllOOlOOOlOOlOOllOOlllllOOlllllOOlllllOOlllllOOlllllOOlllllOOlllllOOlllllOOlllllOOlllllOOlllllOOlllllOOlllllOOlllllOOllllOOOOllllOOlllOlOOlllllOOlllllOOlllllOOlllOlOOlllllOOOllllOOlllOlOOlllllOOlllllOOlllllOOlllllOOlllllOOlllllOOlllllOOlllllOOlllllOOlllllOOlllllOOlllllOOlllllOOlllllOOllllOOOlllllOOlllllOOlllllOOlllllOOlllllOOlllllOOlllllOOlllllOOlllllOOlllllO | AC29: MO2 | AD29: Reinheim Bf # Niedernhausen # Brandau #
A30: REG | B30: 18 | C30: HEAG Verkehrs-GmbH | E30: 057_ | F30: 0 | G30: H | H30: Mo-Fr | I30: 912 | K30: Modautal | L30: Solo-Überlandbus-NF | M30: 0 | N30: 0 | O30: 0 | P30: 0 | Q30: 0 | R30: 2000-01-01T09:33:54 | S30: 2000-01-01T09:47:00 | T30: 2.25611111 | U30: 54.14666664 | W30: 248 | X30: 8797 | Y30: 2181.656 | Z30: 0 | AA30: 0 | AB30: OlllllOOlOOOlOOlOOllOOlllllOOlllllOOlllllOOlllllOOlllllOOlllllOOlllllOOlllllOOlllllOOlllllOOlllllOOlllllOOlllllOOlllllOOllllOOOOllllOOlllOlOOlllllOOlllllOOlllllOOlllOlOOlllllOOOllllOOlllOlOOlllllOOlllllOOlllllOOlllllOOlllllOOlllllOOlllllOOlllllOOlllllOOlllllOOlllllOOlllllOOlllllOOlllllOOllllOOOlllllOOlllllOOlllllOOlllllOOlllllOOlllllOOlllllOOlllllOOlllllOOlllllO | AC30: MO2 | AD30: Reinheim Bf # Niedernhausen # Brandau #
A31: REG | B31: 18 | C31: HEAG Verkehrs-GmbH | E31: 057_ | F31: 0 | G31: H | H31: Mo-Fr | I31: 912 | K31: Lautertal (Odenwald) | L31: Solo-Überlandbus-NF | M31: 0 | N31: 0 | O31: 0 | P31: 0 | Q31: 0 | R31: 2000-01-01T09:47:00 | S31: 2000-01-01T09:58:00 | T31: 1.894444445 | U31: 45.46666668 | W31: 248 | X31: 5965 | Y31: 1479.32 | Z31: 0 | AA31: 0 | AB31: OlllllOOlOOOlOOlOOllOOlllllOOlllllOOlllllOOlllllOOlllllOOlllllOOlllllOOlllllOOlllllOOlllllOOlllllOOlllllOOlllllOOlllllOOllllOOOOllllOOlllOlOOlllllOOlllllOOlllllOOlllOlOOlllllOOOllllOOlllOlOOlllllOOlllllOOlllllOOlllllOOlllllOOlllllOOlllllOOlllllOOlllllOOlllllOOlllllOOlllllOOlllllOOlllllOOllllOOOlllllOOlllllOOlllllOOlllllOOlllllOOlllllOOlllllOOlllllOOlllllOOlllllO | AC31: MO2 | AD31: Reinheim Bf # Niedernhausen # Brandau #
A32: REG | B32: 18 | C32: HEAG Verkehrs-GmbH | E32: 057_ | F32: 0 | G32: H | H32: Mo-Fr | I32: 1012 | K32: Reinheim | L32: Solo-Überlandbus-NF | M32: 0 | N32: 0 | O32: 0 | P32: 0 | Q32: 0 | R32: 2000-01-01T10:12:00 | S32: 2000-01-01T10:17:00 | T32: 0.8611111103 | U32: 20.66666665 | W32: 248 | X32: 2066 | Y32: 512.368 | Z32: 0 | AA32: 0 | AB32: OlllllOOlOOOlOOlOOllOOlllllOOlllllOOlllllOOlllllOOlllllOOlllllOOlllllOOlllllOOlllllOOlllllOOlllllOOlllllOOlllllOOlllllOOllllOOOOllllOOlllOlOOlllllOOlllllOOlllllOOlllOlOOlllllOOOllllOOlllOlOOlllllOOlllllOOlllllOOlllllOOlllllOOlllllOOlllllOOlllllOOlllllOOlllllOOlllllOOlllllOOlllllOOlllllOOllllOOOlllllOOlllllOOlllllOOlllllOOlllllOOlllllOOlllllOOlllllOOlllllOOlllllO | AC32: MO2 | AD32: Reinheim Bf # Niedernhausen # Brandau #
A33: REG | B33: 18 | C33: HEAG Verkehrs-GmbH | E33: 057_ | F33: 0 | G33: H | H33: Mo-Fr | I33: 1012 | K33: Groß-Bieberau | L33: Solo-Überlandbus-NF | M33: 0 | N33: 0 | O33: 0 | P33: 0 | Q33: 0 | R33: 2000-01-01T10:17:00 | S33: 2000-01-01T10:25:30 | T33: 1.463888888 | U33: 35.13333332 | W33: 248 | X33: 3620 | Y33: 897.76 | Z33: 0 | AA33: 0 | AB33: OlllllOOlOOOlOOlOOllOOlllllOOlllllOOlllllOOlllllOOlllllOOlllllOOlllllOOlllllOOlllllOOlllllOOlllllOOlllllOOlllllOOlllllOOllllOOOOllllOOlllOlOOlllllOOlllllOOlllllOOlllOlOOlllllOOOllllOOlllOlOOlllllOOlllllOOlllllOOlllllOOlllllOOlllllOOlllllOOlllllOOlllllOOlllllOOlllllOOlllllOOlllllOOlllllOOllllOOOlllllOOlllllOOlllllOOlllllOOlllllOOlllllOOlllllOOlllllOOlllllOOlllllO | AC33: MO2 | AD33: Reinheim Bf # Niedernhausen # Brandau #
A34: REG | B34: 18 | C34: HEAG Verkehrs-GmbH | E34: 057_ | F34: 0 | G34: H | H34: Mo-Fr | I34: 1012 | K34: Fischbachtal | L34: Solo-Überlandbus-NF | M34: 0 | N34: 0 | O34: 0 | P34: 0 | Q34: 0 | R34: 2000-01-01T10:25:30 | S34: 2000-01-01T10:33:54 | T34: 1.446666667 | U34: 34.72000002 | W34: 248 | X34: 6649 | Y34: 1648.952 | Z34: 0 | AA34: 0 | AB34: OlllllOOlOOOlOOlOOllOOlllllOOlllllOOlllllOOlllllOOlllllOOlllllOOlllllOOlllllOOlllllOOlllllOOlllllOOlllllOOlllllOOlllllOOllllOOOOllllOOlllOlOOlllllOOlllllOOlllllOOlllOlOOlllllOOOllllOOlllOlOOlllllOOlllllOOlllllOOlllllOOlllllOOlllllOOlllllOOlllllOOlllllOOlllllOOlllllOOlllllOOlllllOOlllllOOllllOOOlllllOOlllllOOlllllOOlllllOOlllllOOlllllOOlllllOOlllllOOlllllOOlllllO | AC34: MO2 | AD34: Reinheim Bf # Niedernhausen # Brandau #
A35: REG | B35: 18 | C35: HEAG Verkehrs-GmbH | E35: 057_ | F35: 0 | G35: H | H35: Mo-Fr | I35: 1012 | K35: Modautal | L35: Solo-Überlandbus-NF | M35: 0 | N35: 0 | O35: 0 | P35: 0 | Q35: 0 | R35: 2000-01-01T10:33:54 | S35: 2000-01-01T10:47:00 | T35: 2.256111112 | U35: 54.14666668 | W35: 248 | X35: 8797 | Y35: 2181.656 | Z35: 0 | AA35: 0 | AB35: OlllllOOlOOOlOOlOOllOOlllllOOlllllOOlllllOOlllllOOlllllOOlllllOOlllllOOlllllOOlllllOOlllllOOlllllOOlllllOOlllllOOlllllOOllllOOOOllllOOlllOlOOlllllOOlllllOOlllllOOlllOlOOlllllOOOllllOOlllOlOOlllllOOlllllOOlllllOOlllllOOlllllOOlllllOOlllllOOlllllOOlllllOOlllllOOlllllOOlllllOOlllllOOlllllOOllllOOOlllllOOlllllOOlllllOOlllllOOlllllOOlllllOOlllllOOlllllOOlllllOOlllllO | AC35: MO2 | AD35: Reinheim Bf # Niedernhausen # Brandau #
A36: REG | B36: 18 | C36: HEAG Verkehrs-GmbH | E36: 057_ | F36: 0 | G36: H | H36: Mo-Fr | I36: 1012 | K36: Lautertal (Odenwald) | L36: Solo-Überlandbus-NF | M36: 0 | N36: 0 | O36: 0 | P36: 0 | Q36: 0 | R36: 2000-01-01T10:47:00 | S36: 2000-01-01T10:58:00 | T36: 1.894444443 | U36: 45.46666664 | W36: 248 | X36: 5965 | Y36: 1479.32 | Z36: 0 | AA36: 0 | AB36: OlllllOOlOOOlOOlOOllOOlllllOOlllllOOlllllOOlllllOOlllllOOlllllOOlllllOOlllllOOlllllOOlllllOOlllllOOlllllOOlllllOOlllllOOllllOOOOllllOOlllOlOOlllllOOlllllOOlllllOOlllOlOOlllllOOOllllOOlllOlOOlllllOOlllllOOlllllOOlllllOOlllllOOlllllOOlllllOOlllllOOlllllOOlllllOOlllllOOlllllOOlllllOOlllllOOllllOOOlllllOOlllllOOlllllOOlllllOOlllllOOlllllOOlllllOOlllllOOlllllOOlllllO | AC36: MO2 | AD36: Reinheim Bf # Niedernhausen # Brandau #
A37: REG | B37: 18 | C37: HEAG Verkehrs-GmbH | E37: 057_ | F37: 0 | G37: H | H37: Mo-Fr | I37: 1112 | K37: Reinheim | L37: Solo-Überlandbus-NF | M37: 0 | N37: 0 | O37: 0 | P37: 0 | Q37: 0 | R37: 2000-01-01T11:12:00 | S37: 2000-01-01T11:17:00 | T37: 0.8611111103 | U37: 20.66666665 | W37: 248 | X37: 2066 | Y37: 512.368 | Z37: 0 | AA37: 0 | AB37: OlllllOOlOOOlOOlOOllOOlllllOOlllllOOlllllOOlllllOOlllllOOlllllOOlllllOOlllllOOlllllOOlllllOOlllllOOlllllOOlllllOOlllllOOllllOOOOllllOOlllOlOOlllllOOlllllOOlllllOOlllOlOOlllllOOOllllOOlllOlOOlllllOOlllllOOlllllOOlllllOOlllllOOlllllOOlllllOOlllllOOlllllOOlllllOOlllllOOlllllOOlllllOOlllllOOllllOOOlllllOOlllllOOlllllOOlllllOOlllllOOlllllOOlllllOOlllllOOlllllOOlllllO | AC37: MO2 | AD37: Reinheim Bf # Niedernhausen # Brandau #
A38: REG | B38: 18 | C38: HEAG Verkehrs-GmbH | E38: 057_ | F38: 0 | G38: H | H38: Mo-Fr | I38: 1112 | K38: Groß-Bieberau | L38: Solo-Überlandbus-NF | M38: 0 | N38: 0 | O38: 0 | P38: 0 | Q38: 0 | R38: 2000-01-01T11:17:00 | S38: 2000-01-01T11:25:30 | T38: 1.46388889 | U38: 35.13333336 | W38: 248 | X38: 3620 | Y38: 897.76 | Z38: 0 | AA38: 0 | AB38: OlllllOOlOOOlOOlOOllOOlllllOOlllllOOlllllOOlllllOOlllllOOlllllOOlllllOOlllllOOlllllOOlllllOOlllllOOlllllOOlllllOOlllllOOllllOOOOllllOOlllOlOOlllllOOlllllOOlllllOOlllOlOOlllllOOOllllOOlllOlOOlllllOOlllllOOlllllOOlllllOOlllllOOlllllOOlllllOOlllllOOlllllOOlllllOOlllllOOlllllOOlllllOOlllllOOllllOOOlllllOOlllllOOlllllOOlllllOOlllllOOlllllOOlllllOOlllllOOlllllOOlllllO | AC38: MO2 | AD38: Reinheim Bf # Niedernhausen # Brandau #
A39: REG | B39: 18 | C39: HEAG Verkehrs-GmbH | E39: 057_ | F39: 0 | G39: H | H39: Mo-Fr | I39: 1112 | K39: Fischbachtal | L39: Solo-Überlandbus-NF | M39: 0 | N39: 0 | O39: 0 | P39: 0 | Q39: 0 | R39: 2000-01-01T11:25:30 | S39: 2000-01-01T11:33:54 | T39: 1.446666666 | U39: 34.71999997 | W39: 248 | X39: 6649 | Y39: 1648.952 | Z39: 0 | AA39: 0 | AB39: OlllllOOlOOOlOOlOOllOOlllllOOlllllOOlllllOOlllllOOlllllOOlllllOOlllllOOlllllOOlllllOOlllllOOlllllOOlllllOOlllllOOlllllOOllllOOOOllllOOlllOlOOlllllOOlllllOOlllllOOlllOlOOlllllOOOllllOOlllOlOOlllllOOlllllOOlllllOOlllllOOlllllOOlllllOOlllllOOlllllOOlllllOOlllllOOlllllOOlllllOOlllllOOlllllOOllllOOOlllllOOlllllOOlllllOOlllllOOlllllOOlllllOOlllllOOlllllOOlllllOOlllllO | AC39: MO2 | AD39: Reinheim Bf # Niedernhausen # Brandau #
A40: REG | B40: 18 | C40: HEAG Verkehrs-GmbH | E40: 057_ | F40: 0 | G40: H | H40: Mo-Fr | I40: 1112 | K40: Modautal | L40: Solo-Überlandbus-NF | M40: 0 | N40: 0 | O40: 0 | P40: 0 | Q40: 0 | R40: 2000-01-01T11:33:54 | S40: 2000-01-01T11:47:00 | T40: 2.256111112 | U40: 54.14666668 | W40: 248 | X40: 8797 | Y40: 2181.656 | Z40: 0 | AA40: 0 | AB40: OlllllOOlOOOlOOlOOllOOlllllOOlllllOOlllllOOlllllOOlllllOOlllllOOlllllOOlllllOOlllllOOlllllOOlllllOOlllllOOlllllOOlllllOOllllOOOOllllOOlllOlOOlllllOOlllllOOlllllOOlllOlOOlllllOOOllllOOlllOlOOlllllOOlllllOOlllllOOlllllOOlllllOOlllllOOlllllOOlllllOOlllllOOlllllOOlllllOOlllllOOlllllOOlllllOOllllOOOlllllOOlllllOOlllllOOlllllOOlllllOOlllllOOlllllOOlllllOOlllllOOlllllO | AC40: MO2 | AD40: Reinheim Bf # Niedernhausen # Brandau #
A41: REG | B41: 18 | C41: HEAG Verkehrs-GmbH | E41: 057_ | F41: 0 | G41: H | H41: Mo-Fr | I41: 1112 | K41: Lautertal (Odenwald) | L41: Solo-Überlandbus-NF | M41: 0 | N41: 0 | O41: 0 | P41: 0 | Q41: 0 | R41: 2000-01-01T11:47:00 | S41: 2000-01-01T11:58:00 | T41: 1.894444445 | U41: 45.46666668 | W41: 248 | X41: 5965 | Y41: 1479.32 | Z41: 0 | AA41: 0 | AB41: OlllllOOlOOOlOOlOOllOOlllllOOlllllOOlllllOOlllllOOlllllOOlllllOOlllllOOlllllOOlllllOOlllllOOlllllOOlllllOOlllllOOlllllOOllllOOOOllllOOlllOlOOlllllOOlllllOOlllllOOlllOlOOlllllOOOllllOOlllOlOOlllllOOlllllOOlllllOOlllllOOlllllOOlllllOOlllllOOlllllOOlllllOOlllllOOlllllOOlllllOOlllllOOlllllOOllllOOOlllllOOlllllOOlllllOOlllllOOlllllOOlllllOOlllllOOlllllOOlllllOOlllllO | AC41: MO2 | AD41: Reinheim Bf # Niedernhausen # Brandau #
A42: REG | B42: 18 | C42: HEAG Verkehrs-GmbH | E42: 057_ | F42: 0 | G42: H | H42: Mo-Fr | I42: 1150 | K42: Reinheim | L42: Solo-Überlandbus-NF | M42: 0 | N42: 0 | O42: 0 | P42: 0 | Q42: 0 | R42: 2000-01-01T11:50:00 | S42: 2000-01-01T11:55:00 | T42: 0.6736111119 | U42: 16.16666669 | V42: 09 - nur an Schultagen | W42: 194 | X42: 2066 | Y42: 400.804 | Z42: 0 | AA42: 0 | AB42: OlllllOOOOOOOOOOOOOOOOlllllOOlllllOOlllllOOlllllOOlllllOOlllllOOlllllOOlllllOOlllllOOlllllOOlllllOOlllllOOlllllOOOOOOOOOOOOOOOOOllllOOlllOlOOlllllOOlllllOOlllllOOlllOlOOlllllOOOllllOOlllOlOOlllllOOlllllOOOOOOOOOOOOOOOOOOOOOOOOOOOOOOOOOOOOOOOOOOOOlllllOOlllllOOlllllOOlllllOOlllllOOlllllOOllllOOOOOOOOOOOOOOOOOlllllOOlllllOOlllllOOlllllOOlllllOOlllllOOlllllOOlllllO | AC42: MO2 | AD42: Reinheim Bf # Niedernhausen # Brandau #
A43: REG | B43: 18 | C43: HEAG Verkehrs-GmbH | E43: 057_ | F43: 0 | G43: H | H43: Mo-Fr | I43: 1150 | K43: Groß-Bieberau | L43: Solo-Überlandbus-NF | M43: 0 | N43: 0 | O43: 0 | P43: 0 | Q43: 0 | R43: 2000-01-01T11:55:00 | S43: 2000-01-01T12:06:30 | T43: 1.549305555 | U43: 37.18333332 | V43: 09 - nur an Schultagen | W43: 194 | X43: 4680 | Y43: 907.92 | Z43: 0 | AA43: 0 | AB43: OlllllOOOOOOOOOOOOOOOOlllllOOlllllOOlllllOOlllllOOlllllOOlllllOOlllllOOlllllOOlllllOOlllllOOlllllOOlllllOOlllllOOOOOOOOOOOOOOOOOllllOOlllOlOOlllllOOlllllOOlllllOOlllOlOOlllllOOOllllOOlllOlOOlllllOOlllllOOOOOOOOOOOOOOOOOOOOOOOOOOOOOOOOOOOOOOOOOOOOlllllOOlllllOOlllllOOlllllOOlllllOOlllllOOllllOOOOOOOOOOOOOOOOOlllllOOlllllOOlllllOOlllllOOlllllOOlllllOOlllllOOlllllO | AC43: MO2 | AD43: Reinheim Bf # Niedernhausen # Brandau #
A44: REG | B44: 18 | C44: HEAG Verkehrs-GmbH | E44: 057_ | F44: 0 | G44: H | H44: Mo-Fr | I44: 1150 | K44: Fischbachtal | L44: Solo-Überlandbus-NF | M44: 0 | N44: 0 | O44: 0 | P44: 0 | Q44: 0 | R44: 2000-01-01T12:06:30 | S44: 2000-01-01T12:19:42 | T44: 1.778333333 | U44: 42.67999998 | V44: 09 - nur an Schultagen | W44: 194 | X44: 8940 | Y44: 1734.36 | Z44: 0 | AA44: 0 | AB44: OlllllOOOOOOOOOOOOOOOOlllllOOlllllOOlllllOOlllllOOlllllOOlllllOOlllllOOlllllOOlllllOOlllllOOlllllOOlllllOOlllllOOOOOOOOOOOOOOOOOllllOOlllOlOOlllllOOlllllOOlllllOOlllOlOOlllllOOOllllOOlllOlOOlllllOOlllllOOOOOOOOOOOOOOOOOOOOOOOOOOOOOOOOOOOOOOOOOOOOlllllOOlllllOOlllllOOlllllOOlllllOOlllllOOllllOOOOOOOOOOOOOOOOOlllllOOlllllOOlllllOOlllllOOlllllOOlllllOOlllllOOlllllO | AC44: MO2 | AD44: Reinheim Bf # Niedernhausen # Brandau #
A45: REG | B45: 18 | C45: HEAG Verkehrs-GmbH | E45: 057_ | F45: 0 | G45: H | H45: Mo-Fr | I45: 1150 | K45: Modautal | L45: Solo-Überlandbus-NF | M45: 0 | N45: 0 | O45: 0 | P45: 0 | Q45: 0 | R45: 2000-01-01T12:19:42 | S45: 2000-01-01T12:32:00 | T45: 1.657083334 | U45: 39.77000001 | V45: 09 - nur an Schultagen | W45: 194 | X45: 8896 | Y45: 1725.824 | Z45: 0 | AA45: 0 | AB45: OlllllOOOOOOOOOOOOOOOOlllllOOlllllOOlllllOOlllllOOlllllOOlllllOOlllllOOlllllOOlllllOOlllllOOlllllOOlllllOOlllllOOOOOOOOOOOOOOOOOllllOOlllOlOOlllllOOlllllOOlllllOOlllOlOOlllllOOOllllOOlllOlOOlllllOOlllllOOOOOOOOOOOOOOOOOOOOOOOOOOOOOOOOOOOOOOOOOOOOlllllOOlllllOOlllllOOlllllOOlllllOOlllllOOllllOOOOOOOOOOOOOOOOOlllllOOlllllOOlllllOOlllllOOlllllOOlllllOOlllllOOlllllO | AC45: MO2 | AD45: Reinheim Bf # Niedernhausen # Brandau #
A46: REG | B46: 18 | C46: HEAG Verkehrs-GmbH | E46: 057_ | F46: 0 | G46: H | H46: Mo-Fr | I46: 1211 | K46: Modautal | L46: Solo-Überlandbus-NF | M46: 0 | N46: 0 | O46: 0 | P46: 0 | Q46: 0 | R46: 2000-01-01T12:14:30 | S46: 2000-01-01T12:37:00 | T46: 3.03125 | U46: 72.75 | V46: 09 - nur an Schultagen | W46: 194 | X46: 12719 | Y46: 2467.486 | Z46: 0 | AA46: 0 | AB46: OlllllOOOOOOOOOOOOOOOOlllllOOlllllOOlllllOOlllllOOlllllOOlllllOOlllllOOlllllOOlllllOOlllllOOlllllOOlllllOOlllllOOOOOOOOOOOOOOOOOllllOOlllOlOOlllllOOlllllOOlllllOOlllOlOOlllllOOOllllOOlllOlOOlllllOOlllllOOOOOOOOOOOOOOOOOOOOOOOOOOOOOOOOOOOOOOOOOOOOlllllOOlllllOOlllllOOlllllOOlllllOOlllllOOllllOOOOOOOOOOOOOOOOOlllllOOlllllOOlllllOOlllllOOlllllOOlllllOOlllllOOlllllO | AC46: MO2 | AD46: Reinheim Bf # Niedernhausen # Brandau #
A47: REG | B47: 18 | C47: HEAG Verkehrs-GmbH | E47: 057_ | F47: 0 | G47: H | H47: Mo-Fr | I47: 1211 | K47: Lautertal (Odenwald) | L47: Solo-Überlandbus-NF | M47: 0 | N47: 0 | O47: 0 | P47: 0 | Q47: 0 | R47: 2000-01-01T12:24:00 | S47: 2000-01-01T12:27:30 | T47: 0.4715277765 | U47: 11.31666664 | V47: 09 - nur an Schultagen | W47: 194 | X47: 2146 | Y47: 416.324 | Z47: 0 | AA47: 0 | AB47: OlllllOOOOOOOOOOOOOOOOlllllOOlllllOOlllllOOlllllOOlllllOOlllllOOlllllOOlllllOOlllllOOlllllOOlllllOOlllllOOlllllOOOOOOOOOOOOOOOOOllllOOlllOlOOlllllOOlllllOOlllllOOlllOlOOlllllOOOllllOOlllOlOOlllllOOlllllOOOOOOOOOOOOOOOOOOOOOOOOOOOOOOOOOOOOOOOOOOOOlllllOOlllllOOlllllOOlllllOOlllllOOlllllOOllllOOOOOOOOOOOOOOOOOlllllOOlllllOOlllllOOlllllOOlllllOOlllllOOlllllOOlllllO | AC47: MO2 | AD47: Reinheim Bf # Niedernhausen # Brandau #
A48: REG | B48: 18 | C48: HEAG Verkehrs-GmbH | E48: 057_ | F48: 0 | G48: H | H48: Mo-Fr | I48: 1212 | K48: Reinheim | L48: Solo-Überlandbus-NF | M48: 0 | N48: 0 | O48: 0 | P48: 0 | Q48: 0 | R48: 2000-01-01T12:12:00 | S48: 2000-01-01T12:17:00 | T48: 0.1875000002 | U48: 4.500000005 | V48: 10 - nicht an Schultagen | W48: 54 | X48: 2066 | Y48: 111.564 | Z48: 0 | AA48: 0 | AB48: OOOOOOOOlOOOlOOlOOllOOOOOOOOOOOOOOOOOOOOOOOOOOOOOOOOOOOOOOOOOOOOOOOOOOOOOOOOOOOOOOOOOOOOOOOOOOOOOOOOOOOOOOOOOOOOOlllllOOllllOOOOOOOOOOOOOOOOOOOOOOOOOOOOOOOOOOOOOOOOOOOOOOOOOOOOOOOOOOOOOOOOOOOOOOOOOOOOOOOOlllllOOlllllOOlllllOOlllllOOlllllOOlllllOOOOOOOOOOOOOOOOOOOOOOOOOOOOOOOOOOOOOOOOOOOOOOOOOOOlllllOOlllllOOOOOOOOOOOOOOOOOOOOOOOOOOOOOOOOOOOOOOOOOOOOOOOOOOOOOOOOO | AC48: MO2 | AD48: Reinheim Bf # Niedernhausen # Brandau #
A49: REG | B49: 18 | C49: HEAG Verkehrs-GmbH | E49: 057_ | F49: 0 | G49: H | H49: Mo-Fr | I49: 1212 | K49: Groß-Bieberau | L49: Solo-Überlandbus-NF | M49: 0 | N49: 0 | O49: 0 | P49: 0 | Q49: 0 | R49: 2000-01-01T12:17:00 | S49: 2000-01-01T12:25:30 | T49: 0.3187499999 | U49: 7.649999997 | V49: 10 - nicht an Schultagen | W49: 54 | X49: 3620 | Y49: 195.48 | Z49: 0 | AA49: 0 | AB49: OOOOOOOOlOOOlOOlOOllOOOOOOOOOOOOOOOOOOOOOOOOOOOOOOOOOOOOOOOOOOOOOOOOOOOOOOOOOOOOOOOOOOOOOOOOOOOOOOOOOOOOOOOOOOOOOlllllOOllllOOOOOOOOOOOOOOOOOOOOOOOOOOOOOOOOOOOOOOOOOOOOOOOOOOOOOOOOOOOOOOOOOOOOOOOOOOOOOOOOlllllOOlllllOOlllllOOlllllOOlllllOOlllllOOOOOOOOOOOOOOOOOOOOOOOOOOOOOOOOOOOOOOOOOOOOOOOOOOOlllllOOlllllOOOOOOOOOOOOOOOOOOOOOOOOOOOOOOOOOOOOOOOOOOOOOOOOOOOOOOOOO | AC49: MO2 | AD49: Reinheim Bf # Niedernhausen # Brandau #
A50: REG | B50: 18 | C50: HEAG Verkehrs-GmbH | E50: 057_ | F50: 0 | G50: H | H50: Mo-Fr | I50: 1212 | K50: Fischbachtal | L50: Solo-Überlandbus-NF | M50: 0 | N50: 0 | O50: 0 | P50: 0 | Q50: 0 | R50: 2000-01-01T12:25:30 | S50: 2000-01-01T12:33:54 | T50: 0.3150000002 | U50: 7.560000004 | V50: 10 - nicht an Schultagen | W50: 54 | X50: 6649 | Y50: 359.046 | Z50: 0 | AA50: 0 | AB50: OOOOOOOOlOOOlOOlOOllOOOOOOOOOOOOOOOOOOOOOOOOOOOOOOOOOOOOOOOOOOOOOOOOOOOOOOOOOOOOOOOOOOOOOOOOOOOOOOOOOOOOOOOOOOOOOlllllOOllllOOOOOOOOOOOOOOOOOOOOOOOOOOOOOOOOOOOOOOOOOOOOOOOOOOOOOOOOOOOOOOOOOOOOOOOOOOOOOOOOlllllOOlllllOOlllllOOlllllOOlllllOOlllllOOOOOOOOOOOOOOOOOOOOOOOOOOOOOOOOOOOOOOOOOOOOOOOOOOOlllllOOlllllOOOOOOOOOOOOOOOOOOOOOOOOOOOOOOOOOOOOOOOOOOOOOOOOOOOOOOOOO | AC50: MO2 | AD50: Reinheim Bf # Niedernhausen # Brandau #
A51: REG | B51: 18 | C51: HEAG Verkehrs-GmbH | E51: 057_ | F51: 0 | G51: H | H51: Mo-Fr | I51: 1212 | K51: Modautal | L51: Solo-Überlandbus-NF | M51: 0 | N51: 0 | O51: 0 | P51: 0 | Q51: 0 | R51: 2000-01-01T12:33:54 | S51: 2000-01-01T12:47:00 | T51: 0.4912499997 | U51: 11.78999999 | V51: 10 - nicht an Schultagen | W51: 54 | X51: 8797 | Y51: 475.038 | Z51: 0 | AA51: 0 | AB51: OOOOOOOOlOOOlOOlOOllOOOOOOOOOOOOOOOOOOOOOOOOOOOOOOOOOOOOOOOOOOOOOOOOOOOOOOOOOOOOOOOOOOOOOOOOOOOOOOOOOOOOOOOOOOOOOlllllOOllllOOOOOOOOOOOOOOOOOOOOOOOOOOOOOOOOOOOOOOOOOOOOOOOOOOOOOOOOOOOOOOOOOOOOOOOOOOOOOOOOlllllOOlllllOOlllllOOlllllOOlllllOOlllllOOOOOOOOOOOOOOOOOOOOOOOOOOOOOOOOOOOOOOOOOOOOOOOOOOOlllllOOlllllOOOOOOOOOOOOOOOOOOOOOOOOOOOOOOOOOOOOOOOOOOOOOOOOOOOOOOOOO | AC51: MO2 | AD51: Reinheim Bf # Niedernhausen # Brandau #
A52: REG | B52: 18 | C52: HEAG Verkehrs-GmbH | E52: 057_ | F52: 0 | G52: H | H52: Mo-Fr | I52: 1212 | K52: Lautertal (Odenwald) | L52: Solo-Überlandbus-NF | M52: 0 | N52: 0 | O52: 0 | P52: 0 | Q52: 0 | R52: 2000-01-01T12:47:00 | S52: 2000-01-01T12:58:00 | T52: 0.4125000002 | U52: 9.900000004 | V52: 10 - nicht an Schultagen | W52: 54 | X52: 5965 | Y52: 322.11 | Z52: 0 | AA52: 0 | AB52: OOOOOOOOlOOOlOOlOOllOOOOOOOOOOOOOOOOOOOOOOOOOOOOOOOOOOOOOOOOOOOOOOOOOOOOOOOOOOOOOOOOOOOOOOOOOOOOOOOOOOOOOOOOOOOOOlllllOOllllOOOOOOOOOOOOOOOOOOOOOOOOOOOOOOOOOOOOOOOOOOOOOOOOOOOOOOOOOOOOOOOOOOOOOOOOOOOOOOOOlllllOOlllllOOlllllOOlllllOOlllllOOlllllOOOOOOOOOOOOOOOOOOOOOOOOOOOOOOOOOOOOOOOOOOOOOOOOOOOlllllOOlllllOOOOOOOOOOOOOOOOOOOOOOOOOOOOOOOOOOOOOOOOOOOOOOOOOOOOOOOOO | AC52: MO2 | AD52: Reinheim Bf # Niedernhausen # Brandau #
A53: REG | B53: 18 | C53: HEAG Verkehrs-GmbH | E53: 057_ | F53: 0 | G53: H | H53: Mo-Fr | I53: 1217 | K53: Reinheim | L53: Solo-Überlandbus-NF | M53: 0 | N53: 0 | O53: 0 | P53: 0 | Q53: 0 | R53: 2000-01-01T12:17:00 | S53: 2000-01-01T12:22:00 | T53: 0.6736111105 | U53: 16.16666665 | V53: 09 - nur an Schultagen | W53: 194 | X53: 2066 | Y53: 400.804 | Z53: 0 | AA53: 0 | AB53: OlllllOOOOOOOOOOOOOOOOlllllOOlllllOOlllllOOlllllOOlllllOOlllllOOlllllOOlllllOOlllllOOlllllOOlllllOOlllllOOlllllOOOOOOOOOOOOOOOOOllllOOlllOlOOlllllOOlllllOOlllllOOlllOlOOlllllOOOllllOOlllOlOOlllllOOlllllOOOOOOOOOOOOOOOOOOOOOOOOOOOOOOOOOOOOOOOOOOOOlllllOOlllllOOlllllOOlllllOOlllllOOlllllOOllllOOOOOOOOOOOOOOOOOlllllOOlllllOOlllllOOlllllOOlllllOOlllllOOlllllOOlllllO | AC53: MO2 | AD53: Reinheim Bf # Niedernhausen # Brandau #
A54: REG | B54: 18 | C54: HEAG Verkehrs-GmbH | E54: 057_ | F54: 0 | G54: H | H54: Mo-Fr | I54: 1217 | K54: Groß-Bieberau | L54: Solo-Überlandbus-NF | M54: 0 | N54: 0 | O54: 0 | P54: 0 | Q54: 0 | R54: 2000-01-01T12:22:00 | S54: 2000-01-01T12:33:30 | T54: 1.549305556 | U54: 37.18333335 | V54: 09 - nur an Schultagen | W54: 194 | X54: 4680 | Y54: 907.92 | Z54: 0 | AA54: 0 | AB54: OlllllOOOOOOOOOOOOOOOOlllllOOlllllOOlllllOOlllllOOlllllOOlllllOOlllllOOlllllOOlllllOOlllllOOlllllOOlllllOOlllllOOOOOOOOOOOOOOOOOllllOOlllOlOOlllllOOlllllOOlllllOOlllOlOOlllllOOOllllOOlllOlOOlllllOOlllllOOOOOOOOOOOOOOOOOOOOOOOOOOOOOOOOOOOOOOOOOOOOlllllOOlllllOOlllllOOlllllOOlllllOOlllllOOllllOOOOOOOOOOOOOOOOOlllllOOlllllOOlllllOOlllllOOlllllOOlllllOOlllllOOlllllO | AC54: MO2 | AD54: Reinheim Bf # Niedernhausen # Brandau #
A55: REG | B55: 18 | C55: HEAG Verkehrs-GmbH | E55: 057_ | F55: 0 | G55: H | H55: Mo-Fr | I55: 1217 | K55: Fischbachtal | L55: Solo-Überlandbus-NF | M55: 0 | N55: 0 | O55: 0 | P55: 0 | Q55: 0 | R55: 2000-01-01T12:33:30 | S55: 2000-01-01T12:46:42 | T55: 1.778333333 | U55: 42.67999998 | V55: 09 - nur an Schultagen | W55: 194 | X55: 8940 | Y55: 1734.36 | Z55: 0 | AA55: 0 | AB55: OlllllOOOOOOOOOOOOOOOOlllllOOlllllOOlllllOOlllllOOlllllOOlllllOOlllllOOlllllOOlllllOOlllllOOlllllOOlllllOOlllllOOOOOOOOOOOOOOOOOllllOOlllOlOOlllllOOlllllOOlllllOOlllOlOOlllllOOOllllOOlllOlOOlllllOOlllllOOOOOOOOOOOOOOOOOOOOOOOOOOOOOOOOOOOOOOOOOOOOlllllOOlllllOOlllllOOlllllOOlllllOOlllllOOllllOOOOOOOOOOOOOOOOOlllllOOlllllOOlllllOOlllllOOlllllOOlllllOOlllllOOlllllO | AC55: MO2 | AD55: Reinheim Bf # Niedernhausen # Brandau #
A56: REG | B56: 18 | C56: HEAG Verkehrs-GmbH | E56: 057_ | F56: 0 | G56: H | H56: Mo-Fr | I56: 1217 | K56: Modautal | L56: Solo-Überlandbus-NF | M56: 0 | N56: 0 | O56: 0 | P56: 0 | Q56: 0 | R56: 2000-01-01T12:46:42 | S56: 2000-01-01T12:50:00 | T56: 0.4445833328 | U56: 10.66999999 | V56: 09 - nur an Schultagen | W56: 194 | X56: 2606 | Y56: 505.564 | Z56: 0 | AA56: 0 | AB56: OlllllOOOOOOOOOOOOOOOOlllllOOlllllOOlllllOOlllllOOlllllOOlllllOOlllllOOlllllOOlllllOOlllllOOlllllOOlllllOOlllllOOOOOOOOOOOOOOOOOllllOOlllOlOOlllllOOlllllOOlllllOOlllOlOOlllllOOOllllOOlllOlOOlllllOOlllllOOOOOOOOOOOOOOOOOOOOOOOOOOOOOOOOOOOOOOOOOOOOlllllOOlllllOOlllllOOlllllOOlllllOOlllllOOllllOOOOOOOOOOOOOOOOOlllllOOlllllOOlllllOOlllllOOlllllOOlllllOOlllllOOlllllO | AC56: MO2 | AD56: Reinheim Bf # Niedernhausen # Brandau #
A57: REG | B57: 18 | C57: HEAG Verkehrs-GmbH | E57: 057_ | F57: 0 | G57: H | H57: Mo-Fr | I57: 1300 | K57: Modautal | L57: Solo-Überlandbus-NF | M57: 0 | N57: 0 | O57: 0 | P57: 0 | Q57: 0 | R57: 2000-01-01T13:03:30 | S57: 2000-01-01T13:26:00 | T57: 3.03125 | U57: 72.75 | V57: 09 - nur an Schultagen | W57: 194 | X57: 12719 | Y57: 2467.486 | Z57: 0 | AA57: 0 | AB57: OlllllOOOOOOOOOOOOOOOOlllllOOlllllOOlllllOOlllllOOlllllOOlllllOOlllllOOlllllOOlllllOOlllllOOlllllOOlllllOOlllllOOOOOOOOOOOOOOOOOllllOOlllOlOOlllllOOlllllOOlllllOOlllOlOOlllllOOOllllOOlllOlOOlllllOOlllllOOOOOOOOOOOOOOOOOOOOOOOOOOOOOOOOOOOOOOOOOOOOlllllOOlllllOOlllllOOlllllOOlllllOOlllllOOllllOOOOOOOOOOOOOOOOOlllllOOlllllOOlllllOOlllllOOlllllOOlllllOOlllllOOlllllO | AC57: MO2 | AD57: Reinheim Bf # Niedernhausen # Brandau #
A58: REG | B58: 18 | C58: HEAG Verkehrs-GmbH | E58: 057_ | F58: 0 | G58: H | H58: Mo-Fr | I58: 1300 | K58: Lautertal (Odenwald) | L58: Solo-Überlandbus-NF | M58: 0 | N58: 0 | O58: 0 | P58: 0 | Q58: 0 | R58: 2000-01-01T13:13:00 | S58: 2000-01-01T13:16:30 | T58: 0.4715277779 | U58: 11.31666667 | V58: 09 - nur an Schultagen | W58: 194 | X58: 2146 | Y58: 416.324 | Z58: 0 | AA58: 0 | AB58: OlllllOOOOOOOOOOOOOOOOlllllOOlllllOOlllllOOlllllOOlllllOOlllllOOlllllOOlllllOOlllllOOlllllOOlllllOOlllllOOlllllOOOOOOOOOOOOOOOOOllllOOlllOlOOlllllOOlllllOOlllllOOlllOlOOlllllOOOllllOOlllOlOOlllllOOlllllOOOOOOOOOOOOOOOOOOOOOOOOOOOOOOOOOOOOOOOOOOOOlllllOOlllllOOlllllOOlllllOOlllllOOlllllOOllllOOOOOOOOOOOOOOOOOlllllOOlllllOOlllllOOlllllOOlllllOOlllllOOlllllOOlllllO | AC58: MO2 | AD58: Reinheim Bf # Niedernhausen # Brandau #
A59: REG | B59: 18 | C59: HEAG Verkehrs-GmbH | E59: 057_ | F59: 0 | G59: H | H59: Mo-Fr | I59: 1301 | K59: Reinheim | L59: Solo-Überlandbus-NF | M59: 0 | N59: 0 | O59: 0 | P59: 0 | Q59: 0 | R59: 2000-01-01T12:45:00 | S59: 2000-01-01T12:50:00 | T59: 0.1874999998 | U59: 4.499999996 | V59: 10 - nicht an Schultagen | W59: 54 | X59: 2066 | Y59: 111.564 | Z59: 0 | AA59: 0 | AB59: OOOOOOOOlOOOlOOlOOllOOOOOOOOOOOOOOOOOOOOOOOOOOOOOOOOOOOOOOOOOOOOOOOOOOOOOOOOOOOOOOOOOOOOOOOOOOOOOOOOOOOOOOOOOOOOOlllllOOllllOOOOOOOOOOOOOOOOOOOOOOOOOOOOOOOOOOOOOOOOOOOOOOOOOOOOOOOOOOOOOOOOOOOOOOOOOOOOOOOOlllllOOlllllOOlllllOOlllllOOlllllOOlllllOOOOOOOOOOOOOOOOOOOOOOOOOOOOOOOOOOOOOOOOOOOOOOOOOOOlllllOOlllllOOOOOOOOOOOOOOOOOOOOOOOOOOOOOOOOOOOOOOOOOOOOOOOOOOOOOOOOO | AC59: MO2 | AD59: Reinheim Bf # Niedernhausen # Brandau #
A60: REG | B60: 18 | C60: HEAG Verkehrs-GmbH | E60: 057_ | F60: 0 | G60: H | H60: Mo-Fr | I60: 1301 | K60: Groß-Bieberau | L60: Solo-Überlandbus-NF | M60: 0 | N60: 0 | O60: 0 | P60: 0 | Q60: 0 | R60: 2000-01-01T12:50:00 | S60: 2000-01-01T12:58:30 | T60: 0.3187500003 | U60: 7.650000006 | V60: 10 - nicht an Schultagen | W60: 54 | X60: 3620 | Y60: 195.48 | Z60: 0 | AA60: 0 | AB60: OOOOOOOOlOOOlOOlOOllOOOOOOOOOOOOOOOOOOOOOOOOOOOOOOOOOOOOOOOOOOOOOOOOOOOOOOOOOOOOOOOOOOOOOOOOOOOOOOOOOOOOOOOOOOOOOlllllOOllllOOOOOOOOOOOOOOOOOOOOOOOOOOOOOOOOOOOOOOOOOOOOOOOOOOOOOOOOOOOOOOOOOOOOOOOOOOOOOOOOlllllOOlllllOOlllllOOlllllOOlllllOOlllllOOOOOOOOOOOOOOOOOOOOOOOOOOOOOOOOOOOOOOOOOOOOOOOOOOOlllllOOlllllOOOOOOOOOOOOOOOOOOOOOOOOOOOOOOOOOOOOOOOOOOOOOOOOOOOOOOOOO | AC60: MO2 | AD60: Reinheim Bf # Niedernhausen # Brandau #
A61: REG | B61: 18 | C61: HEAG Verkehrs-GmbH | E61: 057_ | F61: 0 | G61: H | H61: Mo-Fr | I61: 1301 | K61: Fischbachtal | L61: Solo-Überlandbus-NF | M61: 0 | N61: 0 | O61: 0 | P61: 0 | Q61: 0 | R61: 2000-01-01T12:58:30 | S61: 2000-01-01T13:06:54 | T61: 0.3149999998 | U61: 7.559999994 | V61: 10 - nicht an Schultagen | W61: 54 | X61: 6649 | Y61: 359.046 | Z61: 0 | AA61: 0 | AB61: OOOOOOOOlOOOlOOlOOllOOOOOOOOOOOOOOOOOOOOOOOOOOOOOOOOOOOOOOOOOOOOOOOOOOOOOOOOOOOOOOOOOOOOOOOOOOOOOOOOOOOOOOOOOOOOOlllllOOllllOOOOOOOOOOOOOOOOOOOOOOOOOOOOOOOOOOOOOOOOOOOOOOOOOOOOOOOOOOOOOOOOOOOOOOOOOOOOOOOOlllllOOlllllOOlllllOOlllllOOlllllOOlllllOOOOOOOOOOOOOOOOOOOOOOOOOOOOOOOOOOOOOOOOOOOOOOOOOOOlllllOOlllllOOOOOOOOOOOOOOOOOOOOOOOOOOOOOOOOOOOOOOOOOOOOOOOOOOOOOOOOO | AC61: MO2 | AD61: Reinheim Bf # Niedernhausen # Brandau #
A62: REG | B62: 18 | C62: HEAG Verkehrs-GmbH | E62: 057_ | F62: 0 | G62: H | H62: Mo-Fr | I62: 1301 | K62: Modautal | L62: Solo-Überlandbus-NF | M62: 0 | N62: 0 | O62: 0 | P62: 0 | Q62: 0 | R62: 2000-01-01T13:06:54 | S62: 2000-01-01T13:17:00 | T62: 0.3787500001 | U62: 9.090000003 | V62: 10 - nicht an Schultagen | W62: 54 | X62: 7472 | Y62: 403.488 | Z62: 0 | AA62: 0 | AB62: OOOOOOOOlOOOlOOlOOllOOOOOOOOOOOOOOOOOOOOOOOOOOOOOOOOOOOOOOOOOOOOOOOOOOOOOOOOOOOOOOOOOOOOOOOOOOOOOOOOOOOOOOOOOOOOOlllllOOllllOOOOOOOOOOOOOOOOOOOOOOOOOOOOOOOOOOOOOOOOOOOOOOOOOOOOOOOOOOOOOOOOOOOOOOOOOOOOOOOOlllllOOlllllOOlllllOOlllllOOlllllOOlllllOOOOOOOOOOOOOOOOOOOOOOOOOOOOOOOOOOOOOOOOOOOOOOOOOOOlllllOOlllllOOOOOOOOOOOOOOOOOOOOOOOOOOOOOOOOOOOOOOOOOOOOOOOOOOOOOOOOO | AC62: MO2 | AD62: Reinheim Bf # Niedernhausen # Brandau #
A63: REG | B63: 18 | C63: HEAG Verkehrs-GmbH | E63: 057_ | F63: 0 | G63: H | H63: Mo-Fr | I63: 1302 | K63: Reinheim | L63: Solo-Überlandbus-NF | M63: 0 | N63: 0 | O63: 0 | P63: 0 | Q63: 0 | R63: 2000-01-01T12:50:00 | S63: 2000-01-01T12:55:00 | T63: 0.6736111119 | U63: 16.16666669 | V63: 09 - nur an Schultagen | W63: 194 | X63: 2066 | Y63: 400.804 | Z63: 0 | AA63: 0 | AB63: OlllllOOOOOOOOOOOOOOOOlllllOOlllllOOlllllOOlllllOOlllllOOlllllOOlllllOOlllllOOlllllOOlllllOOlllllOOlllllOOlllllOOOOOOOOOOOOOOOOOllllOOlllOlOOlllllOOlllllOOlllllOOlllOlOOlllllOOOllllOOlllOlOOlllllOOlllllOOOOOOOOOOOOOOOOOOOOOOOOOOOOOOOOOOOOOOOOOOOOlllllOOlllllOOlllllOOlllllOOlllllOOlllllOOllllOOOOOOOOOOOOOOOOOlllllOOlllllOOlllllOOlllllOOlllllOOlllllOOlllllOOlllllO | AC63: MO2 | AD63: Reinheim Bf # Niedernhausen # Brandau #
A64: REG | B64: 18 | C64: HEAG Verkehrs-GmbH | E64: 057_ | F64: 0 | G64: H | H64: Mo-Fr | I64: 1302 | K64: Groß-Bieberau | L64: Solo-Überlandbus-NF | M64: 0 | N64: 0 | O64: 0 | P64: 0 | Q64: 0 | R64: 2000-01-01T12:55:00 | S64: 2000-01-01T13:06:30 | T64: 1.549305555 | U64: 37.18333332 | V64: 09 - nur an Schultagen | W64: 194 | X64: 4680 | Y64: 907.92 | Z64: 0 | AA64: 0 | AB64: OlllllOOOOOOOOOOOOOOOOlllllOOlllllOOlllllOOlllllOOlllllOOlllllOOlllllOOlllllOOlllllOOlllllOOlllllOOlllllOOlllllOOOOOOOOOOOOOOOOOllllOOlllOlOOlllllOOlllllOOlllllOOlllOlOOlllllOOOllllOOlllOlOOlllllOOlllllOOOOOOOOOOOOOOOOOOOOOOOOOOOOOOOOOOOOOOOOOOOOlllllOOlllllOOlllllOOlllllOOlllllOOlllllOOllllOOOOOOOOOOOOOOOOOlllllOOlllllOOlllllOOlllllOOlllllOOlllllOOlllllOOlllllO | AC64: MO2 | AD64: Reinheim Bf # Niedernhausen # Brandau #
A65: REG | B65: 18 | C65: HEAG Verkehrs-GmbH | E65: 057_ | F65: 0 | G65: H | H65: Mo-Fr | I65: 1302 | K65: Fischbachtal | L65: Solo-Überlandbus-NF | M65: 0 | N65: 0 | O65: 0 | P65: 0 | Q65: 0 | R65: 2000-01-01T13:06:30 | S65: 2000-01-01T13:19:42 | T65: 1.778333334 | U65: 42.68000002 | V65: 09 - nur an Schultagen | W65: 194 | X65: 8940 | Y65: 1734.36 | Z65: 0 | AA65: 0 | AB65: OlllllOOOOOOOOOOOOOOOOlllllOOlllllOOlllllOOlllllOOlllllOOlllllOOlllllOOlllllOOlllllOOlllllOOlllllOOlllllOOlllllOOOOOOOOOOOOOOOOOllllOOlllOlOOlllllOOlllllOOlllllOOlllOlOOlllllOOOllllOOlllOlOOlllllOOlllllOOOOOOOOOOOOOOOOOOOOOOOOOOOOOOOOOOOOOOOOOOOOlllllOOlllllOOlllllOOlllllOOlllllOOlllllOOllllOOOOOOOOOOOOOOOOOlllllOOlllllOOlllllOOlllllOOlllllOOlllllOOlllllOOlllllO | AC65: MO2 | AD65: Reinheim Bf # Niedernhausen # Brandau #
A66: REG | B66: 18 | C66: HEAG Verkehrs-GmbH | E66: 057_ | F66: 0 | G66: H | H66: Mo-Fr | I66: 1302 | K66: Modautal | L66: Solo-Überlandbus-NF | M66: 0 | N66: 0 | O66: 0 | P66: 0 | Q66: 0 | R66: 2000-01-01T13:19:42 | S66: 2000-01-01T13:35:00 | T66: 2.061249999 | U66: 49.46999998 | V66: 09 - nur an Schultagen | W66: 194 | X66: 10221 | Y66: 1982.874 | Z66: 0 | AA66: 0 | AB66: OlllllOOOOOOOOOOOOOOOOlllllOOlllllOOlllllOOlllllOOlllllOOlllllOOlllllOOlllllOOlllllOOlllllOOlllllOOlllllOOlllllOOOOOOOOOOOOOOOOOllllOOlllOlOOlllllOOlllllOOlllllOOlllOlOOlllllOOOllllOOlllOlOOlllllOOlllllOOOOOOOOOOOOOOOOOOOOOOOOOOOOOOOOOOOOOOOOOOOOlllllOOlllllOOlllllOOlllllOOlllllOOlllllOOllllOOOOOOOOOOOOOOOOOlllllOOlllllOOlllllOOlllllOOlllllOOlllllOOlllllOOlllllO | AC66: MO2 | AD66: Reinheim Bf # Niedernhausen # Brandau #
A67: REG | B67: 18 | C67: HEAG Verkehrs-GmbH | E67: 057_ | F67: 0 | G67: H | H67: Mo-Fr | I67: 1302 | K67: Lautertal (Odenwald) | L67: Solo-Überlandbus-NF | M67: 0 | N67: 0 | O67: 0 | P67: 0 | Q67: 0 | R67: 2000-01-01T13:35:00 | S67: 2000-01-01T13:46:00 | T67: 1.481944445 | U67: =T67*24 -> 35.56666668 | V67: 09 - nur an Schultagen | W67: 194 | X67: 5965 | Y67: 1157.21 | Z67: 0 | AA67: 0 | AB67: OlllllOOOOOOOOOOOOOOOOlllllOOlllllOOlllllOOlllllOOlllllOOlllllOOlllllOOlllllOOlllllOOlllllOOlllllOOlllllOOlllllOOOOOOOOOOOOOOOOOllllOOlllOlOOlllllOOlllllOOlllllOOlllOlOOlllllOOOllllOOlllOlOOlllllOOlllllOOOOOOOOOOOOOOOOOOOOOOOOOOOOOOOOOOOOOOOOOOOOlllllOOlllllOOlllllOOlllllOOlllllOOlllllOOllllOOOOOOOOOOOOOOOOOlllllOOlllllOOlllllOOlllllOOlllllOOlllllOOlllllOOlllllO | AC67: MO2 | AD67: Reinheim Bf # Niedernhausen # Brandau #
A68: REG | B68: 18 | C68: HEAG Verkehrs-GmbH | E68: 057_ | F68: 0 | G68: H | H68: Mo-Fr | I68: 1312 | K68: Reinheim | L68: Solo-Überlandbus-NF | M68: 0 | N68: 0 | O68: 0 | P68: 0 | Q68: 0 | R68: 2000-01-01T13:12:00 | S68: 2000-01-01T13:17:00 | T68: 0.1874999998 | U68: 4.499999996 | V68: 10 - nicht an Schultagen | W68: 54 | X68: 2066 | Y68: 111.564 | Z68: 0 | AA68: 0 | AB68: OOOOOOOOlOOOlOOlOOllOOOOOOOOOOOOOOOOOOOOOOOOOOOOOOOOOOOOOOOOOOOOOOOOOOOOOOOOOOOOOOOOOOOOOOOOOOOOOOOOOOOOOOOOOOOOOlllllOOllllOOOOOOOOOOOOOOOOOOOOOOOOOOOOOOOOOOOOOOOOOOOOOOOOOOOOOOOOOOOOOOOOOOOOOOOOOOOOOOOOlllllOOlllllOOlllllOOlllllOOlllllOOlllllOOOOOOOOOOOOOOOOOOOOOOOOOOOOOOOOOOOOOOOOOOOOOOOOOOOlllllOOlllllOOOOOOOOOOOOOOOOOOOOOOOOOOOOOOOOOOOOOOOOOOOOOOOOOOOOOOOOO | AC68: MO2 | AD68: Reinheim Bf # Niedernhausen # Brandau #
A69: REG | B69: 18 | C69: HEAG Verkehrs-GmbH | E69: 057_ | F69: 0 | G69: H | H69: Mo-Fr | I69: 1312 | K69: Groß-Bieberau | L69: Solo-Überlandbus-NF | M69: 0 | N69: 0 | O69: 0 | P69: 0 | Q69: 0 | R69: 2000-01-01T13:17:00 | S69: 2000-01-01T13:25:30 | T69: 0.3187499999 | U69: 7.649999997 | V69: 10 - nicht an Schultagen | W69: 54 | X69: 3620 | Y69: 195.48 | Z69: 0 | AA69: 0 | AB69: OOOOOOOOlOOOlOOlOOllOOOOOOOOOOOOOOOOOOOOOOOOOOOOOOOOOOOOOOOOOOOOOOOOOOOOOOOOOOOOOOOOOOOOOOOOOOOOOOOOOOOOOOOOOOOOOlllllOOllllOOOOOOOOOOOOOOOOOOOOOOOOOOOOOOOOOOOOOOOOOOOOOOOOOOOOOOOOOOOOOOOOOOOOOOOOOOOOOOOOlllllOOlllllOOlllllOOlllllOOlllllOOlllllOOOOOOOOOOOOOOOOOOOOOOOOOOOOOOOOOOOOOOOOOOOOOOOOOOOlllllOOlllllOOOOOOOOOOOOOOOOOOOOOOOOOOOOOOOOOOOOOOOOOOOOOOOOOOOOOOOOO | AC69: MO2 | AD69: Reinheim Bf # Niedernhausen # Brandau #
A70: REG | B70: 18 | C70: HEAG Verkehrs-GmbH | E70: 057_ | F70: 0 | G70: H | H70: Mo-Fr | I70: 1312 | K70: Fischbachtal | L70: Solo-Überlandbus-NF | M70: 0 | N70: 0 | O70: 0 | P70: 0 | Q70: 0 | R70: 2000-01-01T13:25:30 | S70: 2000-01-01T13:33:54 | T70: 0.3150000002 | U70: 7.560000004 | V70: 10 - nicht an Schultagen | W70: 54 | X70: 6649 | Y70: 359.046 | Z70: 0 | AA70: 0 | AB70: OOOOOOOOlOOOlOOlOOllOOOOOOOOOOOOOOOOOOOOOOOOOOOOOOOOOOOOOOOOOOOOOOOOOOOOOOOOOOOOOOOOOOOOOOOOOOOOOOOOOOOOOOOOOOOOOlllllOOllllOOOOOOOOOOOOOOOOOOOOOOOOOOOOOOOOOOOOOOOOOOOOOOOOOOOOOOOOOOOOOOOOOOOOOOOOOOOOOOOOlllllOOlllllOOlllllOOlllllOOlllllOOlllllOOOOOOOOOOOOOOOOOOOOOOOOOOOOOOOOOOOOOOOOOOOOOOOOOOOlllllOOlllllOOOOOOOOOOOOOOOOOOOOOOOOOOOOOOOOOOOOOOOOOOOOOOOOOOOOOOOOO | AC70: MO2 | AD70: Reinheim Bf # Niedernhausen # Brandau #
A71: REG | B71: 18 | C71: HEAG Verkehrs-GmbH | E71: 057_ | F71: 0 | G71: H | H71: Mo-Fr | I71: 1312 | K71: Modautal | L71: Solo-Überlandbus-NF | M71: 0 | N71: 0 | O71: 0 | P71: 0 | Q71: 0 | R71: 2000-01-01T13:33:54 | S71: 2000-01-01T13:47:00 | T71: 0.4912500001 | U71: 11.79 | V71: 10 - nicht an Schultagen | W71: 54 | X71: 8797 | Y71: 475.038 | Z71: 0 | AA71: 0 | AB71: OOOOOOOOlOOOlOOlOOllOOOOOOOOOOOOOOOOOOOOOOOOOOOOOOOOOOOOOOOOOOOOOOOOOOOOOOOOOOOOOOOOOOOOOOOOOOOOOOOOOOOOOOOOOOOOOlllllOOllllOOOOOOOOOOOOOOOOOOOOOOOOOOOOOOOOOOOOOOOOOOOOOOOOOOOOOOOOOOOOOOOOOOOOOOOOOOOOOOOOlllllOOlllllOOlllllOOlllllOOlllllOOlllllOOOOOOOOOOOOOOOOOOOOOOOOOOOOOOOOOOOOOOOOOOOOOOOOOOOlllllOOlllllOOOOOOOOOOOOOOOOOOOOOOOOOOOOOOOOOOOOOOOOOOOOOOOOOOOOOOOOO | AC71: MO2 | AD71: Reinheim Bf # Niedernhausen # Brandau #
A72: REG | B72: 18 | C72: HEAG Verkehrs-GmbH | E72: 057_ | F72: 0 | G72: H | H72: Mo-Fr | I72: 1312 | K72: Lautertal (Odenwald) | L72: Solo-Überlandbus-NF | M72: 0 | N72: 0 | O72: 0 | P72: 0 | Q72: 0 | R72: 2000-01-01T13:47:00 | S72: 2000-01-01T13:58:00 | T72: 0.4124999998 | U72: 9.899999995 | V72: 10 - nicht an Schultagen | W72: 54 | X72: 5965 | Y72: 322.11 | Z72: 0 | AA72: 0 | AB72: OOOOOOOOlOOOlOOlOOllOOOOOOOOOOOOOOOOOOOOOOOOOOOOOOOOOOOOOOOOOOOOOOOOOOOOOOOOOOOOOOOOOOOOOOOOOOOOOOOOOOOOOOOOOOOOOlllllOOllllOOOOOOOOOOOOOOOOOOOOOOOOOOOOOOOOOOOOOOOOOOOOOOOOOOOOOOOOOOOOOOOOOOOOOOOOOOOOOOOOlllllOOlllllOOlllllOOlllllOOlllllOOlllllOOOOOOOOOOOOOOOOOOOOOOOOOOOOOOOOOOOOOOOOOOOOOOOOOOOlllllOOlllllOOOOOOOOOOOOOOOOOOOOOOOOOOOOOOOOOOOOOOOOOOOOOOOOOOOOOOOOO | AC72: MO2 | AD72: Reinheim Bf # Niedernhausen # Brandau #
A73: REG | B73: 18 | C73: HEAG Verkehrs-GmbH | E73: 057_ | F73: 0 | G73: H | H73: Mo-Fr | I73: 1322 | K73: Groß-Bieberau | L73: Solo-Überlandbus-NF | M73: 0 | N73: 0 | O73: 0 | P73: 0 | Q73: 0 | R73: 2000-01-01T13:22:00 | S73: 2000-01-01T13:29:30 | T73: 1.010416667 | U73: 24.25000001 | V73: 09 - nur an Schultagen | W73: 194 | X73: 2813 | Y73: 545.722 | Z73: 0 | AA73: 0 | AB73: OlllllOOOOOOOOOOOOOOOOlllllOOlllllOOlllllOOlllllOOlllllOOlllllOOlllllOOlllllOOlllllOOlllllOOlllllOOlllllOOlllllOOOOOOOOOOOOOOOOOllllOOlllOlOOlllllOOlllllOOlllllOOlllOlOOlllllOOOllllOOlllOlOOlllllOOlllllOOOOOOOOOOOOOOOOOOOOOOOOOOOOOOOOOOOOOOOOOOOOlllllOOlllllOOlllllOOlllllOOlllllOOlllllOOllllOOOOOOOOOOOOOOOOOlllllOOlllllOOlllllOOlllllOOlllllOOlllllOOlllllOOlllllO | AC73: MO2 | AD73: Reinheim Bf # Niedernhausen # Brandau #
A74: REG | B74: 18 | C74: HEAG Verkehrs-GmbH | E74: 057_ | F74: 0 | G74: H | H74: Mo-Fr | I74: 1322 | K74: Fischbachtal | L74: Solo-Überlandbus-NF | M74: 0 | N74: 0 | O74: 0 | P74: 0 | Q74: 0 | R74: 2000-01-01T13:29:30 | S74: 2000-01-01T13:42:42 | T74: 1.778333334 | U74: 42.68000002 | V74: 09 - nur an Schultagen | W74: 194 | X74: 8940 | Y74: 1734.36 | Z74: 0 | AA74: 0 | AB74: OlllllOOOOOOOOOOOOOOOOlllllOOlllllOOlllllOOlllllOOlllllOOlllllOOlllllOOlllllOOlllllOOlllllOOlllllOOlllllOOlllllOOOOOOOOOOOOOOOOOllllOOlllOlOOlllllOOlllllOOlllllOOlllOlOOlllllOOOllllOOlllOlOOlllllOOlllllOOOOOOOOOOOOOOOOOOOOOOOOOOOOOOOOOOOOOOOOOOOOlllllOOlllllOOlllllOOlllllOOlllllOOlllllOOllllOOOOOOOOOOOOOOOOOlllllOOlllllOOlllllOOlllllOOlllllOOlllllOOlllllOOlllllO | AC74: MO2 | AD74: Reinheim Bf # Niedernhausen # Brandau #
A75: REG | B75: 18 | C75: HEAG Verkehrs-GmbH | E75: 057_ | F75: 0 | G75: H | H75: Mo-Fr | I75: 1322 | K75: Modautal | L75: Solo-Überlandbus-NF | M75: 0 | N75: 0 | O75: 0 | P75: 0 | Q75: 0 | R75: 2000-01-01T13:42:42 | S75: 2000-01-01T13:58:00 | T75: 2.061249999 | U75: 49.46999998 | V75: 09 - nur an Schultagen | W75: 194 | X75: 10221 | Y75: 1982.874 | Z75: 0 | AA75: 0 | AB75: OlllllOOOOOOOOOOOOOOOOlllllOOlllllOOlllllOOlllllOOlllllOOlllllOOlllllOOlllllOOlllllOOlllllOOlllllOOlllllOOlllllOOOOOOOOOOOOOOOOOllllOOlllOlOOlllllOOlllllOOlllllOOlllOlOOlllllOOOllllOOlllOlOOlllllOOlllllOOOOOOOOOOOOOOOOOOOOOOOOOOOOOOOOOOOOOOOOOOOOlllllOOlllllOOlllllOOlllllOOlllllOOlllllOOllllOOOOOOOOOOOOOOOOOlllllOOlllllOOlllllOOlllllOOlllllOOlllllOOlllllOOlllllO | AC75: MO2 | AD75: Reinheim Bf # Niedernhausen # Brandau #
A76: REG | B76: 18 | C76: HEAG Verkehrs-GmbH | E76: 057_ | F76: 0 | G76: H | H76: Mo-Fr | I76: 1322 | K76: Lautertal (Odenwald) | L76: Solo-Überlandbus-NF | M76: 0 | N76: 0 | O76: 0 | P76: 0 | Q76: 0 | R76: 2000-01-01T13:58:00 | S76: 2000-01-01T14:09:00 | T76: 1.481944445 | U76: 35.56666668 | V76: 09 - nur an Schultagen | W76: 194 | X76: 5965 | Y76: 1157.21 | Z76: 0 | AA76: 0 | AB76: OlllllOOOOOOOOOOOOOOOOlllllOOlllllOOlllllOOlllllOOlllllOOlllllOOlllllOOlllllOOlllllOOlllllOOlllllOOlllllOOlllllOOOOOOOOOOOOOOOOOllllOOlllOlOOlllllOOlllllOOlllllOOlllOlOOlllllOOOllllOOlllOlOOlllllOOlllllOOOOOOOOOOOOOOOOOOOOOOOOOOOOOOOOOOOOOOOOOOOOlllllOOlllllOOlllllOOlllllOOlllllOOlllllOOllllOOOOOOOOOOOOOOOOOlllllOOlllllOOlllllOOlllllOOlllllOOlllllOOlllllOOlllllO | AC76: MO2 | AD76: Reinheim Bf # Niedernhausen # Brandau #
A77: REG | B77: 18 | C77: HEAG Verkehrs-GmbH | E77: 057_ | F77: 0 | G77: H | H77: Mo-Fr | I77: 1328 | K77: Reinheim | L77: Solo-Überlandbus-NF | M77: 0 | N77: 0 | O77: 0 | P77: 0 | Q77: 0 | R77: 2000-01-01T13:28:00 | S77: 2000-01-01T13:33:00 | T77: 0.6736111105 | U77: 16.16666665 | V77: 09 - nur an Schultagen | W77: 194 | X77: 2066 | Y77: 400.804 | Z77: 0 | AA77: 0 | AB77: OlllllOOOOOOOOOOOOOOOOlllllOOlllllOOlllllOOlllllOOlllllOOlllllOOlllllOOlllllOOlllllOOlllllOOlllllOOlllllOOlllllOOOOOOOOOOOOOOOOOllllOOlllOlOOlllllOOlllllOOlllllOOlllOlOOlllllOOOllllOOlllOlOOlllllOOlllllOOOOOOOOOOOOOOOOOOOOOOOOOOOOOOOOOOOOOOOOOOOOlllllOOlllllOOlllllOOlllllOOlllllOOlllllOOllllOOOOOOOOOOOOOOOOOlllllOOlllllOOlllllOOlllllOOlllllOOlllllOOlllllOOlllllO | AC77: MO2 | AD77: Reinheim Bf # Niedernhausen # Brandau #
A78: REG | B78: 18 | C78: HEAG Verkehrs-GmbH | E78: 057_ | F78: 0 | G78: H | H78: Mo-Fr | I78: 1328 | K78: Groß-Bieberau | L78: Solo-Überlandbus-NF | M78: 0 | N78: 0 | O78: 0 | P78: 0 | Q78: 0 | R78: 2000-01-01T13:33:00 | S78: 2000-01-01T13:37:00 | T78: 0.5388888892 | U78: 12.93333334 | V78: 09 - nur an Schultagen | W78: 194 | X78: 1867 | Y78: 362.198 | Z78: 0 | AA78: 0 | AB78: OlllllOOOOOOOOOOOOOOOOlllllOOlllllOOlllllOOlllllOOlllllOOlllllOOlllllOOlllllOOlllllOOlllllOOlllllOOlllllOOlllllOOOOOOOOOOOOOOOOOllllOOlllOlOOlllllOOlllllOOlllllOOlllOlOOlllllOOOllllOOlllOlOOlllllOOlllllOOOOOOOOOOOOOOOOOOOOOOOOOOOOOOOOOOOOOOOOOOOOlllllOOlllllOOlllllOOlllllOOlllllOOlllllOOllllOOOOOOOOOOOOOOOOOlllllOOlllllOOlllllOOlllllOOlllllOOlllllOOlllllOOlllllO | AC78: MO2 | AD78: Reinheim Bf # Niedernhausen # Brandau #
A79: REG | B79: 18 | C79: HEAG Verkehrs-GmbH | E79: 057_ | F79: 0 | G79: H | H79: Mo-Fr | I79: 1411 | K79: Modautal | L79: Solo-Überlandbus-NF | M79: 0 | N79: 0 | O79: 0 | P79: 0 | Q79: 0 | R79: 2000-01-01T14:14:30 | S79: 2000-01-01T14:37:00 | T79: 3.03125 | U79: 72.75 | V79: 09 - nur an Schultagen | W79: 194 | X79: 12719 | Y79: 2467.486 | Z79: 0 | AA79: 0 | AB79: OlllllOOOOOOOOOOOOOOOOlllllOOlllllOOlllllOOlllllOOlllllOOlllllOOlllllOOlllllOOlllllOOlllllOOlllllOOlllllOOlllllOOOOOOOOOOOOOOOOOllllOOlllOlOOlllllOOlllllOOlllllOOlllOlOOlllllOOOllllOOlllOlOOlllllOOlllllOOOOOOOOOOOOOOOOOOOOOOOOOOOOOOOOOOOOOOOOOOOOlllllOOlllllOOlllllOOlllllOOlllllOOlllllOOllllOOOOOOOOOOOOOOOOOlllllOOlllllOOlllllOOlllllOOlllllOOlllllOOlllllOOlllllO | AC79: MO2 | AD79: Reinheim Bf # Niedernhausen # Brandau #
A80: REG | B80: 18 | C80: HEAG Verkehrs-GmbH | E80: 057_ | F80: 0 | G80: H | H80: Mo-Fr | I80: 1411 | K80: Lautertal (Odenwald) | L80: Solo-Überlandbus-NF | M80: 0 | N80: 0 | O80: 0 | P80: 0 | Q80: 0 | R80: 2000-01-01T14:24:00 | S80: 2000-01-01T14:27:30 | T80: 0.4715277779 | U80: 11.31666667 | V80: 09 - nur an Schultagen | W80: 194 | X80: 2146 | Y80: 416.324 | Z80: 0 | AA80: 0 | AB80: OlllllOOOOOOOOOOOOOOOOlllllOOlllllOOlllllOOlllllOOlllllOOlllllOOlllllOOlllllOOlllllOOlllllOOlllllOOlllllOOlllllOOOOOOOOOOOOOOOOOllllOOlllOlOOlllllOOlllllOOlllllOOlllOlOOlllllOOOllllOOlllOlOOlllllOOlllllOOOOOOOOOOOOOOOOOOOOOOOOOOOOOOOOOOOOOOOOOOOOlllllOOlllllOOlllllOOlllllOOlllllOOlllllOOllllOOOOOOOOOOOOOOOOOlllllOOlllllOOlllllOOlllllOOlllllOOlllllOOlllllOOlllllO | AC80: MO2 | AD80: Reinheim Bf # Niedernhausen # Brandau #
A81: REG | B81: 18 | C81: HEAG Verkehrs-GmbH | E81: 057_ | F81: 0 | G81: H | H81: Mo-Fr | I81: 1412 | K81: Reinheim | L81: Solo-Überlandbus-NF | M81: 0 | N81: 0 | O81: 0 | P81: 0 | Q81: 0 | R81: 2000-01-01T14:12:00 | S81: 2000-01-01T14:17:00 | T81: 0.1874999998 | U81: 4.499999996 | V81: 10 - nicht an Schultagen | W81: 54 | X81: 2066 | Y81: 111.564 | Z81: 0 | AA81: 0 | AB81: OOOOOOOOlOOOlOOlOOllOOOOOOOOOOOOOOOOOOOOOOOOOOOOOOOOOOOOOOOOOOOOOOOOOOOOOOOOOOOOOOOOOOOOOOOOOOOOOOOOOOOOOOOOOOOOOlllllOOllllOOOOOOOOOOOOOOOOOOOOOOOOOOOOOOOOOOOOOOOOOOOOOOOOOOOOOOOOOOOOOOOOOOOOOOOOOOOOOOOOlllllOOlllllOOlllllOOlllllOOlllllOOlllllOOOOOOOOOOOOOOOOOOOOOOOOOOOOOOOOOOOOOOOOOOOOOOOOOOOlllllOOlllllOOOOOOOOOOOOOOOOOOOOOOOOOOOOOOOOOOOOOOOOOOOOOOOOOOOOOOOOO | AC81: MO2 | AD81: Reinheim Bf # Niedernhausen # Brandau #
A82: REG | B82: 18 | C82: HEAG Verkehrs-GmbH | E82: 057_ | F82: 0 | G82: H | H82: Mo-Fr | I82: 1412 | K82: Groß-Bieberau | L82: Solo-Überlandbus-NF | M82: 0 | N82: 0 | O82: 0 | P82: 0 | Q82: 0 | R82: 2000-01-01T14:17:00 | S82: 2000-01-01T14:25:30 | T82: 0.3187500003 | U82: 7.650000006 | V82: 10 - nicht an Schultagen | W82: 54 | X82: 3620 | Y82: 195.48 | Z82: 0 | AA82: 0 | AB82: OOOOOOOOlOOOlOOlOOllOOOOOOOOOOOOOOOOOOOOOOOOOOOOOOOOOOOOOOOOOOOOOOOOOOOOOOOOOOOOOOOOOOOOOOOOOOOOOOOOOOOOOOOOOOOOOlllllOOllllOOOOOOOOOOOOOOOOOOOOOOOOOOOOOOOOOOOOOOOOOOOOOOOOOOOOOOOOOOOOOOOOOOOOOOOOOOOOOOOOlllllOOlllllOOlllllOOlllllOOlllllOOlllllOOOOOOOOOOOOOOOOOOOOOOOOOOOOOOOOOOOOOOOOOOOOOOOOOOOlllllOOlllllOOOOOOOOOOOOOOOOOOOOOOOOOOOOOOOOOOOOOOOOOOOOOOOOOOOOOOOOO | AC82: MO2 | AD82: Reinheim Bf # Niedernhausen # Brandau #
A83: REG | B83: 18 | C83: HEAG Verkehrs-GmbH | E83: 057_ | F83: 0 | G83: H | H83: Mo-Fr | I83: 1412 | K83: Fischbachtal | L83: Solo-Überlandbus-NF | M83: 0 | N83: 0 | O83: 0 | P83: 0 | Q83: 0 | R83: 2000-01-01T14:25:30 | S83: 2000-01-01T14:33:54 | T83: 0.3149999998 | U83: 7.559999994 | V83: 10 - nicht an Schultagen | W83: 54 | X83: 6649 | Y83: 359.046 | Z83: 0 | AA83: 0 | AB83: OOOOOOOOlOOOlOOlOOllOOOOOOOOOOOOOOOOOOOOOOOOOOOOOOOOOOOOOOOOOOOOOOOOOOOOOOOOOOOOOOOOOOOOOOOOOOOOOOOOOOOOOOOOOOOOOlllllOOllllOOOOOOOOOOOOOOOOOOOOOOOOOOOOOOOOOOOOOOOOOOOOOOOOOOOOOOOOOOOOOOOOOOOOOOOOOOOOOOOOlllllOOlllllOOlllllOOlllllOOlllllOOlllllOOOOOOOOOOOOOOOOOOOOOOOOOOOOOOOOOOOOOOOOOOOOOOOOOOOlllllOOlllllOOOOOOOOOOOOOOOOOOOOOOOOOOOOOOOOOOOOOOOOOOOOOOOOOOOOOOOOO | AC83: MO2 | AD83: Reinheim Bf # Niedernhausen # Brandau #
A84: REG | B84: 18 | C84: HEAG Verkehrs-GmbH | E84: 057_ | F84: 0 | G84: H | H84: Mo-Fr | I84: 1412 | K84: Modautal | L84: Solo-Überlandbus-NF | M84: 0 | N84: 0 | O84: 0 | P84: 0 | Q84: 0 | R84: 2000-01-01T14:33:54 | S84: 2000-01-01T14:47:00 | T84: 0.4912500001 | U84: 11.79 | V84: 10 - nicht an Schultagen | W84: 54 | X84: 8797 | Y84: 475.038 | Z84: 0 | AA84: 0 | AB84: OOOOOOOOlOOOlOOlOOllOOOOOOOOOOOOOOOOOOOOOOOOOOOOOOOOOOOOOOOOOOOOOOOOOOOOOOOOOOOOOOOOOOOOOOOOOOOOOOOOOOOOOOOOOOOOOlllllOOllllOOOOOOOOOOOOOOOOOOOOOOOOOOOOOOOOOOOOOOOOOOOOOOOOOOOOOOOOOOOOOOOOOOOOOOOOOOOOOOOOlllllOOlllllOOlllllOOlllllOOlllllOOlllllOOOOOOOOOOOOOOOOOOOOOOOOOOOOOOOOOOOOOOOOOOOOOOOOOOOlllllOOlllllOOOOOOOOOOOOOOOOOOOOOOOOOOOOOOOOOOOOOOOOOOOOOOOOOOOOOOOOO | AC84: MO2 | AD84: Reinheim Bf # Niedernhausen # Brandau #
A85: REG | B85: 18 | C85: HEAG Verkehrs-GmbH | E85: 057_ | F85: 0 | G85: H | H85: Mo-Fr | I85: 1412 | K85: Lautertal (Odenwald) | L85: Solo-Überlandbus-NF | M85: 0 | N85: 0 | O85: 0 | P85: 0 | Q85: 0 | R85: 2000-01-01T14:47:00 | S85: 2000-01-01T14:58:00 | T85: 0.4125000002 | U85: 9.900000004 | V85: 10 - nicht an Schultagen | W85: 54 | X85: 5965 | Y85: 322.11 | Z85: 0 | AA85: 0 | AB85: OOOOOOOOlOOOlOOlOOllOOOOOOOOOOOOOOOOOOOOOOOOOOOOOOOOOOOOOOOOOOOOOOOOOOOOOOOOOOOOOOOOOOOOOOOOOOOOOOOOOOOOOOOOOOOOOlllllOOllllOOOOOOOOOOOOOOOOOOOOOOOOOOOOOOOOOOOOOOOOOOOOOOOOOOOOOOOOOOOOOOOOOOOOOOOOOOOOOOOOlllllOOlllllOOlllllOOlllllOOlllllOOlllllOOOOOOOOOOOOOOOOOOOOOOOOOOOOOOOOOOOOOOOOOOOOOOOOOOOlllllOOlllllOOOOOOOOOOOOOOOOOOOOOOOOOOOOOOOOOOOOOOOOOOOOOOOOOOOOOOOOO | AC85: MO2 | AD85: Reinheim Bf # Niedernhausen # Brandau #
A86: REG | B86: 18 | C86: HEAG Verkehrs-GmbH | E86: 057_ | F86: 0 | G86: H | H86: Mo-Fr | I86: 1413 | K86: Reinheim | L86: Solo-Überlandbus-NF | M86: 0 | N86: 0 | O86: 0 | P86: 0 | Q86: 0 | R86: 2000-01-01T14:12:00 | S86: 2000-01-01T14:17:00 | T86: 0.6736111105 | U86: 16.16666665 | V86: 09 - nur an Schultagen | W86: 194 | X86: 2066 | Y86: 400.804 | Z86: 0 | AA86: 0 | AB86: OlllllOOOOOOOOOOOOOOOOlllllOOlllllOOlllllOOlllllOOlllllOOlllllOOlllllOOlllllOOlllllOOlllllOOlllllOOlllllOOlllllOOOOOOOOOOOOOOOOOllllOOlllOlOOlllllOOlllllOOlllllOOlllOlOOlllllOOOllllOOlllOlOOlllllOOlllllOOOOOOOOOOOOOOOOOOOOOOOOOOOOOOOOOOOOOOOOOOOOlllllOOlllllOOlllllOOlllllOOlllllOOlllllOOllllOOOOOOOOOOOOOOOOOlllllOOlllllOOlllllOOlllllOOlllllOOlllllOOlllllOOlllllO | AC86: MO2 | AD86: Reinheim Bf # Niedernhausen # Brandau #
A87: REG | B87: 18 | C87: HEAG Verkehrs-GmbH | E87: 057_ | F87: 0 | G87: H | H87: Mo-Fr | I87: 1413 | K87: Groß-Bieberau | L87: Solo-Überlandbus-NF | M87: 0 | N87: 0 | O87: 0 | P87: 0 | Q87: 0 | R87: 2000-01-01T14:17:00 | S87: 2000-01-01T14:28:30 | T87: 1.549305556 | U87: 37.18333335 | V87: 09 - nur an Schultagen | W87: 194 | X87: 4680 | Y87: 907.92 | Z87: 0 | AA87: 0 | AB87: OlllllOOOOOOOOOOOOOOOOlllllOOlllllOOlllllOOlllllOOlllllOOlllllOOlllllOOlllllOOlllllOOlllllOOlllllOOlllllOOlllllOOOOOOOOOOOOOOOOOllllOOlllOlOOlllllOOlllllOOlllllOOlllOlOOlllllOOOllllOOlllOlOOlllllOOlllllOOOOOOOOOOOOOOOOOOOOOOOOOOOOOOOOOOOOOOOOOOOOlllllOOlllllOOlllllOOlllllOOlllllOOlllllOOllllOOOOOOOOOOOOOOOOOlllllOOlllllOOlllllOOlllllOOlllllOOlllllOOlllllOOlllllO | AC87: MO2 | AD87: Reinheim Bf # Niedernhausen # Brandau #
A88: REG | B88: 18 | C88: HEAG Verkehrs-GmbH | E88: 057_ | F88: 0 | G88: H | H88: Mo-Fr | I88: 1413 | K88: Fischbachtal | L88: Solo-Überlandbus-NF | M88: 0 | N88: 0 | O88: 0 | P88: 0 | Q88: 0 | R88: 2000-01-01T14:28:30 | S88: 2000-01-01T14:41:42 | T88: 1.778333333 | U88: 42.67999998 | V88: 09 - nur an Schultagen | W88: 194 | X88: 8940 | Y88: 1734.36 | Z88: 0 | AA88: 0 | AB88: OlllllOOOOOOOOOOOOOOOOlllllOOlllllOOlllllOOlllllOOlllllOOlllllOOlllllOOlllllOOlllllOOlllllOOlllllOOlllllOOlllllOOOOOOOOOOOOOOOOOllllOOlllOlOOlllllOOlllllOOlllllOOlllOlOOlllllOOOllllOOlllOlOOlllllOOlllllOOOOOOOOOOOOOOOOOOOOOOOOOOOOOOOOOOOOOOOOOOOOlllllOOlllllOOlllllOOlllllOOlllllOOlllllOOllllOOOOOOOOOOOOOOOOOlllllOOlllllOOlllllOOlllllOOlllllOOlllllOOlllllOOlllllO | AC88: MO2 | AD88: Reinheim Bf # Niedernhausen # Brandau #
A89: REG | B89: 18 | C89: HEAG Verkehrs-GmbH | E89: 057_ | F89: 0 | G89: H | H89: Mo-Fr | I89: 1413 | K89: Modautal | L89: Solo-Überlandbus-NF | M89: 0 | N89: 0 | O89: 0 | P89: 0 | Q89: 0 | R89: 2000-01-01T14:41:42 | S89: 2000-01-01T14:57:00 | T89: 2.061250001 | U89: 49.47000001 | V89: 09 - nur an Schultagen | W89: 194 | X89: 10221 | Y89: 1982.874 | Z89: 0 | AA89: 0 | AB89: OlllllOOOOOOOOOOOOOOOOlllllOOlllllOOlllllOOlllllOOlllllOOlllllOOlllllOOlllllOOlllllOOlllllOOlllllOOlllllOOlllllOOOOOOOOOOOOOOOOOllllOOlllOlOOlllllOOlllllOOlllllOOlllOlOOlllllOOOllllOOlllOlOOlllllOOlllllOOOOOOOOOOOOOOOOOOOOOOOOOOOOOOOOOOOOOOOOOOOOlllllOOlllllOOlllllOOlllllOOlllllOOlllllOOllllOOOOOOOOOOOOOOOOOlllllOOlllllOOlllllOOlllllOOlllllOOlllllOOlllllOOlllllO | AC89: MO2 | AD89: Reinheim Bf # Niedernhausen # Brandau #
A90: REG | B90: 18 | C90: HEAG Verkehrs-GmbH | E90: 057_ | F90: 0 | G90: H | H90: Mo-Fr | I90: 1413 | K90: Lautertal (Odenwald) | L90: Solo-Überlandbus-NF | M90: 0 | N90: 0 | O90: 0 | P90: 0 | Q90: 0 | R90: 2000-01-01T14:57:00 | S90: 2000-01-01T15:08:00 | T90: 1.481944445 | U90: 35.56666668 | V90: 09 - nur an Schultagen | W90: 194 | X90: 5965 | Y90: 1157.21 | Z90: 0 | AA90: 0 | AB90: OlllllOOOOOOOOOOOOOOOOlllllOOlllllOOlllllOOlllllOOlllllOOlllllOOlllllOOlllllOOlllllOOlllllOOlllllOOlllllOOlllllOOOOOOOOOOOOOOOOOllllOOlllOlOOlllllOOlllllOOlllllOOlllOlOOlllllOOOllllOOlllOlOOlllllOOlllllOOOOOOOOOOOOOOOOOOOOOOOOOOOOOOOOOOOOOOOOOOOOlllllOOlllllOOlllllOOlllllOOlllllOOlllllOOllllOOOOOOOOOOOOOOOOOlllllOOlllllOOlllllOOlllllOOlllllOOlllllOOlllllOOlllllO | AC90: MO2 | AD90: Reinheim Bf # Niedernhausen # Brandau #
A91: REG | B91: 18 | C91: HEAG Verkehrs-GmbH | E91: 057_ | F91: 0 | G91: H | H91: Mo-Fr | I91: 1511 | K91: Modautal | L91: Solo-Überlandbus-NF | M91: 0 | N91: 0 | O91: 0 | P91: 0 | Q91: 0 | R91: 2000-01-01T15:14:30 | S91: 2000-01-01T15:37:00 | T91: 3.03125 | U91: 72.75 | V91: 09 - nur an Schultagen | W91: 194 | X91: 12719 | Y91: 2467.486 | Z91: 0 | AA91: 0 | AB91: OlllllOOOOOOOOOOOOOOOOlllllOOlllllOOlllllOOlllllOOlllllOOlllllOOlllllOOlllllOOlllllOOlllllOOlllllOOlllllOOlllllOOOOOOOOOOOOOOOOOllllOOlllOlOOlllllOOlllllOOlllllOOlllOlOOlllllOOOllllOOlllOlOOlllllOOlllllOOOOOOOOOOOOOOOOOOOOOOOOOOOOOOOOOOOOOOOOOOOOlllllOOlllllOOlllllOOlllllOOlllllOOlllllOOllllOOOOOOOOOOOOOOOOOlllllOOlllllOOlllllOOlllllOOlllllOOlllllOOlllllOOlllllO | AC91: MO2 | AD91: Reinheim Bf # Niedernhausen # Brandau #
A92: REG | B92: 18 | C92: HEAG Verkehrs-GmbH | E92: 057_ | F92: 0 | G92: H | H92: Mo-Fr | I92: 1511 | K92: Lautertal (Odenwald) | L92: Solo-Überlandbus-NF | M92: 0 | N92: 0 | O92: 0 | P92: 0 | Q92: 0 | R92: 2000-01-01T15:24:00 | S92: 2000-01-01T15:27:30 | T92: 0.4715277765 | U92: 11.31666664 | V92: 09 - nur an Schultagen | W92: 194 | X92: 2146 | Y92: 416.324 | Z92: 0 | AA92: 0 | AB92: OlllllOOOOOOOOOOOOOOOOlllllOOlllllOOlllllOOlllllOOlllllOOlllllOOlllllOOlllllOOlllllOOlllllOOlllllOOlllllOOlllllOOOOOOOOOOOOOOOOOllllOOlllOlOOlllllOOlllllOOlllllOOlllOlOOlllllOOOllllOOlllOlOOlllllOOlllllOOOOOOOOOOOOOOOOOOOOOOOOOOOOOOOOOOOOOOOOOOOOlllllOOlllllOOlllllOOlllllOOlllllOOlllllOOllllOOOOOOOOOOOOOOOOOlllllOOlllllOOlllllOOlllllOOlllllOOlllllOOlllllOOlllllO | AC92: MO2 | AD92: Reinheim Bf # Niedernhausen # Brandau #
A93: REG | B93: 18 | C93: HEAG Verkehrs-GmbH | E93: 057_ | F93: 0 | G93: H | H93: Mo-Fr | I93: 1512 | K93: Reinheim | L93: Solo-Überlandbus-NF | M93: 0 | N93: 0 | O93: 0 | P93: 0 | Q93: 0 | R93: 2000-01-01T15:12:00 | S93: 2000-01-01T15:17:00 | T93: 0.1875000002 | U93: 4.500000005 | V93: 10 - nicht an Schultagen | W93: 54 | X93: 2066 | Y93: 111.564 | Z93: 0 | AA93: 0 | AB93: OOOOOOOOlOOOlOOlOOllOOOOOOOOOOOOOOOOOOOOOOOOOOOOOOOOOOOOOOOOOOOOOOOOOOOOOOOOOOOOOOOOOOOOOOOOOOOOOOOOOOOOOOOOOOOOOlllllOOllllOOOOOOOOOOOOOOOOOOOOOOOOOOOOOOOOOOOOOOOOOOOOOOOOOOOOOOOOOOOOOOOOOOOOOOOOOOOOOOOOlllllOOlllllOOlllllOOlllllOOlllllOOlllllOOOOOOOOOOOOOOOOOOOOOOOOOOOOOOOOOOOOOOOOOOOOOOOOOOOlllllOOlllllOOOOOOOOOOOOOOOOOOOOOOOOOOOOOOOOOOOOOOOOOOOOOOOOOOOOOOOOO | AC93: MO2 | AD93: Reinheim Bf # Niedernhausen # Brandau #
A94: REG | B94: 18 | C94: HEAG Verkehrs-GmbH | E94: 057_ | F94: 0 | G94: H | H94: Mo-Fr | I94: 1512 | K94: Groß-Bieberau | L94: Solo-Überlandbus-NF | M94: 0 | N94: 0 | O94: 0 | P94: 0 | Q94: 0 | R94: 2000-01-01T15:17:00 | S94: 2000-01-01T15:25:30 | T94: 0.3187499999 | U94: 7.649999997 | V94: 10 - nicht an Schultagen | W94: 54 | X94: 3620 | Y94: 195.48 | Z94: 0 | AA94: 0 | AB94: OOOOOOOOlOOOlOOlOOllOOOOOOOOOOOOOOOOOOOOOOOOOOOOOOOOOOOOOOOOOOOOOOOOOOOOOOOOOOOOOOOOOOOOOOOOOOOOOOOOOOOOOOOOOOOOOlllllOOllllOOOOOOOOOOOOOOOOOOOOOOOOOOOOOOOOOOOOOOOOOOOOOOOOOOOOOOOOOOOOOOOOOOOOOOOOOOOOOOOOlllllOOlllllOOlllllOOlllllOOlllllOOlllllOOOOOOOOOOOOOOOOOOOOOOOOOOOOOOOOOOOOOOOOOOOOOOOOOOOlllllOOlllllOOOOOOOOOOOOOOOOOOOOOOOOOOOOOOOOOOOOOOOOOOOOOOOOOOOOOOOOO | AC94: MO2 | AD94: Reinheim Bf # Niedernhausen # Brandau #
A95: REG | B95: 18 | C95: HEAG Verkehrs-GmbH | E95: 057_ | F95: 0 | G95: H | H95: Mo-Fr | I95: 1512 | K95: Fischbachtal | L95: Solo-Überlandbus-NF | M95: 0 | N95: 0 | O95: 0 | P95: 0 | Q95: 0 | R95: 2000-01-01T15:25:30 | S95: 2000-01-01T15:33:54 | T95: 0.3150000002 | U95: 7.560000004 | V95: 10 - nicht an Schultagen | W95: 54 | X95: 6649 | Y95: 359.046 | Z95: 0 | AA95: 0 | AB95: OOOOOOOOlOOOlOOlOOllOOOOOOOOOOOOOOOOOOOOOOOOOOOOOOOOOOOOOOOOOOOOOOOOOOOOOOOOOOOOOOOOOOOOOOOOOOOOOOOOOOOOOOOOOOOOOlllllOOllllOOOOOOOOOOOOOOOOOOOOOOOOOOOOOOOOOOOOOOOOOOOOOOOOOOOOOOOOOOOOOOOOOOOOOOOOOOOOOOOOlllllOOlllllOOlllllOOlllllOOlllllOOlllllOOOOOOOOOOOOOOOOOOOOOOOOOOOOOOOOOOOOOOOOOOOOOOOOOOOlllllOOlllllOOOOOOOOOOOOOOOOOOOOOOOOOOOOOOOOOOOOOOOOOOOOOOOOOOOOOOOOO | AC95: MO2 | AD95: Reinheim Bf # Niedernhausen # Brandau #
A96: REG | B96: 18 | C96: HEAG Verkehrs-GmbH | E96: 057_ | F96: 0 | G96: H | H96: Mo-Fr | I96: 1512 | K96: Modautal | L96: Solo-Überlandbus-NF | M96: 0 | N96: 0 | O96: 0 | P96: 0 | Q96: 0 | R96: 2000-01-01T15:33:54 | S96: 2000-01-01T15:47:00 | T96: 0.4912499997 | U96: 11.78999999 | V96: 10 - nicht an Schultagen | W96: 54 | X96: 8797 | Y96: 475.038 | Z96: 0 | AA96: 0 | AB96: OOOOOOOOlOOOlOOlOOllOOOOOOOOOOOOOOOOOOOOOOOOOOOOOOOOOOOOOOOOOOOOOOOOOOOOOOOOOOOOOOOOOOOOOOOOOOOOOOOOOOOOOOOOOOOOOlllllOOllllOOOOOOOOOOOOOOOOOOOOOOOOOOOOOOOOOOOOOOOOOOOOOOOOOOOOOOOOOOOOOOOOOOOOOOOOOOOOOOOOlllllOOlllllOOlllllOOlllllOOlllllOOlllllOOOOOOOOOOOOOOOOOOOOOOOOOOOOOOOOOOOOOOOOOOOOOOOOOOOlllllOOlllllOOOOOOOOOOOOOOOOOOOOOOOOOOOOOOOOOOOOOOOOOOOOOOOOOOOOOOOOO | AC96: MO2 | AD96: Reinheim Bf # Niedernhausen # Brandau #
A97: REG | B97: 18 | C97: HEAG Verkehrs-GmbH | E97: 057_ | F97: 0 | G97: H | H97: Mo-Fr | I97: 1512 | K97: Lautertal (Odenwald) | L97: Solo-Überlandbus-NF | M97: 0 | N97: 0 | O97: 0 | P97: 0 | Q97: 0 | R97: 2000-01-01T15:47:00 | S97: 2000-01-01T15:58:00 | T97: 0.4125000002 | U97: 9.900000004 | V97: 10 - nicht an Schultagen | W97: 54 | X97: 5965 | Y97: 322.11 | Z97: 0 | AA97: 0 | AB97: OOOOOOOOlOOOlOOlOOllOOOOOOOOOOOOOOOOOOOOOOOOOOOOOOOOOOOOOOOOOOOOOOOOOOOOOOOOOOOOOOOOOOOOOOOOOOOOOOOOOOOOOOOOOOOOOlllllOOllllOOOOOOOOOOOOOOOOOOOOOOOOOOOOOOOOOOOOOOOOOOOOOOOOOOOOOOOOOOOOOOOOOOOOOOOOOOOOOOOOlllllOOlllllOOlllllOOlllllOOlllllOOlllllOOOOOOOOOOOOOOOOOOOOOOOOOOOOOOOOOOOOOOOOOOOOOOOOOOOlllllOOlllllOOOOOOOOOOOOOOOOOOOOOOOOOOOOOOOOOOOOOOOOOOOOOOOOOOOOOOOOO | AC97: MO2 | AD97: Reinheim Bf # Niedernhausen # Brandau #
A98: REG | B98: 18 | C98: HEAG Verkehrs-GmbH | E98: 057_ | F98: 0 | G98: H | H98: Mo-Fr | I98: 1523 | K98: Reinheim | L98: Solo-Überlandbus-NF | M98: 0 | N98: 0 | O98: 0 | P98: 0 | Q98: 0 | R98: 2000-01-01T15:23:00 | S98: 2000-01-01T15:28:00 | T98: 0.6736111105 | U98: 16.16666665 | V98: 09 - nur an Schultagen | W98: 194 | X98: 2066 | Y98: 400.804 | Z98: 0 | AA98: 0 | AB98: OlllllOOOOOOOOOOOOOOOOlllllOOlllllOOlllllOOlllllOOlllllOOlllllOOlllllOOlllllOOlllllOOlllllOOlllllOOlllllOOlllllOOOOOOOOOOOOOOOOOllllOOlllOlOOlllllOOlllllOOlllllOOlllOlOOlllllOOOllllOOlllOlOOlllllOOlllllOOOOOOOOOOOOOOOOOOOOOOOOOOOOOOOOOOOOOOOOOOOOlllllOOlllllOOlllllOOlllllOOlllllOOlllllOOllllOOOOOOOOOOOOOOOOOlllllOOlllllOOlllllOOlllllOOlllllOOlllllOOlllllOOlllllO | AC98: MO2 | AD98: Reinheim Bf # Niedernhausen # Brandau #
A99: REG | B99: 18 | C99: HEAG Verkehrs-GmbH | E99: 057_ | F99: 0 | G99: H | H99: Mo-Fr | I99: 1523 | K99: Groß-Bieberau | L99: Solo-Überlandbus-NF | M99: 0 | N99: 0 | O99: 0 | P99: 0 | Q99: 0 | R99: 2000-01-01T15:28:00 | S99: 2000-01-01T15:39:30 | T99: 1.549305556 | U99: 37.18333335 | V99: 09 - nur an Schultagen | W99: 194 | X99: 4680 | Y99: 907.92 | Z99: 0 | AA99: 0 | AB99: OlllllOOOOOOOOOOOOOOOOlllllOOlllllOOlllllOOlllllOOlllllOOlllllOOlllllOOlllllOOlllllOOlllllOOlllllOOlllllOOlllllOOOOOOOOOOOOOOOOOllllOOlllOlOOlllllOOlllllOOlllllOOlllOlOOlllllOOOllllOOlllOlOOlllllOOlllllOOOOOOOOOOOOOOOOOOOOOOOOOOOOOOOOOOOOOOOOOOOOlllllOOlllllOOlllllOOlllllOOlllllOOlllllOOllllOOOOOOOOOOOOOOOOOlllllOOlllllOOlllllOOlllllOOlllllOOlllllOOlllllOOlllllO | AC99: MO2 | AD99: Reinheim Bf # Niedernhausen # Brandau #
A100: REG | B100: 18 | C100: HEAG Verkehrs-GmbH | E100: 057_ | F100: 0 | G100: H | H100: Mo-Fr | I100: 1523 | K100: Fischbachtal | L100: Solo-Überlandbus-NF | M100: 0 | N100: 0 | O100: 0 | P100: 0 | Q100: 0 | R100: 2000-01-01T15:39:30 | S100: 2000-01-01T15:47:54 | T100: 1.131666666 | U100: 27.15999998 | V100: 09 - nur an Schultagen | W100: 194 | X100: 6649 | Y100: 1289.906 | Z100: 0 | AA100: 0 | AB100: OlllllOOOOOOOOOOOOOOOOlllllOOlllllOOlllllOOlllllOOlllllOOlllllOOlllllOOlllllOOlllllOOlllllOOlllllOOlllllOOlllllOOOOOOOOOOOOOOOOOllllOOlllOlOOlllllOOlllllOOlllllOOlllOlOOlllllOOOllllOOlllOlOOlllllOOlllllOOOOOOOOOOOOOOOOOOOOOOOOOOOOOOOOOOOOOOOOOOOOlllllOOlllllOOlllllOOlllllOOlllllOOlllllOOllllOOOOOOOOOOOOOOOOOlllllOOlllllOOlllllOOlllllOOlllllOOlllllOOlllllOOlllllO | AC100: MO2 | AD100: Reinheim Bf # Niedernhausen # Brandau #
A101: REG | B101: 18 | C101: HEAG Verkehrs-GmbH | E101: 057_ | F101: 0 | G101: H | H101: Mo-Fr | I101: 1523 | K101: Modautal | L101: Solo-Überlandbus-NF | M101: 0 | N101: 0 | O101: 0 | P101: 0 | Q101: 0 | R101: 2000-01-01T15:47:54 | S101: 2000-01-01T16:01:00 | T101: 1.764861112 | U101: 42.35666668 | V101: 09 - nur an Schultagen | W101: 194 | X101: 8797 | Y101: 1706.618 | Z101: 0 | AA101: 0 | AB101: OlllllOOOOOOOOOOOOOOOOlllllOOlllllOOlllllOOlllllOOlllllOOlllllOOlllllOOlllllOOlllllOOlllllOOlllllOOlllllOOlllllOOOOOOOOOOOOOOOOOllllOOlllOlOOlllllOOlllllOOlllllOOlllOlOOlllllOOOllllOOlllOlOOlllllOOlllllOOOOOOOOOOOOOOOOOOOOOOOOOOOOOOOOOOOOOOOOOOOOlllllOOlllllOOlllllOOlllllOOlllllOOlllllOOllllOOOOOOOOOOOOOOOOOlllllOOlllllOOlllllOOlllllOOlllllOOlllllOOlllllOOlllllO | AC101: MO2 | AD101: Reinheim Bf # Niedernhausen # Brandau #
A102: REG | B102: 18 | C102: HEAG Verkehrs-GmbH | E102: 057_ | F102: 0 | G102: H | H102: Mo-Fr | I102: 1523 | K102: Lautertal (Odenwald) | L102: Solo-Überlandbus-NF | M102: 0 | N102: 0 | O102: 0 | P102: 0 | Q102: 0 | R102: 2000-01-01T16:01:00 | S102: 2000-01-01T16:12:00 | T102: 1.481944445 | U102: 35.56666668 | V102: 09 - nur an Schultagen | W102: 194 | X102: 5965 | Y102: 1157.21 | Z102: 0 | AA102: 0 | AB102: OlllllOOOOOOOOOOOOOOOOlllllOOlllllOOlllllOOlllllOOlllllOOlllllOOlllllOOlllllOOlllllOOlllllOOlllllOOlllllOOlllllOOOOOOOOOOOOOOOOOllllOOlllOlOOlllllOOlllllOOlllllOOlllOlOOlllllOOOllllOOlllOlOOlllllOOlllllOOOOOOOOOOOOOOOOOOOOOOOOOOOOOOOOOOOOOOOOOOOOlllllOOlllllOOlllllOOlllllOOlllllOOlllllOOllllOOOOOOOOOOOOOOOOOlllllOOlllllOOlllllOOlllllOOlllllOOlllllOOlllllOOlllllO | AC102: MO2 | AD102: Reinheim Bf # Niedernhausen # Brandau #
A103: REG | B103: 18 | C103: HEAG Verkehrs-GmbH | E103: 057_ | F103: 0 | G103: H | H103: Mo-Fr | I103: 1611 | K103: Modautal | L103: Solo-Überlandbus-NF | M103: 0 | N103: 0 | O103: 0 | P103: 0 | Q103: 0 | R103: 2000-01-01T16:14:30 | S103: 2000-01-01T16:37:00 | T103: 3.03125 | U103: 72.75 | V103: 09 - nur an Schultagen | W103: 194 | X103: 12719 | Y103: 2467.486 | Z103: 0 | AA103: 0 | AB103: OlllllOOOOOOOOOOOOOOOOlllllOOlllllOOlllllOOlllllOOlllllOOlllllOOlllllOOlllllOOlllllOOlllllOOlllllOOlllllOOlllllOOOOOOOOOOOOOOOOOllllOOlllOlOOlllllOOlllllOOlllllOOlllOlOOlllllOOOllllOOlllOlOOlllllOOlllllOOOOOOOOOOOOOOOOOOOOOOOOOOOOOOOOOOOOOOOOOOOOlllllOOlllllOOlllllOOlllllOOlllllOOlllllOOllllOOOOOOOOOOOOOOOOOlllllOOlllllOOlllllOOlllllOOlllllOOlllllOOlllllOOlllllO | AC103: MO2 | AD103: Reinheim Bf # Niedernhausen # Brandau #
A104: REG | B104: 18 | C104: HEAG Verkehrs-GmbH | E104: 057_ | F104: 0 | G104: H | H104: Mo-Fr | I104: 1611 | K104: Lautertal (Odenwald) | L104: Solo-Überlandbus-NF | M104: 0 | N104: 0 | O104: 0 | P104: 0 | Q104: 0 | R104: 2000-01-01T16:24:00 | S104: 2000-01-01T16:27:30 | T104: 0.4715277779 | U104: 11.31666667 | V104: 09 - nur an Schultagen | W104: 194 | X104: 2146 | Y104: 416.324 | Z104: 0 | AA104: 0 | AB104: OlllllOOOOOOOOOOOOOOOOlllllOOlllllOOlllllOOlllllOOlllllOOlllllOOlllllOOlllllOOlllllOOlllllOOlllllOOlllllOOlllllOOOOOOOOOOOOOOOOOllllOOlllOlOOlllllOOlllllOOlllllOOlllOlOOlllllOOOllllOOlllOlOOlllllOOlllllOOOOOOOOOOOOOOOOOOOOOOOOOOOOOOOOOOOOOOOOOOOOlllllOOlllllOOlllllOOlllllOOlllllOOlllllOOllllOOOOOOOOOOOOOOOOOlllllOOlllllOOlllllOOlllllOOlllllOOlllllOOlllllOOlllllO | AC104: MO2 | AD104: Reinheim Bf # Niedernhausen # Brandau #
A105: REG | B105: 18 | C105: HEAG Verkehrs-GmbH | E105: 057_ | F105: 0 | G105: H | H105: Mo-Fr | I105: 1612 | K105: Reinheim | L105: Solo-Überlandbus-NF | M105: 0 | N105: 0 | O105: 0 | P105: 0 | Q105: 0 | R105: 2000-01-01T16:12:00 | S105: 2000-01-01T16:17:00 | T105: 0.1874999998 | U105: 4.499999996 | V105: 10 - nicht an Schultagen | W105: 54 | X105: 2066 | Y105: 111.564 | Z105: 0 | AA105: 0 | AB105: OOOOOOOOlOOOlOOlOOllOOOOOOOOOOOOOOOOOOOOOOOOOOOOOOOOOOOOOOOOOOOOOOOOOOOOOOOOOOOOOOOOOOOOOOOOOOOOOOOOOOOOOOOOOOOOOlllllOOllllOOOOOOOOOOOOOOOOOOOOOOOOOOOOOOOOOOOOOOOOOOOOOOOOOOOOOOOOOOOOOOOOOOOOOOOOOOOOOOOOlllllOOlllllOOlllllOOlllllOOlllllOOlllllOOOOOOOOOOOOOOOOOOOOOOOOOOOOOOOOOOOOOOOOOOOOOOOOOOOlllllOOlllllOOOOOOOOOOOOOOOOOOOOOOOOOOOOOOOOOOOOOOOOOOOOOOOOOOOOOOOOO | AC105: MO2 | AD105: Reinheim Bf # Niedernhausen # Brandau #
A106: REG | B106: 18 | C106: HEAG Verkehrs-GmbH | E106: 057_ | F106: 0 | G106: H | H106: Mo-Fr | I106: 1612 | K106: Groß-Bieberau | L106: Solo-Überlandbus-NF | M106: 0 | N106: 0 | O106: 0 | P106: 0 | Q106: 0 | R106: 2000-01-01T16:17:00 | S106: 2000-01-01T16:25:30 | T106: 0.3187499999 | U106: 7.649999997 | V106: 10 - nicht an Schultagen | W106: 54 | X106: 3620 | Y106: 195.48 | Z106: 0 | AA106: 0 | AB106: OOOOOOOOlOOOlOOlOOllOOOOOOOOOOOOOOOOOOOOOOOOOOOOOOOOOOOOOOOOOOOOOOOOOOOOOOOOOOOOOOOOOOOOOOOOOOOOOOOOOOOOOOOOOOOOOlllllOOllllOOOOOOOOOOOOOOOOOOOOOOOOOOOOOOOOOOOOOOOOOOOOOOOOOOOOOOOOOOOOOOOOOOOOOOOOOOOOOOOOlllllOOlllllOOlllllOOlllllOOlllllOOlllllOOOOOOOOOOOOOOOOOOOOOOOOOOOOOOOOOOOOOOOOOOOOOOOOOOOlllllOOlllllOOOOOOOOOOOOOOOOOOOOOOOOOOOOOOOOOOOOOOOOOOOOOOOOOOOOOOOOO | AC106: MO2 | AD106: Reinheim Bf # Niedernhausen # Brandau #
A107: REG | B107: 18 | C107: HEAG Verkehrs-GmbH | E107: 057_ | F107: 0 | G107: H | H107: Mo-Fr | I107: 1612 | K107: Fischbachtal | L107: Solo-Überlandbus-NF | M107: 0 | N107: 0 | O107: 0 | P107: 0 | Q107: 0 | R107: 2000-01-01T16:25:30 | S107: 2000-01-01T16:33:54 | T107: 0.3150000002 | U107: 7.560000004 | V107: 10 - nicht an Schultagen | W107: 54 | X107: 6649 | Y107: 359.046 | Z107: 0 | AA107: 0 | AB107: OOOOOOOOlOOOlOOlOOllOOOOOOOOOOOOOOOOOOOOOOOOOOOOOOOOOOOOOOOOOOOOOOOOOOOOOOOOOOOOOOOOOOOOOOOOOOOOOOOOOOOOOOOOOOOOOlllllOOllllOOOOOOOOOOOOOOOOOOOOOOOOOOOOOOOOOOOOOOOOOOOOOOOOOOOOOOOOOOOOOOOOOOOOOOOOOOOOOOOOlllllOOlllllOOlllllOOlllllOOlllllOOlllllOOOOOOOOOOOOOOOOOOOOOOOOOOOOOOOOOOOOOOOOOOOOOOOOOOOlllllOOlllllOOOOOOOOOOOOOOOOOOOOOOOOOOOOOOOOOOOOOOOOOOOOOOOOOOOOOOOOO | AC107: MO2 | AD107: Reinheim Bf # Niedernhausen # Brandau #
A108: REG | B108: 18 | C108: HEAG Verkehrs-GmbH | E108: 057_ | F108: 0 | G108: H | H108: Mo-Fr | I108: 1612 | K108: Modautal | L108: Solo-Überlandbus-NF | M108: 0 | N108: 0 | O108: 0 | P108: 0 | Q108: 0 | R108: 2000-01-01T16:33:54 | S108: 2000-01-01T16:47:00 | T108: 0.4912500001 | U108: 11.79 | V108: 10 - nicht an Schultagen | W108: 54 | X108: 8797 | Y108: 475.038 | Z108: 0 | AA108: 0 | AB108: OOOOOOOOlOOOlOOlOOllOOOOOOOOOOOOOOOOOOOOOOOOOOOOOOOOOOOOOOOOOOOOOOOOOOOOOOOOOOOOOOOOOOOOOOOOOOOOOOOOOOOOOOOOOOOOOlllllOOllllOOOOOOOOOOOOOOOOOOOOOOOOOOOOOOOOOOOOOOOOOOOOOOOOOOOOOOOOOOOOOOOOOOOOOOOOOOOOOOOOlllllOOlllllOOlllllOOlllllOOlllllOOlllllOOOOOOOOOOOOOOOOOOOOOOOOOOOOOOOOOOOOOOOOOOOOOOOOOOOlllllOOlllllOOOOOOOOOOOOOOOOOOOOOOOOOOOOOOOOOOOOOOOOOOOOOOOOOOOOOOOOO | AC108: MO2 | AD108: Reinheim Bf # Niedernhausen # Brandau #
A109: REG | B109: 18 | C109: HEAG Verkehrs-GmbH | E109: 057_ | F109: 0 | G109: H | H109: Mo-Fr | I109: 1612 | K109: Lautertal (Odenwald) | L109: Solo-Überlandbus-NF | M109: 0 | N109: 0 | O109: 0 | P109: 0 | Q109: 0 | R109: 2000-01-01T16:47:00 | S109: 2000-01-01T16:58:00 | T109: 0.4124999998 | U109: 9.899999995 | V109: 10 - nicht an Schultagen | W109: 54 | X109: 5965 | Y109: 322.11 | Z109: 0 | AA109: 0 | AB109: OOOOOOOOlOOOlOOlOOllOOOOOOOOOOOOOOOOOOOOOOOOOOOOOOOOOOOOOOOOOOOOOOOOOOOOOOOOOOOOOOOOOOOOOOOOOOOOOOOOOOOOOOOOOOOOOlllllOOllllOOOOOOOOOOOOOOOOOOOOOOOOOOOOOOOOOOOOOOOOOOOOOOOOOOOOOOOOOOOOOOOOOOOOOOOOOOOOOOOOlllllOOlllllOOlllllOOlllllOOlllllOOlllllOOOOOOOOOOOOOOOOOOOOOOOOOOOOOOOOOOOOOOOOOOOOOOOOOOOlllllOOlllllOOOOOOOOOOOOOOOOOOOOOOOOOOOOOOOOOOOOOOOOOOOOOOOOOOOOOOOOO | AC109: MO2 | AD109: Reinheim Bf # Niedernhausen # Brandau #
A110: REG | B110: 18 | C110: HEAG Verkehrs-GmbH | E110: 057_ | F110: 0 | G110: H | H110: Mo-Fr | I110: 1623 | K110: Reinheim | L110: Solo-Überlandbus-NF | M110: 0 | N110: 0 | O110: 0 | P110: 0 | Q110: 0 | R110: 2000-01-01T16:23:00 | S110: 2000-01-01T16:28:00 | T110: 0.6736111119 | U110: 16.16666669 | V110: 09 - nur an Schultagen | W110: 194 | X110: 2066 | Y110: 400.804 | Z110: 0 | AA110: 0 | AB110: OlllllOOOOOOOOOOOOOOOOlllllOOlllllOOlllllOOlllllOOlllllOOlllllOOlllllOOlllllOOlllllOOlllllOOlllllOOlllllOOlllllOOOOOOOOOOOOOOOOOllllOOlllOlOOlllllOOlllllOOlllllOOlllOlOOlllllOOOllllOOlllOlOOlllllOOlllllOOOOOOOOOOOOOOOOOOOOOOOOOOOOOOOOOOOOOOOOOOOOlllllOOlllllOOlllllOOlllllOOlllllOOlllllOOllllOOOOOOOOOOOOOOOOOlllllOOlllllOOlllllOOlllllOOlllllOOlllllOOlllllOOlllllO | AC110: MO2 | AD110: Reinheim Bf # Niedernhausen # Brandau #
A111: REG | B111: 18 | C111: HEAG Verkehrs-GmbH | E111: 057_ | F111: 0 | G111: H | H111: Mo-Fr | I111: 1623 | K111: Groß-Bieberau | L111: Solo-Überlandbus-NF | M111: 0 | N111: 0 | O111: 0 | P111: 0 | Q111: 0 | R111: 2000-01-01T16:28:00 | S111: 2000-01-01T16:39:30 | T111: 1.549305555 | U111: 37.18333332 | V111: 09 - nur an Schultagen | W111: 194 | X111: 4680 | Y111: 907.92 | Z111: 0 | AA111: 0 | AB111: OlllllOOOOOOOOOOOOOOOOlllllOOlllllOOlllllOOlllllOOlllllOOlllllOOlllllOOlllllOOlllllOOlllllOOlllllOOlllllOOlllllOOOOOOOOOOOOOOOOOllllOOlllOlOOlllllOOlllllOOlllllOOlllOlOOlllllOOOllllOOlllOlOOlllllOOlllllOOOOOOOOOOOOOOOOOOOOOOOOOOOOOOOOOOOOOOOOOOOOlllllOOlllllOOlllllOOlllllOOlllllOOlllllOOllllOOOOOOOOOOOOOOOOOlllllOOlllllOOlllllOOlllllOOlllllOOlllllOOlllllOOlllllO | AC111: MO2 | AD111: Reinheim Bf # Niedernhausen # Brandau #
A112: REG | B112: 18 | C112: HEAG Verkehrs-GmbH | E112: 057_ | F112: 0 | G112: H | H112: Mo-Fr | I112: 1623 | K112: Fischbachtal | L112: Solo-Überlandbus-NF | M112: 0 | N112: 0 | O112: 0 | P112: 0 | Q112: 0 | R112: 2000-01-01T16:39:30 | S112: 2000-01-01T16:47:54 | T112: 1.131666667 | U112: 27.16000001 | V112: 09 - nur an Schultagen | W112: 194 | X112: 6649 | Y112: 1289.906 | Z112: 0 | AA112: 0 | AB112: OlllllOOOOOOOOOOOOOOOOlllllOOlllllOOlllllOOlllllOOlllllOOlllllOOlllllOOlllllOOlllllOOlllllOOlllllOOlllllOOlllllOOOOOOOOOOOOOOOOOllllOOlllOlOOlllllOOlllllOOlllllOOlllOlOOlllllOOOllllOOlllOlOOlllllOOlllllOOOOOOOOOOOOOOOOOOOOOOOOOOOOOOOOOOOOOOOOOOOOlllllOOlllllOOlllllOOlllllOOlllllOOlllllOOllllOOOOOOOOOOOOOOOOOlllllOOlllllOOlllllOOlllllOOlllllOOlllllOOlllllOOlllllO | AC112: MO2 | AD112: Reinheim Bf # Niedernhausen # Brandau #
A113: REG | B113: 18 | C113: HEAG Verkehrs-GmbH | E113: 057_ | F113: 0 | G113: H | H113: Mo-Fr | I113: 1623 | K113: Modautal | L113: Solo-Überlandbus-NF | M113: 0 | N113: 0 | O113: 0 | P113: 0 | Q113: 0 | R113: 2000-01-01T16:47:54 | S113: 2000-01-01T17:01:00 | T113: 1.76486111 | U113: 42.35666664 | V113: 09 - nur an Schultagen | W113: 194 | X113: 8797 | Y113: 1706.618 | Z113: 0 | AA113: 0 | AB113: OlllllOOOOOOOOOOOOOOOOlllllOOlllllOOlllllOOlllllOOlllllOOlllllOOlllllOOlllllOOlllllOOlllllOOlllllOOlllllOOlllllOOOOOOOOOOOOOOOOOllllOOlllOlOOlllllOOlllllOOlllllOOlllOlOOlllllOOOllllOOlllOlOOlllllOOlllllOOOOOOOOOOOOOOOOOOOOOOOOOOOOOOOOOOOOOOOOOOOOlllllOOlllllOOlllllOOlllllOOlllllOOlllllOOllllOOOOOOOOOOOOOOOOOlllllOOlllllOOlllllOOlllllOOlllllOOlllllOOlllllOOlllllO | AC113: MO2 | AD113: Reinheim Bf # Niedernhausen # Brandau #
A114: REG | B114: 18 | C114: HEAG Verkehrs-GmbH | E114: 057_ | F114: 0 | G114: H | H114: Mo-Fr | I114: 1623 | K114: Lautertal (Odenwald) | L114: Solo-Überlandbus-NF | M114: 0 | N114: 0 | O114: 0 | P114: 0 | Q114: 0 | R114: 2000-01-01T17:01:00 | S114: 2000-01-01T17:12:00 | T114: 1.481944445 | U114: 35.56666668 | V114: 09 - nur an Schultagen | W114: 194 | X114: 5965 | Y114: 1157.21 | Z114: 0 | AA114: 0 | AB114: OlllllOOOOOOOOOOOOOOOOlllllOOlllllOOlllllOOlllllOOlllllOOlllllOOlllllOOlllllOOlllllOOlllllOOlllllOOlllllOOlllllOOOOOOOOOOOOOOOOOllllOOlllOlOOlllllOOlllllOOlllllOOlllOlOOlllllOOOllllOOlllOlOOlllllOOlllllOOOOOOOOOOOOOOOOOOOOOOOOOOOOOOOOOOOOOOOOOOOOlllllOOlllllOOlllllOOlllllOOlllllOOlllllOOllllOOOOOOOOOOOOOOOOOlllllOOlllllOOlllllOOlllllOOlllllOOlllllOOlllllOOlllllO | AC114: MO2 | AD114: Reinheim Bf # Niedernhausen # Brandau #
A115: REG | B115: 18 | C115: HEAG Verkehrs-GmbH | E115: 057_ | F115: 0 | G115: H | H115: Mo-Fr | I115: 1712 | K115: Reinheim | L115: Solo-Überlandbus-NF | M115: 0 | N115: 0 | O115: 0 | P115: 0 | Q115: 0 | R115: 2000-01-01T17:12:00 | S115: 2000-01-01T17:17:00 | T115: 0.8611111103 | U115: 20.66666665 | W115: 248 | X115: 2066 | Y115: 512.368 | Z115: 0 | AA115: 0 | AB115: OlllllOOlOOOlOOlOOllOOlllllOOlllllOOlllllOOlllllOOlllllOOlllllOOlllllOOlllllOOlllllOOlllllOOlllllOOlllllOOlllllOOlllllOOllllOOOOllllOOlllOlOOlllllOOlllllOOlllllOOlllOlOOlllllOOOllllOOlllOlOOlllllOOlllllOOlllllOOlllllOOlllllOOlllllOOlllllOOlllllOOlllllOOlllllOOlllllOOlllllOOlllllOOlllllOOllllOOOlllllOOlllllOOlllllOOlllllOOlllllOOlllllOOlllllOOlllllOOlllllOOlllllO | AC115: MO2 | AD115: Reinheim Bf # Niedernhausen # Brandau #
A116: REG | B116: 18 | C116: HEAG Verkehrs-GmbH | E116: 057_ | F116: 0 | G116: H | H116: Mo-Fr | I116: 1712 | K116: Groß-Bieberau | L116: Solo-Überlandbus-NF | M116: 0 | N116: 0 | O116: 0 | P116: 0 | Q116: 0 | R116: 2000-01-01T17:17:00 | S116: 2000-01-01T17:25:30 | T116: 1.46388889 | U116: 35.13333336 | W116: 248 | X116: 3620 | Y116: 897.76 | Z116: 0 | AA116: 0 | AB116: OlllllOOlOOOlOOlOOllOOlllllOOlllllOOlllllOOlllllOOlllllOOlllllOOlllllOOlllllOOlllllOOlllllOOlllllOOlllllOOlllllOOlllllOOllllOOOOllllOOlllOlOOlllllOOlllllOOlllllOOlllOlOOlllllOOOllllOOlllOlOOlllllOOlllllOOlllllOOlllllOOlllllOOlllllOOlllllOOlllllOOlllllOOlllllOOlllllOOlllllOOlllllOOlllllOOllllOOOlllllOOlllllOOlllllOOlllllOOlllllOOlllllOOlllllOOlllllOOlllllOOlllllO | AC116: MO2 | AD116: Reinheim Bf # Niedernhausen # Brandau #
A117: REG | B117: 18 | C117: HEAG Verkehrs-GmbH | E117: 057_ | F117: 0 | G117: H | H117: Mo-Fr | I117: 1712 | K117: Fischbachtal | L117: Solo-Überlandbus-NF | M117: 0 | N117: 0 | O117: 0 | P117: 0 | Q117: 0 | R117: 2000-01-01T17:25:30 | S117: 2000-01-01T17:33:54 | T117: 1.446666666 | U117: 34.71999997 | W117: 248 | X117: 6649 | Y117: 1648.952 | Z117: 0 | AA117: 0 | AB117: OlllllOOlOOOlOOlOOllOOlllllOOlllllOOlllllOOlllllOOlllllOOlllllOOlllllOOlllllOOlllllOOlllllOOlllllOOlllllOOlllllOOlllllOOllllOOOOllllOOlllOlOOlllllOOlllllOOlllllOOlllOlOOlllllOOOllllOOlllOlOOlllllOOlllllOOlllllOOlllllOOlllllOOlllllOOlllllOOlllllOOlllllOOlllllOOlllllOOlllllOOlllllOOlllllOOllllOOOlllllOOlllllOOlllllOOlllllOOlllllOOlllllOOlllllOOlllllOOlllllOOlllllO | AC117: MO2 | AD117: Reinheim Bf # Niedernhausen # Brandau #
A118: REG | B118: 18 | C118: HEAG Verkehrs-GmbH | E118: 057_ | F118: 0 | G118: H | H118: Mo-Fr | I118: 1712 | K118: Modautal | L118: Solo-Überlandbus-NF | M118: 0 | N118: 0 | O118: 0 | P118: 0 | Q118: 0 | R118: 2000-01-01T17:33:54 | S118: 2000-01-01T17:47:00 | T118: 2.256111112 | U118: 54.14666668 | W118: 248 | X118: 8797 | Y118: 2181.656 | Z118: 0 | AA118: 0 | AB118: OlllllOOlOOOlOOlOOllOOlllllOOlllllOOlllllOOlllllOOlllllOOlllllOOlllllOOlllllOOlllllOOlllllOOlllllOOlllllOOlllllOOlllllOOllllOOOOllllOOlllOlOOlllllOOlllllOOlllllOOlllOlOOlllllOOOllllOOlllOlOOlllllOOlllllOOlllllOOlllllOOlllllOOlllllOOlllllOOlllllOOlllllOOlllllOOlllllOOlllllOOlllllOOlllllOOllllOOOlllllOOlllllOOlllllOOlllllOOlllllOOlllllOOlllllOOlllllOOlllllOOlllllO | AC118: MO2 | AD118: Reinheim Bf # Niedernhausen # Brandau #
A119: REG | B119: 18 | C119: HEAG Verkehrs-GmbH | E119: 057_ | F119: 0 | G119: H | H119: Mo-Fr | I119: 1712 | K119: Lautertal (Odenwald) | L119: Solo-Überlandbus-NF | M119: 0 | N119: 0 | O119: 0 | P119: 0 | Q119: 0 | R119: 2000-01-01T17:47:00 | S119: 2000-01-01T17:58:00 | T119: 1.894444445 | U119: 45.46666668 | W119: 248 | X119: 5965 | Y119: 1479.32 | Z119: 0 | AA119: 0 | AB119: OlllllOOlOOOlOOlOOllOOlllllOOlllllOOlllllOOlllllOOlllllOOlllllOOlllllOOlllllOOlllllOOlllllOOlllllOOlllllOOlllllOOlllllOOllllOOOOllllOOlllOlOOlllllOOlllllOOlllllOOlllOlOOlllllOOOllllOOlllOlOOlllllOOlllllOOlllllOOlllllOOlllllOOlllllOOlllllOOlllllOOlllllOOlllllOOlllllOOlllllOOlllllOOlllllOOllllOOOlllllOOlllllOOlllllOOlllllOOlllllOOlllllOOlllllOOlllllOOlllllOOlllllO | AC119: MO2 | AD119: Reinheim Bf # Niedernhausen # Brandau #
A120: REG | B120: 18 | C120: HEAG Verkehrs-GmbH | E120: 057_ | F120: 0 | G120: H | H120: Mo-Fr | I120: 1812 | K120: Reinheim | L120: Solo-Überlandbus-NF | M120: 0 | N120: 0 | O120: 0 | P120: 0 | Q120: 0 | R120: 2000-01-01T18:12:00 | S120: 2000-01-01T18:17:00 | T120: 0.8611111121 | U120: 20.66666669 | W120: 248 | X120: 2066 | Y120: 512.368 | Z120: 0 | AA120: 0 | AB120: OlllllOOlOOOlOOlOOllOOlllllOOlllllOOlllllOOlllllOOlllllOOlllllOOlllllOOlllllOOlllllOOlllllOOlllllOOlllllOOlllllOOlllllOOllllOOOOllllOOlllOlOOlllllOOlllllOOlllllOOlllOlOOlllllOOOllllOOlllOlOOlllllOOlllllOOlllllOOlllllOOlllllOOlllllOOlllllOOlllllOOlllllOOlllllOOlllllOOlllllOOlllllOOlllllOOllllOOOlllllOOlllllOOlllllOOlllllOOlllllOOlllllOOlllllOOlllllOOlllllOOlllllO | AC120: MO2 | AD120: Reinheim Bf # Niedernhausen # Brandau #
A121: REG | B121: 18 | C121: HEAG Verkehrs-GmbH | E121: 057_ | F121: 0 | G121: H | H121: Mo-Fr | I121: 1812 | K121: Groß-Bieberau | L121: Solo-Überlandbus-NF | M121: 0 | N121: 0 | O121: 0 | P121: 0 | Q121: 0 | R121: 2000-01-01T18:17:00 | S121: 2000-01-01T18:25:30 | T121: 1.463888888 | U121: 35.13333332 | W121: 248 | X121: 3620 | Y121: 897.76 | Z121: 0 | AA121: 0 | AB121: OlllllOOlOOOlOOlOOllOOlllllOOlllllOOlllllOOlllllOOlllllOOlllllOOlllllOOlllllOOlllllOOlllllOOlllllOOlllllOOlllllOOlllllOOllllOOOOllllOOlllOlOOlllllOOlllllOOlllllOOlllOlOOlllllOOOllllOOlllOlOOlllllOOlllllOOlllllOOlllllOOlllllOOlllllOOlllllOOlllllOOlllllOOlllllOOlllllOOlllllOOlllllOOlllllOOllllOOOlllllOOlllllOOlllllOOlllllOOlllllOOlllllOOlllllOOlllllOOlllllOOlllllO | AC121: MO2 | AD121: Reinheim Bf # Niedernhausen # Brandau #
A122: REG | B122: 18 | C122: HEAG Verkehrs-GmbH | E122: 057_ | F122: 0 | G122: H | H122: Mo-Fr | I122: 1812 | K122: Fischbachtal | L122: Solo-Überlandbus-NF | M122: 0 | N122: 0 | O122: 0 | P122: 0 | Q122: 0 | R122: 2000-01-01T18:25:30 | S122: 2000-01-01T18:33:54 | T122: 1.446666667 | U122: 34.72000002 | W122: 248 | X122: 6649 | Y122: 1648.952 | Z122: 0 | AA122: 0 | AB122: OlllllOOlOOOlOOlOOllOOlllllOOlllllOOlllllOOlllllOOlllllOOlllllOOlllllOOlllllOOlllllOOlllllOOlllllOOlllllOOlllllOOlllllOOllllOOOOllllOOlllOlOOlllllOOlllllOOlllllOOlllOlOOlllllOOOllllOOlllOlOOlllllOOlllllOOlllllOOlllllOOlllllOOlllllOOlllllOOlllllOOlllllOOlllllOOlllllOOlllllOOlllllOOlllllOOllllOOOlllllOOlllllOOlllllOOlllllOOlllllOOlllllOOlllllOOlllllOOlllllOOlllllO | AC122: MO2 | AD122: Reinheim Bf # Niedernhausen # Brandau #
A123: REG | B123: 18 | C123: HEAG Verkehrs-GmbH | E123: 057_ | F123: 0 | G123: H | H123: Mo-Fr | I123: 1812 | K123: Modautal | L123: Solo-Überlandbus-NF | M123: 0 | N123: 0 | O123: 0 | P123: 0 | Q123: 0 | R123: 2000-01-01T18:33:54 | S123: 2000-01-01T18:47:00 | T123: 2.25611111 | U123: 54.14666664 | W123: 248 | X123: 8797 | Y123: 2181.656 | Z123: 0 | AA123: 0 | AB123: OlllllOOlOOOlOOlOOllOOlllllOOlllllOOlllllOOlllllOOlllllOOlllllOOlllllOOlllllOOlllllOOlllllOOlllllOOlllllOOlllllOOlllllOOllllOOOOllllOOlllOlOOlllllOOlllllOOlllllOOlllOlOOlllllOOOllllOOlllOlOOlllllOOlllllOOlllllOOlllllOOlllllOOlllllOOlllllOOlllllOOlllllOOlllllOOlllllOOlllllOOlllllOOlllllOOllllOOOlllllOOlllllOOlllllOOlllllOOlllllOOlllllOOlllllOOlllllOOlllllOOlllllO | AC123: MO2 | AD123: Reinheim Bf # Niedernhausen # Brandau #
A124: REG | B124: 18 | C124: HEAG Verkehrs-GmbH | E124: 057_ | F124: 0 | G124: H | H124: Mo-Fr | I124: 1812 | K124: Lautertal (Odenwald) | L124: Solo-Überlandbus-NF | M124: 0 | N124: 0 | O124: 0 | P124: 0 | Q124: 0 | R124: 2000-01-01T18:47:00 | S124: 2000-01-01T18:58:00 | T124: 1.894444445 | U124: 45.46666668 | W124: 248 | X124: 5965 | Y124: 1479.32 | Z124: 0 | AA124: 0 | AB124: OlllllOOlOOOlOOlOOllOOlllllOOlllllOOlllllOOlllllOOlllllOOlllllOOlllllOOlllllOOlllllOOlllllOOlllllOOlllllOOlllllOOlllllOOllllOOOOllllOOlllOlOOlllllOOlllllOOlllllOOlllOlOOlllllOOOllllOOlllOlOOlllllOOlllllOOlllllOOlllllOOlllllOOlllllOOlllllOOlllllOOlllllOOlllllOOlllllOOlllllOOlllllOOlllllOOllllOOOlllllOOlllllOOlllllOOlllllOOlllllOOlllllOOlllllOOlllllOOlllllOOlllllO | AC124: MO2 | AD124: Reinheim Bf # Niedernhausen # Brandau #
A125: REG | B125: 18 | C125: HEAG Verkehrs-GmbH | E125: 057_ | F125: 0 | G125: H | H125: Mo-Fr | I125: 1912 | K125: Reinheim | L125: Solo-Überlandbus-NF | M125: 0 | N125: 0 | O125: 0 | P125: 0 | Q125: 0 | R125: 2000-01-01T19:12:00 | S125: 2000-01-01T19:17:00 | T125: 0.8611111103 | U125: 20.66666665 | W125: 248 | X125: 2066 | Y125: 512.368 | Z125: 0 | AA125: 0 | AB125: OlllllOOlOOOlOOlOOllOOlllllOOlllllOOlllllOOlllllOOlllllOOlllllOOlllllOOlllllOOlllllOOlllllOOlllllOOlllllOOlllllOOlllllOOllllOOOOllllOOlllOlOOlllllOOlllllOOlllllOOlllOlOOlllllOOOllllOOlllOlOOlllllOOlllllOOlllllOOlllllOOlllllOOlllllOOlllllOOlllllOOlllllOOlllllOOlllllOOlllllOOlllllOOlllllOOllllOOOlllllOOlllllOOlllllOOlllllOOlllllOOlllllOOlllllOOlllllOOlllllOOlllllO | AC125: MO2 | AD125: Reinheim Bf # Niedernhausen # Brandau #
A126: REG | B126: 18 | C126: HEAG Verkehrs-GmbH | E126: 057_ | F126: 0 | G126: H | H126: Mo-Fr | I126: 1912 | K126: Groß-Bieberau | L126: Solo-Überlandbus-NF | M126: 0 | N126: 0 | O126: 0 | P126: 0 | Q126: 0 | R126: 2000-01-01T19:17:00 | S126: 2000-01-01T19:25:30 | T126: 1.463888888 | U126: 35.13333332 | W126: 248 | X126: 3620 | Y126: 897.76 | Z126: 0 | AA126: 0 | AB126: OlllllOOlOOOlOOlOOllOOlllllOOlllllOOlllllOOlllllOOlllllOOlllllOOlllllOOlllllOOlllllOOlllllOOlllllOOlllllOOlllllOOlllllOOllllOOOOllllOOlllOlOOlllllOOlllllOOlllllOOlllOlOOlllllOOOllllOOlllOlOOlllllOOlllllOOlllllOOlllllOOlllllOOlllllOOlllllOOlllllOOlllllOOlllllOOlllllOOlllllOOlllllOOlllllOOllllOOOlllllOOlllllOOlllllOOlllllOOlllllOOlllllOOlllllOOlllllOOlllllOOlllllO | AC126: MO2 | AD126: Reinheim Bf # Niedernhausen # Brandau #
A127: REG | B127: 18 | C127: HEAG Verkehrs-GmbH | E127: 057_ | F127: 0 | G127: H | H127: Mo-Fr | I127: 1912 | K127: Fischbachtal | L127: Solo-Überlandbus-NF | M127: 0 | N127: 0 | O127: 0 | P127: 0 | Q127: 0 | R127: 2000-01-01T19:25:30 | S127: 2000-01-01T19:33:54 | T127: 1.446666667 | U127: 34.72000002 | W127: 248 | X127: 6649 | Y127: 1648.952 | Z127: 0 | AA127: 0 | AB127: OlllllOOlOOOlOOlOOllOOlllllOOlllllOOlllllOOlllllOOlllllOOlllllOOlllllOOlllllOOlllllOOlllllOOlllllOOlllllOOlllllOOlllllOOllllOOOOllllOOlllOlOOlllllOOlllllOOlllllOOlllOlOOlllllOOOllllOOlllOlOOlllllOOlllllOOlllllOOlllllOOlllllOOlllllOOlllllOOlllllOOlllllOOlllllOOlllllOOlllllOOlllllOOlllllOOllllOOOlllllOOlllllOOlllllOOlllllOOlllllOOlllllOOlllllOOlllllOOlllllOOlllllO | AC127: MO2 | AD127: Reinheim Bf # Niedernhausen # Brandau #
A128: REG | B128: 18 | C128: HEAG Verkehrs-GmbH | E128: 057_ | F128: 0 | G128: H | H128: Mo-Fr | I128: 1912 | K128: Modautal | L128: Solo-Überlandbus-NF | M128: 0 | N128: 0 | O128: 0 | P128: 0 | Q128: 0 | R128: 2000-01-01T19:33:54 | S128: 2000-01-01T19:47:00 | T128: 2.256111112 | U128: 54.14666668 | W128: 248 | X128: 8797 | Y128: 2181.656 | Z128: 0 | AA128: 0 | AB128: OlllllOOlOOOlOOlOOllOOlllllOOlllllOOlllllOOlllllOOlllllOOlllllOOlllllOOlllllOOlllllOOlllllOOlllllOOlllllOOlllllOOlllllOOllllOOOOllllOOlllOlOOlllllOOlllllOOlllllOOlllOlOOlllllOOOllllOOlllOlOOlllllOOlllllOOlllllOOlllllOOlllllOOlllllOOlllllOOlllllOOlllllOOlllllOOlllllOOlllllOOlllllOOlllllOOllllOOOlllllOOlllllOOlllllOOlllllOOlllllOOlllllOOlllllOOlllllOOlllllOOlllllO | AC128: MO2 | AD128: Reinheim Bf # Niedernhausen # Brandau #
A129: REG | B129: 18 | C129: HEAG Verkehrs-GmbH | E129: 057_ | F129: 0 | G129: H | H129: Mo-Fr | I129: 1912 | K129: Lautertal (Odenwald) | L129: Solo-Überlandbus-NF | M129: 0 | N129: 0 | O129: 0 | P129: 0 | Q129: 0 | R129: 2000-01-01T19:47:00 | S129: 2000-01-01T19:58:00 | T129: 1.894444443 | U129: 45.46666664 | W129: 248 | X129: 5965 | Y129: 1479.32 | Z129: 0 | AA129: 0 | AB129: OlllllOOlOOOlOOlOOllOOlllllOOlllllOOlllllOOlllllOOlllllOOlllllOOlllllOOlllllOOlllllOOlllllOOlllllOOlllllOOlllllOOlllllOOllllOOOOllllOOlllOlOOlllllOOlllllOOlllllOOlllOlOOlllllOOOllllOOlllOlOOlllllOOlllllOOlllllOOlllllOOlllllOOlllllOOlllllOOlllllOOlllllOOlllllOOlllllOOlllllOOlllllOOlllllOOllllOOOlllllOOlllllOOlllllOOlllllOOlllllOOlllllOOlllllOOlllllOOlllllOOlllllO | AC129: MO2 | AD129: Reinheim Bf # Niedernhausen # Brandau #
A130: REG | B130: 18 | C130: HEAG Verkehrs-GmbH | E130: 057_ | F130: 0 | G130: H | H130: Mo-Fr | I130: 2023 | K130: Reinheim | L130: Solo-Überlandbus-NF | M130: 0 | N130: 0 | O130: 0 | P130: 0 | Q130: 0 | R130: 2000-01-01T20:23:00 | S130: 2000-01-01T20:28:00 | T130: 0.8611111103 | U130: 20.66666665 | W130: 248 | X130: 2066 | Y130: 512.368 | Z130: 0 | AA130: 0 | AB130: OlllllOOlOOOlOOlOOllOOlllllOOlllllOOlllllOOlllllOOlllllOOlllllOOlllllOOlllllOOlllllOOlllllOOlllllOOlllllOOlllllOOlllllOOllllOOOOllllOOlllOlOOlllllOOlllllOOlllllOOlllOlOOlllllOOOllllOOlllOlOOlllllOOlllllOOlllllOOlllllOOlllllOOlllllOOlllllOOlllllOOlllllOOlllllOOlllllOOlllllOOlllllOOlllllOOllllOOOlllllOOlllllOOlllllOOlllllOOlllllOOlllllOOlllllOOlllllOOlllllOOlllllO | AC130: MO2 | AD130: Reinheim Bf # Niedernhausen # Brandau #
A131: REG | B131: 18 | C131: HEAG Verkehrs-GmbH | E131: 057_ | F131: 0 | G131: H | H131: Mo-Fr | I131: 2023 | K131: Groß-Bieberau | L131: Solo-Überlandbus-NF | M131: 0 | N131: 0 | O131: 0 | P131: 0 | Q131: 0 | R131: 2000-01-01T20:28:00 | S131: 2000-01-01T20:36:30 | T131: 1.463888888 | U131: =T131*24 -> 35.13333332 | W131: 248 | X131: 3620 | Y131: 897.76 | Z131: 0 | AA131: 0 | AB131: OlllllOOlOOOlOOlOOllOOlllllOOlllllOOlllllOOlllllOOlllllOOlllllOOlllllOOlllllOOlllllOOlllllOOlllllOOlllllOOlllllOOlllllOOllllOOOOllllOOlllOlOOlllllOOlllllOOlllllOOlllOlOOlllllOOOllllOOlllOlOOlllllOOlllllOOlllllOOlllllOOlllllOOlllllOOlllllOOlllllOOlllllOOlllllOOlllllOOlllllOOlllllOOlllllOOllllOOOlllllOOlllllOOlllllOOlllllOOlllllOOlllllOOlllllOOlllllOOlllllOOlllllO | AC131: MO2 | AD131: Reinheim Bf # Niedernhausen # Brandau #
A132: REG | B132: 18 | C132: HEAG Verkehrs-GmbH | E132: 057_ | F132: 0 | G132: H | H132: Mo-Fr | I132: 2023 | K132: Fischbachtal | L132: Solo-Überlandbus-NF | M132: 0 | N132: 0 | O132: 0 | P132: 0 | Q132: 0 | R132: 2000-01-01T20:36:30 | S132: 2000-01-01T20:44:54 | T132: 1.446666667 | U132: 34.72000002 | W132: 248 | X132: 6649 | Y132: 1648.952 | Z132: 0 | AA132: 0 | AB132: OlllllOOlOOOlOOlOOllOOlllllOOlllllOOlllllOOlllllOOlllllOOlllllOOlllllOOlllllOOlllllOOlllllOOlllllOOlllllOOlllllOOlllllOOllllOOOOllllOOlllOlOOlllllOOlllllOOlllllOOlllOlOOlllllOOOllllOOlllOlOOlllllOOlllllOOlllllOOlllllOOlllllOOlllllOOlllllOOlllllOOlllllOOlllllOOlllllOOlllllOOlllllOOlllllOOllllOOOlllllOOlllllOOlllllOOlllllOOlllllOOlllllOOlllllOOlllllOOlllllOOlllllO | AC132: MO2 | AD132: Reinheim Bf # Niedernhausen # Brandau #
A133: REG | B133: 18 | C133: HEAG Verkehrs-GmbH | E133: 057_ | F133: 0 | G133: H | H133: Mo-Fr | I133: 2023 | K133: Modautal | L133: Solo-Überlandbus-NF | M133: 0 | N133: 0 | O133: 0 | P133: 0 | Q133: 0 | R133: 2000-01-01T20:44:54 | S133: 2000-01-01T20:58:00 | T133: 2.256111112 | U133: 54.14666668 | W133: 248 | X133: 8797 | Y133: 2181.656 | Z133: 0 | AA133: 0 | AB133: OlllllOOlOOOlOOlOOllOOlllllOOlllllOOlllllOOlllllOOlllllOOlllllOOlllllOOlllllOOlllllOOlllllOOlllllOOlllllOOlllllOOlllllOOllllOOOOllllOOlllOlOOlllllOOlllllOOlllllOOlllOlOOlllllOOOllllOOlllOlOOlllllOOlllllOOlllllOOlllllOOlllllOOlllllOOlllllOOlllllOOlllllOOlllllOOlllllOOlllllOOlllllOOlllllOOllllOOOlllllOOlllllOOlllllOOlllllOOlllllOOlllllOOlllllOOlllllOOlllllOOlllllO | AC133: MO2 | AD133: Reinheim Bf # Niedernhausen # Brandau #
A134: REG | B134: 18 | C134: HEAG Verkehrs-GmbH | E134: 057_ | F134: 0 | G134: H | H134: Mo-Fr | I134: 2023 | K134: Lautertal (Odenwald) | L134: Solo-Überlandbus-NF | M134: 0 | N134: 0 | O134: 0 | P134: 0 | Q134: 0 | R134: 2000-01-01T20:58:00 | S134: 2000-01-01T21:09:00 | T134: 1.894444443 | U134: 45.46666664 | W134: 248 | X134: 5965 | Y134: 1479.32 | Z134: 0 | AA134: 0 | AB134: OlllllOOlOOOlOOlOOllOOlllllOOlllllOOlllllOOlllllOOlllllOOlllllOOlllllOOlllllOOlllllOOlllllOOlllllOOlllllOOlllllOOlllllOOllllOOOOllllOOlllOlOOlllllOOlllllOOlllllOOlllOlOOlllllOOOllllOOlllOlOOlllllOOlllllOOlllllOOlllllOOlllllOOlllllOOlllllOOlllllOOlllllOOlllllOOlllllOOlllllOOlllllOOlllllOOllllOOOlllllOOlllllOOlllllOOlllllOOlllllOOlllllOOlllllOOlllllOOlllllOOlllllO | AC134: MO2 | AD134: Reinheim Bf # Niedernhausen # Brandau #
A135: REG | B135: 18 | C135: HEAG Verkehrs-GmbH | E135: 057_ | F135: 0 | G135: H | H135: Mo-Fr | I135: 2128 | K135: Reinheim | L135: Solo-Überlandbus-NF | M135: 0 | N135: 0 | O135: 0 | P135: 0 | Q135: 0 | R135: 2000-01-01T21:28:00 | S135: 2000-01-01T21:33:00 | T135: 0.8611111121 | U135: 20.66666669 | W135: 248 | X135: 2066 | Y135: 512.368 | Z135: 0 | AA135: 0 | AB135: OlllllOOlOOOlOOlOOllOOlllllOOlllllOOlllllOOlllllOOlllllOOlllllOOlllllOOlllllOOlllllOOlllllOOlllllOOlllllOOlllllOOlllllOOllllOOOOllllOOlllOlOOlllllOOlllllOOlllllOOlllOlOOlllllOOOllllOOlllOlOOlllllOOlllllOOlllllOOlllllOOlllllOOlllllOOlllllOOlllllOOlllllOOlllllOOlllllOOlllllOOlllllOOlllllOOllllOOOlllllOOlllllOOlllllOOlllllOOlllllOOlllllOOlllllOOlllllOOlllllOOlllllO | AC135: MO2 | AD135: Reinheim Bf # Niedernhausen # Brandau #
A136: REG | B136: 18 | C136: HEAG Verkehrs-GmbH | E136: 057_ | F136: 0 | G136: H | H136: Mo-Fr | I136: 2128 | K136: Groß-Bieberau | L136: Solo-Überlandbus-NF | M136: 0 | N136: 0 | O136: 0 | P136: 0 | Q136: 0 | R136: 2000-01-01T21:33:00 | S136: 2000-01-01T21:41:30 | T136: 1.463888888 | U136: 35.13333332 | W136: 248 | X136: 3620 | Y136: 897.76 | Z136: 0 | AA136: 0 | AB136: OlllllOOlOOOlOOlOOllOOlllllOOlllllOOlllllOOlllllOOlllllOOlllllOOlllllOOlllllOOlllllOOlllllOOlllllOOlllllOOlllllOOlllllOOllllOOOOllllOOlllOlOOlllllOOlllllOOlllllOOlllOlOOlllllOOOllllOOlllOlOOlllllOOlllllOOlllllOOlllllOOlllllOOlllllOOlllllOOlllllOOlllllOOlllllOOlllllOOlllllOOlllllOOlllllOOllllOOOlllllOOlllllOOlllllOOlllllOOlllllOOlllllOOlllllOOlllllOOlllllOOlllllO | AC136: MO2 | AD136: Reinheim Bf # Niedernhausen # Brandau #
A137: REG | B137: 18 | C137: HEAG Verkehrs-GmbH | E137: 057_ | F137: 0 | G137: H | H137: Mo-Fr | I137: 2128 | K137: Fischbachtal | L137: Solo-Überlandbus-NF | M137: 0 | N137: 0 | O137: 0 | P137: 0 | Q137: 0 | R137: 2000-01-01T21:41:30 | S137: 2000-01-01T21:49:54 | T137: 1.446666667 | U137: 34.72000002 | W137: 248 | X137: 6649 | Y137: 1648.952 | Z137: 0 | AA137: 0 | AB137: OlllllOOlOOOlOOlOOllOOlllllOOlllllOOlllllOOlllllOOlllllOOlllllOOlllllOOlllllOOlllllOOlllllOOlllllOOlllllOOlllllOOlllllOOllllOOOOllllOOlllOlOOlllllOOlllllOOlllllOOlllOlOOlllllOOOllllOOlllOlOOlllllOOlllllOOlllllOOlllllOOlllllOOlllllOOlllllOOlllllOOlllllOOlllllOOlllllOOlllllOOlllllOOlllllOOllllOOOlllllOOlllllOOlllllOOlllllOOlllllOOlllllOOlllllOOlllllOOlllllOOlllllO | AC137: MO2 | AD137: Reinheim Bf # Niedernhausen # Brandau #
A138: REG | B138: 18 | C138: HEAG Verkehrs-GmbH | E138: 057_ | F138: 0 | G138: H | H138: Mo-Fr | I138: 2128 | K138: Modautal | L138: Solo-Überlandbus-NF | M138: 0 | N138: 0 | O138: 0 | P138: 0 | Q138: 0 | R138: 2000-01-01T21:49:54 | S138: 2000-01-01T22:00:00 | T138: 1.739444443 | U138: 41.74666664 | W138: 248 | X138: 7472 | Y138: 1853.056 | Z138: 0 | AA138: 0 | AB138: OlllllOOlOOOlOOlOOllOOlllllOOlllllOOlllllOOlllllOOlllllOOlllllOOlllllOOlllllOOlllllOOlllllOOlllllOOlllllOOlllllOOlllllOOllllOOOOllllOOlllOlOOlllllOOlllllOOlllllOOlllOlOOlllllOOOllllOOlllOlOOlllllOOlllllOOlllllOOlllllOOlllllOOlllllOOlllllOOlllllOOlllllOOlllllOOlllllOOlllllOOlllllOOlllllOOllllOOOlllllOOlllllOOlllllOOlllllOOlllllOOlllllOOlllllOOlllllOOlllllOOlllllO | AC138: MO2 | AD138: Reinheim Bf # Niedernhausen # Brandau #
A139: REG | B139: 18 | C139: HEAG Verkehrs-GmbH | E139: 057_ | F139: 0 | G139: H | H139: Mo-Fr | I139: 2328 | K139: Reinheim | L139: Solo-Überlandbus-NF | M139: 0 | N139: 0 | O139: 0 | P139: 0 | Q139: 0 | R139: 2000-01-01T23:28:00 | S139: 2000-01-01T23:33:00 | T139: 0.8611111103 | U139: 20.66666665 | W139: 248 | X139: 2066 | Y139: 512.368 | Z139: 0 | AA139: 0 | AB139: OlllllOOlOOOlOOlOOllOOlllllOOlllllOOlllllOOlllllOOlllllOOlllllOOlllllOOlllllOOlllllOOlllllOOlllllOOlllllOOlllllOOlllllOOllllOOOOllllOOlllOlOOlllllOOlllllOOlllllOOlllOlOOlllllOOOllllOOlllOlOOlllllOOlllllOOlllllOOlllllOOlllllOOlllllOOlllllOOlllllOOlllllOOlllllOOlllllOOlllllOOlllllOOlllllOOllllOOOlllllOOlllllOOlllllOOlllllOOlllllOOlllllOOlllllOOlllllOOlllllOOlllllO | AC139: MO2 | AD139: Reinheim Bf # Niedernhausen # Brandau #
A140: REG | B140: 18 | C140: HEAG Verkehrs-GmbH | E140: 057_ | F140: 0 | G140: H | H140: Mo-Fr | I140: 2328 | K140: Groß-Bieberau | L140: Solo-Überlandbus-NF | M140: 0 | N140: 0 | O140: 0 | P140: 0 | Q140: 0 | R140: 2000-01-01T23:33:00 | S140: 2000-01-01T23:41:30 | T140: 1.46388889 | U140: 35.13333336 | W140: 248 | X140: 3620 | Y140: 897.76 | Z140: 0 | AA140: 0 | AB140: OlllllOOlOOOlOOlOOllOOlllllOOlllllOOlllllOOlllllOOlllllOOlllllOOlllllOOlllllOOlllllOOlllllOOlllllOOlllllOOlllllOOlllllOOllllOOOOllllOOlllOlOOlllllOOlllllOOlllllOOlllOlOOlllllOOOllllOOlllOlOOlllllOOlllllOOlllllOOlllllOOlllllOOlllllOOlllllOOlllllOOlllllOOlllllOOlllllOOlllllOOlllllOOlllllOOllllOOOlllllOOlllllOOlllllOOlllllOOlllllOOlllllOOlllllOOlllllOOlllllOOlllllO | AC140: MO2 | AD140: Reinheim Bf # Niedernhausen # Brandau #
A141: REG | B141: 18 | C141: HEAG Verkehrs-GmbH | E141: 057_ | F141: 0 | G141: H | H141: Mo-Fr | I141: 2328 | K141: Fischbachtal | L141: Solo-Überlandbus-NF | M141: 0 | N141: 0 | O141: 0 | P141: 0 | Q141: 0 | R141: 2000-01-01T23:41:30 | S141: 2000-01-01T23:49:54 | T141: 1.446666666 | U141: 34.71999997 | W141: 248 | X141: 6649 | Y141: 1648.952 | Z141: 0 | AA141: 0 | AB141: OlllllOOlOOOlOOlOOllOOlllllOOlllllOOlllllOOlllllOOlllllOOlllllOOlllllOOlllllOOlllllOOlllllOOlllllOOlllllOOlllllOOlllllOOllllOOOOllllOOlllOlOOlllllOOlllllOOlllllOOlllOlOOlllllOOOllllOOlllOlOOlllllOOlllllOOlllllOOlllllOOlllllOOlllllOOlllllOOlllllOOlllllOOlllllOOlllllOOlllllOOlllllOOlllllOOllllOOOlllllOOlllllOOlllllOOlllllOOlllllOOlllllOOlllllOOlllllOOlllllOOlllllO | AC141: MO2 | AD141: Reinheim Bf # Niedernhausen # Brandau #
A142: REG | B142: 18 | C142: HEAG Verkehrs-GmbH | E142: 057_ | F142: 0 | G142: H | H142: Mo-Fr | I142: 2328 | K142: Modautal | L142: Solo-Überlandbus-NF | M142: 0 | N142: 0 | O142: 0 | P142: 0 | Q142: 0 | R142: 2000-01-01T23:49:54 | S142: 2000-01-02 | T142: 1.739444445 | U142: 41.74666668 | W142: 248 | X142: 7472 | Y142: 1853.056 | Z142: 0 | AA142: 0 | AB142: OlllllOOlOOOlOOlOOllOOlllllOOlllllOOlllllOOlllllOOlllllOOlllllOOlllllOOlllllOOlllllOOlllllOOlllllOOlllllOOlllllOOlllllOOllllOOOOllllOOlllOlOOlllllOOlllllOOlllllOOlllOlOOlllllOOOllllOOlllOlOOlllllOOlllllOOlllllOOlllllOOlllllOOlllllOOlllllOOlllllOOlllllOOlllllOOlllllOOlllllOOlllllOOlllllOOllllOOOlllllOOlllllOOlllllOOlllllOOlllllOOlllllOOlllllOOlllllOOlllllOOlllllO | AC142: MO2 | AD142: Reinheim Bf # Niedernhausen # Brandau #
A143: REG | B143: 18 | C143: HEAG Verkehrs-GmbH | E143: 057_ | F143: 0 | G143: H | H143: Mo-Fr | I143: 2432 | K143: Reinheim | L143: Solo-Überlandbus-NF | M143: 0 | N143: 0 | O143: 0 | P143: 0 | Q143: 0 | R143: 2000-01-02T00:31:00 | S143: 2000-01-02T00:36:00 | T143: 0.6631944452 | U143: 15.91666669 | V143: dh - gültig Mo-Do, nicht Nächte 03./04.03., 04./05.03., 17./18.04., 30.04./01.05., 28 | W143: 191 | X143: 2066 | Y143: 394.606 | Z143: 0 | AA143: 0 | AB143: OllllOOOlOOOOOOlOOlOOOllllOOOllllOOOllllOOOllllOOOllllOOOllllOOOllllOOOllllOOOOOllOOOllllOOOllllOOOllllOOOllllOOOllllOOOlllOOOOOlllOOOllOOOOOllllOOOllllOOOllllOOOllOOOOOllllOOOOlllOOOllOOOOOllllOOOllllOOOllllOOOllllOOOllllOOOllllOOOllllOOOllllOOOllllOOOllllOOOllllOOOllllOOOllllOOOllllOOOlllOOOOllllOOOllllOOOllllOOOllllOOOllllOOOllllOOOllllOOOllllOOOllllOOOllllOO | AC143: MO2 | AD143: Reinheim Bf # Niedernhausen # Brandau #
A144: REG | B144: 18 | C144: HEAG Verkehrs-GmbH | E144: 057_ | F144: 0 | G144: H | H144: Mo-Fr | I144: 2432 | K144: Groß-Bieberau | L144: Solo-Überlandbus-NF | M144: 0 | N144: 0 | O144: 0 | P144: 0 | Q144: 0 | R144: 2000-01-02T00:36:00 | S144: 2000-01-02T00:44:30 | T144: 1.127430555 | U144: 27.05833332 | V144: dh - gültig Mo-Do, nicht Nächte 03./04.03., 04./05.03., 17./18.04., 30.04./01.05., 28 | W144: 191 | X144: 3620 | Y144: 691.42 | Z144: 0 | AA144: 0 | AB144: OllllOOOlOOOOOOlOOlOOOllllOOOllllOOOllllOOOllllOOOllllOOOllllOOOllllOOOllllOOOOOllOOOllllOOOllllOOOllllOOOllllOOOllllOOOlllOOOOOlllOOOllOOOOOllllOOOllllOOOllllOOOllOOOOOllllOOOOlllOOOllOOOOOllllOOOllllOOOllllOOOllllOOOllllOOOllllOOOllllOOOllllOOOllllOOOllllOOOllllOOOllllOOOllllOOOllllOOOlllOOOOllllOOOllllOOOllllOOOllllOOOllllOOOllllOOOllllOOOllllOOOllllOOOllllOO | AC144: MO2 | AD144: Reinheim Bf # Niedernhausen # Brandau #
A145: REG | B145: 18 | C145: HEAG Verkehrs-GmbH | E145: 057_ | F145: 0 | G145: H | H145: Mo-Fr | I145: 2432 | K145: Fischbachtal | L145: Solo-Überlandbus-NF | M145: 0 | N145: 0 | O145: 0 | P145: 0 | Q145: 0 | R145: 2000-01-02T00:44:30 | S145: 2000-01-02T00:52:54 | T145: 1.114166667 | U145: 26.74000001 | V145: dh - gültig Mo-Do, nicht Nächte 03./04.03., 04./05.03., 17./18.04., 30.04./01.05., 28 | W145: 191 | X145: 6649 | Y145: 1269.959 | Z145: 0 | AA145: 0 | AB145: OllllOOOlOOOOOOlOOlOOOllllOOOllllOOOllllOOOllllOOOllllOOOllllOOOllllOOOllllOOOOOllOOOllllOOOllllOOOllllOOOllllOOOllllOOOlllOOOOOlllOOOllOOOOOllllOOOllllOOOllllOOOllOOOOOllllOOOOlllOOOllOOOOOllllOOOllllOOOllllOOOllllOOOllllOOOllllOOOllllOOOllllOOOllllOOOllllOOOllllOOOllllOOOllllOOOllllOOOlllOOOOllllOOOllllOOOllllOOOllllOOOllllOOOllllOOOllllOOOllllOOOllllOOOllllOO | AC145: MO2 | AD145: Reinheim Bf # Niedernhausen # Brandau #
A146: REG | B146: 18 | C146: HEAG Verkehrs-GmbH | E146: 057_ | F146: 0 | G146: H | H146: Mo-Fr | I146: 2432 | K146: Modautal | L146: Solo-Überlandbus-NF | M146: 0 | N146: 0 | O146: 0 | P146: 0 | Q146: 0 | R146: 2000-01-02T00:52:54 | S146: 2000-01-02T01:03:00 | T146: 1.339652777 | U146: 32.15166664 | V146: dh - gültig Mo-Do, nicht Nächte 03./04.03., 04./05.03., 17./18.04., 30.04./01.05., 28 | W146: 191 | X146: 7472 | Y146: 1427.152 | Z146: 0 | AA146: 0 | AB146: OllllOOOlOOOOOOlOOlOOOllllOOOllllOOOllllOOOllllOOOllllOOOllllOOOllllOOOllllOOOOOllOOOllllOOOllllOOOllllOOOllllOOOllllOOOlllOOOOOlllOOOllOOOOOllllOOOllllOOOllllOOOllOOOOOllllOOOOlllOOOllOOOOOllllOOOllllOOOllllOOOllllOOOllllOOOllllOOOllllOOOllllOOOllllOOOllllOOOllllOOOllllOOOllllOOOllllOOOlllOOOOllllOOOllllOOOllllOOOllllOOOllllOOOllllOOOllllOOOllllOOOllllOOOllllOO | AC146: MO2 | AD146: Reinheim Bf # Niedernhausen # Brandau #
A147: REG | B147: 18 | C147: HEAG Verkehrs-GmbH | E147: 057_ | F147: 0 | G147: H | H147: Mo-Fr | I147: 2436 | K147: Reinheim | L147: Solo-Überlandbus-NF | M147: 0 | N147: 0 | O147: 0 | P147: 0 | Q147: 0 | R147: 2000-01-02T00:36:00 | S147: 2000-01-02T00:41:00 | T147: 0.1979166665 | U147: 4.749999996 | V147: dd - gültig Nächte Freitag/Samstag, auch Nächte 03./04.03., 04./05.03., 17./18.04., 3 | W147: 57 | X147: 2066 | Y147: 117.762 | Z147: 0 | AA147: 0 | AB147: OOOOOlOOOOOOlOOOOOOlOOOOOOlOOOOOOlOOOOOOlOOOOOOlOOOOOOlOOOOOOlOOOOOOlOOOOOOlOOllOOlOOOOOOlOOOOOOlOOOOOOlOOOOOOlOOOOOOlOOOOOlOOOOOOOlOOOOlOlOOOOOOlOOOOOOlOOOOOOlOOOOlOlOOOOOOlOOOOOOlOOOOlOlOOOOOOlOOOOOOlOOOOOOlOOOOOOlOOOOOOlOOOOOOlOOOOOOlOOOOOOlOOOOOOlOOOOOOlOOOOOOlOOOOOOlOOOOOOlOOOOOOlOOOOOlOOOOOOOlOOOOOOlOOOOOOlOOOOOOlOOOOOOlOOOOOOlOOOOOOlOOOOOOlOOOOOOlOOOOOOlO | AC147: MO2 | AD147: Reinheim Bf # Niedernhausen # Brandau #
A148: REG | B148: 18 | C148: HEAG Verkehrs-GmbH | E148: 057_ | F148: 0 | G148: H | H148: Mo-Fr | I148: 2436 | K148: Groß-Bieberau | L148: Solo-Überlandbus-NF | M148: 0 | N148: 0 | O148: 0 | P148: 0 | Q148: 0 | R148: 2000-01-02T00:41:00 | S148: 2000-01-02T00:49:30 | T148: 0.3364583336 | U148: 8.075000006 | V148: dd - gültig Nächte Freitag/Samstag, auch Nächte 03./04.03., 04./05.03., 17./18.04., 3 | W148: 57 | X148: 3620 | Y148: 206.34 | Z148: 0 | AA148: 0 | AB148: OOOOOlOOOOOOlOOOOOOlOOOOOOlOOOOOOlOOOOOOlOOOOOOlOOOOOOlOOOOOOlOOOOOOlOOOOOOlOOllOOlOOOOOOlOOOOOOlOOOOOOlOOOOOOlOOOOOOlOOOOOlOOOOOOOlOOOOlOlOOOOOOlOOOOOOlOOOOOOlOOOOlOlOOOOOOlOOOOOOlOOOOlOlOOOOOOlOOOOOOlOOOOOOlOOOOOOlOOOOOOlOOOOOOlOOOOOOlOOOOOOlOOOOOOlOOOOOOlOOOOOOlOOOOOOlOOOOOOlOOOOOOlOOOOOlOOOOOOOlOOOOOOlOOOOOOlOOOOOOlOOOOOOlOOOOOOlOOOOOOlOOOOOOlOOOOOOlOOOOOOlO | AC148: MO2 | AD148: Reinheim Bf # Niedernhausen # Brandau #
A149: REG | B149: 18 | C149: HEAG Verkehrs-GmbH | E149: 057_ | F149: 0 | G149: H | H149: Mo-Fr | I149: 2436 | K149: Fischbachtal | L149: Solo-Überlandbus-NF | M149: 0 | N149: 0 | O149: 0 | P149: 0 | Q149: 0 | R149: 2000-01-02T00:49:30 | S149: 2000-01-02T00:54:00 | T149: 0.1781249998 | U149: 4.274999994 | V149: dd - gültig Nächte Freitag/Samstag, auch Nächte 03./04.03., 04./05.03., 17./18.04., 3 | W149: 57 | X149: 2432 | Y149: 138.624 | Z149: 0 | AA149: 0 | AB149: OOOOOlOOOOOOlOOOOOOlOOOOOOlOOOOOOlOOOOOOlOOOOOOlOOOOOOlOOOOOOlOOOOOOlOOOOOOlOOllOOlOOOOOOlOOOOOOlOOOOOOlOOOOOOlOOOOOOlOOOOOlOOOOOOOlOOOOlOlOOOOOOlOOOOOOlOOOOOOlOOOOlOlOOOOOOlOOOOOOlOOOOlOlOOOOOOlOOOOOOlOOOOOOlOOOOOOlOOOOOOlOOOOOOlOOOOOOlOOOOOOlOOOOOOlOOOOOOlOOOOOOlOOOOOOlOOOOOOlOOOOOOlOOOOOlOOOOOOOlOOOOOOlOOOOOOlOOOOOOlOOOOOOlOOOOOOlOOOOOOlOOOOOOlOOOOOOlOOOOOOlO | AC149: MO2 | AD149: Reinheim Bf # Niedernhausen # Brandau #
A150: REG | B150: 18 | C150: HEAG Verkehrs-GmbH | E150: 057_ | F150: 0 | G150: H | H150: Mo-Fr | I150: 2533 | K150: Reinheim | L150: Solo-Überlandbus-NF | M150: 0 | N150: 0 | O150: 0 | P150: 0 | Q150: 0 | R150: 2000-01-02T01:33:00 | S150: 2000-01-02T01:38:00 | T150: 0.1979166669 | U150: 4.750000006 | V150: dd - gültig Nächte Freitag/Samstag, auch Nächte 03./04.03., 04./05.03., 17./18.04., 3 | W150: 57 | X150: 2066 | Y150: 117.762 | Z150: 0 | AA150: 0 | AB150: OOOOOlOOOOOOlOOOOOOlOOOOOOlOOOOOOlOOOOOOlOOOOOOlOOOOOOlOOOOOOlOOOOOOlOOOOOOlOOllOOlOOOOOOlOOOOOOlOOOOOOlOOOOOOlOOOOOOlOOOOOlOOOOOOOlOOOOlOlOOOOOOlOOOOOOlOOOOOOlOOOOlOlOOOOOOlOOOOOOlOOOOlOlOOOOOOlOOOOOOlOOOOOOlOOOOOOlOOOOOOlOOOOOOlOOOOOOlOOOOOOlOOOOOOlOOOOOOlOOOOOOlOOOOOOlOOOOOOlOOOOOOlOOOOOlOOOOOOOlOOOOOOlOOOOOOlOOOOOOlOOOOOOlOOOOOOlOOOOOOlOOOOOOlOOOOOOlOOOOOOlO | AC150: MO2 | AD150: Reinheim Bf # Niedernhausen # Brandau #
A151: REG | B151: 18 | C151: HEAG Verkehrs-GmbH | E151: 057_ | F151: 0 | G151: H | H151: Mo-Fr | I151: 2533 | K151: Groß-Bieberau | L151: Solo-Überlandbus-NF | M151: 0 | N151: 0 | O151: 0 | P151: 0 | Q151: 0 | R151: 2000-01-02T01:38:00 | S151: 2000-01-02T01:46:30 | T151: 0.3364583332 | U151: 8.074999996 | V151: dd - gültig Nächte Freitag/Samstag, auch Nächte 03./04.03., 04./05.03., 17./18.04., 3 | W151: 57 | X151: 3620 | Y151: 206.34 | Z151: 0 | AA151: 0 | AB151: OOOOOlOOOOOOlOOOOOOlOOOOOOlOOOOOOlOOOOOOlOOOOOOlOOOOOOlOOOOOOlOOOOOOlOOOOOOlOOllOOlOOOOOOlOOOOOOlOOOOOOlOOOOOOlOOOOOOlOOOOOlOOOOOOOlOOOOlOlOOOOOOlOOOOOOlOOOOOOlOOOOlOlOOOOOOlOOOOOOlOOOOlOlOOOOOOlOOOOOOlOOOOOOlOOOOOOlOOOOOOlOOOOOOlOOOOOOlOOOOOOlOOOOOOlOOOOOOlOOOOOOlOOOOOOlOOOOOOlOOOOOOlOOOOOlOOOOOOOlOOOOOOlOOOOOOlOOOOOOlOOOOOOlOOOOOOlOOOOOOlOOOOOOlOOOOOOlOOOOOOlO | AC151: MO2 | AD151: Reinheim Bf # Niedernhausen # Brandau #
A152: REG | B152: 18 | C152: HEAG Verkehrs-GmbH | E152: 057_ | F152: 0 | G152: H | H152: Mo-Fr | I152: 2533 | K152: Fischbachtal | L152: Solo-Überlandbus-NF | M152: 0 | N152: 0 | O152: 0 | P152: 0 | Q152: 0 | R152: 2000-01-02T01:46:30 | S152: 2000-01-02T01:51:00 | T152: 0.1781249998 | U152: 4.274999994 | V152: dd - gültig Nächte Freitag/Samstag, auch Nächte 03./04.03., 04./05.03., 17./18.04., 3 | W152: 57 | X152: 2432 | Y152: 138.624 | Z152: 0 | AA152: 0 | AB152: OOOOOlOOOOOOlOOOOOOlOOOOOOlOOOOOOlOOOOOOlOOOOOOlOOOOOOlOOOOOOlOOOOOOlOOOOOOlOOllOOlOOOOOOlOOOOOOlOOOOOOlOOOOOOlOOOOOOlOOOOOlOOOOOOOlOOOOlOlOOOOOOlOOOOOOlOOOOOOlOOOOlOlOOOOOOlOOOOOOlOOOOlOlOOOOOOlOOOOOOlOOOOOOlOOOOOOlOOOOOOlOOOOOOlOOOOOOlOOOOOOlOOOOOOlOOOOOOlOOOOOOlOOOOOOlOOOOOOlOOOOOOlOOOOOlOOOOOOOlOOOOOOlOOOOOOlOOOOOOlOOOOOOlOOOOOOlOOOOOOlOOOOOOlOOOOOOlOOOOOOlO | AC152: MO2 | AD152: Reinheim Bf # Niedernhausen # Brandau #
A153: REG | B153: 18 | C153: HEAG Verkehrs-GmbH | E153: 057_ | F153: 0 | G153: H | H153: Mo-Fr | I153: 2633 | K153: Reinheim | L153: Solo-Überlandbus-NF | M153: 0 | N153: 0 | O153: 0 | P153: 0 | Q153: 0 | R153: 2000-01-02T02:33:00 | S153: 2000-01-02T02:38:00 | T153: 0.1979166669 | U153: 4.750000006 | V153: dd - gültig Nächte Freitag/Samstag, auch Nächte 03./04.03., 04./05.03., 17./18.04., 3 | W153: 57 | X153: 2066 | Y153: 117.762 | Z153: 0 | AA153: 0 | AB153: OOOOOlOOOOOOlOOOOOOlOOOOOOlOOOOOOlOOOOOOlOOOOOOlOOOOOOlOOOOOOlOOOOOOlOOOOOOlOOllOOlOOOOOOlOOOOOOlOOOOOOlOOOOOOlOOOOOOlOOOOOlOOOOOOOlOOOOlOlOOOOOOlOOOOOOlOOOOOOlOOOOlOlOOOOOOlOOOOOOlOOOOlOlOOOOOOlOOOOOOlOOOOOOlOOOOOOlOOOOOOlOOOOOOlOOOOOOlOOOOOOlOOOOOOlOOOOOOlOOOOOOlOOOOOOlOOOOOOlOOOOOOlOOOOOlOOOOOOOlOOOOOOlOOOOOOlOOOOOOlOOOOOOlOOOOOOlOOOOOOlOOOOOOlOOOOOOlOOOOOOlO | AC153: MO2 | AD153: Reinheim Bf # Niedernhausen # Brandau #
A154: REG | B154: 18 | C154: HEAG Verkehrs-GmbH | E154: 057_ | F154: 0 | G154: H | H154: Mo-Fr | I154: 2633 | K154: Groß-Bieberau | L154: Solo-Überlandbus-NF | M154: 0 | N154: 0 | O154: 0 | P154: 0 | Q154: 0 | R154: 2000-01-02T02:38:00 | S154: 2000-01-02T02:46:30 | T154: 0.3364583332 | U154: 8.074999996 | V154: dd - gültig Nächte Freitag/Samstag, auch Nächte 03./04.03., 04./05.03., 17./18.04., 3 | W154: 57 | X154: 3620 | Y154: 206.34 | Z154: 0 | AA154: 0 | AB154: OOOOOlOOOOOOlOOOOOOlOOOOOOlOOOOOOlOOOOOOlOOOOOOlOOOOOOlOOOOOOlOOOOOOlOOOOOOlOOllOOlOOOOOOlOOOOOOlOOOOOOlOOOOOOlOOOOOOlOOOOOlOOOOOOOlOOOOlOlOOOOOOlOOOOOOlOOOOOOlOOOOlOlOOOOOOlOOOOOOlOOOOlOlOOOOOOlOOOOOOlOOOOOOlOOOOOOlOOOOOOlOOOOOOlOOOOOOlOOOOOOlOOOOOOlOOOOOOlOOOOOOlOOOOOOlOOOOOOlOOOOOOlOOOOOlOOOOOOOlOOOOOOlOOOOOOlOOOOOOlOOOOOOlOOOOOOlOOOOOOlOOOOOOlOOOOOOlOOOOOOlO | AC154: MO2 | AD154: Reinheim Bf # Niedernhausen # Brandau #
A155: REG | B155: 18 | C155: HEAG Verkehrs-GmbH | E155: 057_ | F155: 0 | G155: H | H155: Mo-Fr | I155: 2633 | K155: Fischbachtal | L155: Solo-Überlandbus-NF | M155: 0 | N155: 0 | O155: 0 | P155: 0 | Q155: 0 | R155: 2000-01-02T02:46:30 | S155: 2000-01-02T02:54:54 | T155: 0.3325000002 | U155: 7.980000004 | V155: dd - gültig Nächte Freitag/Samstag, auch Nächte 03./04.03., 04./05.03., 17./18.04., 3 | W155: 57 | X155: 6649 | Y155: 378.993 | Z155: 0 | AA155: 0 | AB155: OOOOOlOOOOOOlOOOOOOlOOOOOOlOOOOOOlOOOOOOlOOOOOOlOOOOOOlOOOOOOlOOOOOOlOOOOOOlOOllOOlOOOOOOlOOOOOOlOOOOOOlOOOOOOlOOOOOOlOOOOOlOOOOOOOlOOOOlOlOOOOOOlOOOOOOlOOOOOOlOOOOlOlOOOOOOlOOOOOOlOOOOlOlOOOOOOlOOOOOOlOOOOOOlOOOOOOlOOOOOOlOOOOOOlOOOOOOlOOOOOOlOOOOOOlOOOOOOlOOOOOOlOOOOOOlOOOOOOlOOOOOOlOOOOOlOOOOOOOlOOOOOOlOOOOOOlOOOOOOlOOOOOOlOOOOOOlOOOOOOlOOOOOOlOOOOOOlOOOOOOlO | AC155: MO2 | AD155: Reinheim Bf # Niedernhausen # Brandau #
A156: REG | B156: 18 | C156: HEAG Verkehrs-GmbH | E156: 057_ | F156: 0 | G156: H | H156: Mo-Fr | I156: 2633 | K156: Modautal | L156: Solo-Überlandbus-NF | M156: 0 | N156: 0 | O156: 0 | P156: 0 | Q156: 0 | R156: 2000-01-02T02:54:54 | S156: 2000-01-02T03:05:00 | T156: 0.3997916664 | U156: 9.594999993 | V156: dd - gültig Nächte Freitag/Samstag, auch Nächte 03./04.03., 04./05.03., 17./18.04., 3 | W156: 57 | X156: 7472 | Y156: 425.904 | Z156: 0 | AA156: 0 | AB156: OOOOOlOOOOOOlOOOOOOlOOOOOOlOOOOOOlOOOOOOlOOOOOOlOOOOOOlOOOOOOlOOOOOOlOOOOOOlOOllOOlOOOOOOlOOOOOOlOOOOOOlOOOOOOlOOOOOOlOOOOOlOOOOOOOlOOOOlOlOOOOOOlOOOOOOlOOOOOOlOOOOlOlOOOOOOlOOOOOOlOOOOlOlOOOOOOlOOOOOOlOOOOOOlOOOOOOlOOOOOOlOOOOOOlOOOOOOlOOOOOOlOOOOOOlOOOOOOlOOOOOOlOOOOOOlOOOOOOlOOOOOOlOOOOOlOOOOOOOlOOOOOOlOOOOOOlOOOOOOlOOOOOOlOOOOOOlOOOOOOlOOOOOOlOOOOOOlOOOOOOlO | AC156: MO2 | AD156: Reinheim Bf # Niedernhausen # Brandau #
A157: REG | B157: 18 | C157: HEAG Verkehrs-GmbH | E157: 057_ | F157: 0 | G157: H | H157: Sa | I157: 612 | K157: Reinheim | L157: Solo-Überlandbus-NF | M157: 0 | N157: 0 | O157: 0 | P157: 0 | Q157: 0 | R157: 2000-01-01T06:12:00 | S157: 2000-01-01T06:17:00 | T157: 0.1875000002 | U157: 4.500000005 | W157: 54 | X157: 2066 | Y157: 111.564 | Z157: 0 | AA157: 0 | AB157: OOOOOOlOOlOOOlOOlOOOlOOOOOOlOOOOOOlOOOOOOlOOOOOOlOOOOOOlOOOOOOlOOOOOOlOOOOOOlOOOOOOlOOOOOOlOOOOOOlOOOOOOlOOOOOOlOOOOOOlOOOOOOlOOOOOOlOOOOOOlOOOOOOlOOOOOOlOOOOOOlOOOOOOlOOOOOOlOOOOOOlOOOOOOlOOOOOOlOOOOOOlOOOOOOlOOOOOOlOOOOOOlOOOOOOlOOOOOOlOOOOOOlOOOOOOlOOOOOOlOOOOOOlOOOOOOlOOOOOOlOOOOOOlOOOOOOlOOOOOOlOOOOOOlOOOOOOlOOOOOOlOOOOOOlOOOOOOlOOOOOOlOOOOOOlOOOOOOlOOOOOOl | AC157: MO2 | AD157: Reinheim Bf # Niedernhausen # Brandau #
A158: REG | B158: 18 | C158: HEAG Verkehrs-GmbH | E158: 057_ | F158: 0 | G158: H | H158: Sa | I158: 612 | K158: Groß-Bieberau | L158: Solo-Überlandbus-NF | M158: 0 | N158: 0 | O158: 0 | P158: 0 | Q158: 0 | R158: 2000-01-01T06:17:00 | S158: 2000-01-01T06:25:30 | T158: 0.3187499999 | U158: 7.649999997 | W158: 54 | X158: 3620 | Y158: 195.48 | Z158: 0 | AA158: 0 | AB158: OOOOOOlOOlOOOlOOlOOOlOOOOOOlOOOOOOlOOOOOOlOOOOOOlOOOOOOlOOOOOOlOOOOOOlOOOOOOlOOOOOOlOOOOOOlOOOOOOlOOOOOOlOOOOOOlOOOOOOlOOOOOOlOOOOOOlOOOOOOlOOOOOOlOOOOOOlOOOOOOlOOOOOOlOOOOOOlOOOOOOlOOOOOOlOOOOOOlOOOOOOlOOOOOOlOOOOOOlOOOOOOlOOOOOOlOOOOOOlOOOOOOlOOOOOOlOOOOOOlOOOOOOlOOOOOOlOOOOOOlOOOOOOlOOOOOOlOOOOOOlOOOOOOlOOOOOOlOOOOOOlOOOOOOlOOOOOOlOOOOOOlOOOOOOlOOOOOOlOOOOOOl | AC158: MO2 | AD158: Reinheim Bf # Niedernhausen # Brandau #
A159: REG | B159: 18 | C159: HEAG Verkehrs-GmbH | E159: 057_ | F159: 0 | G159: H | H159: Sa | I159: 612 | K159: Fischbachtal | L159: Solo-Überlandbus-NF | M159: 0 | N159: 0 | O159: 0 | P159: 0 | Q159: 0 | R159: 2000-01-01T06:25:30 | S159: 2000-01-01T06:33:54 | T159: 0.3150000002 | U159: 7.560000004 | W159: 54 | X159: 6649 | Y159: 359.046 | Z159: 0 | AA159: 0 | AB159: OOOOOOlOOlOOOlOOlOOOlOOOOOOlOOOOOOlOOOOOOlOOOOOOlOOOOOOlOOOOOOlOOOOOOlOOOOOOlOOOOOOlOOOOOOlOOOOOOlOOOOOOlOOOOOOlOOOOOOlOOOOOOlOOOOOOlOOOOOOlOOOOOOlOOOOOOlOOOOOOlOOOOOOlOOOOOOlOOOOOOlOOOOOOlOOOOOOlOOOOOOlOOOOOOlOOOOOOlOOOOOOlOOOOOOlOOOOOOlOOOOOOlOOOOOOlOOOOOOlOOOOOOlOOOOOOlOOOOOOlOOOOOOlOOOOOOlOOOOOOlOOOOOOlOOOOOOlOOOOOOlOOOOOOlOOOOOOlOOOOOOlOOOOOOlOOOOOOlOOOOOOl | AC159: MO2 | AD159: Reinheim Bf # Niedernhausen # Brandau #
A160: REG | B160: 18 | C160: HEAG Verkehrs-GmbH | E160: 057_ | F160: 0 | G160: H | H160: Sa | I160: 612 | K160: Modautal | L160: Solo-Überlandbus-NF | M160: 0 | N160: 0 | O160: 0 | P160: 0 | Q160: 0 | R160: 2000-01-01T06:33:54 | S160: 2000-01-01T06:47:00 | T160: 0.4912499997 | U160: 11.78999999 | W160: 54 | X160: 8797 | Y160: 475.038 | Z160: 0 | AA160: 0 | AB160: OOOOOOlOOlOOOlOOlOOOlOOOOOOlOOOOOOlOOOOOOlOOOOOOlOOOOOOlOOOOOOlOOOOOOlOOOOOOlOOOOOOlOOOOOOlOOOOOOlOOOOOOlOOOOOOlOOOOOOlOOOOOOlOOOOOOlOOOOOOlOOOOOOlOOOOOOlOOOOOOlOOOOOOlOOOOOOlOOOOOOlOOOOOOlOOOOOOlOOOOOOlOOOOOOlOOOOOOlOOOOOOlOOOOOOlOOOOOOlOOOOOOlOOOOOOlOOOOOOlOOOOOOlOOOOOOlOOOOOOlOOOOOOlOOOOOOlOOOOOOlOOOOOOlOOOOOOlOOOOOOlOOOOOOlOOOOOOlOOOOOOlOOOOOOlOOOOOOlOOOOOOl | AC160: MO2 | AD160: Reinheim Bf # Niedernhausen # Brandau #
A161: REG | B161: 18 | C161: HEAG Verkehrs-GmbH | E161: 057_ | F161: 0 | G161: H | H161: Sa | I161: 612 | K161: Lautertal (Odenwald) | L161: Solo-Überlandbus-NF | M161: 0 | N161: 0 | O161: 0 | P161: 0 | Q161: 0 | R161: 2000-01-01T06:47:00 | S161: 2000-01-01T06:58:00 | T161: 0.4125000002 | U161: 9.900000004 | W161: 54 | X161: 5965 | Y161: 322.11 | Z161: 0 | AA161: 0 | AB161: OOOOOOlOOlOOOlOOlOOOlOOOOOOlOOOOOOlOOOOOOlOOOOOOlOOOOOOlOOOOOOlOOOOOOlOOOOOOlOOOOOOlOOOOOOlOOOOOOlOOOOOOlOOOOOOlOOOOOOlOOOOOOlOOOOOOlOOOOOOlOOOOOOlOOOOOOlOOOOOOlOOOOOOlOOOOOOlOOOOOOlOOOOOOlOOOOOOlOOOOOOlOOOOOOlOOOOOOlOOOOOOlOOOOOOlOOOOOOlOOOOOOlOOOOOOlOOOOOOlOOOOOOlOOOOOOlOOOOOOlOOOOOOlOOOOOOlOOOOOOlOOOOOOlOOOOOOlOOOOOOlOOOOOOlOOOOOOlOOOOOOlOOOOOOlOOOOOOlOOOOOOl | AC161: MO2 | AD161: Reinheim Bf # Niedernhausen # Brandau #
A162: REG | B162: 18 | C162: HEAG Verkehrs-GmbH | E162: 057_ | F162: 0 | G162: H | H162: Sa | I162: 812 | K162: Reinheim | L162: Solo-Überlandbus-NF | M162: 0 | N162: 0 | O162: 0 | P162: 0 | Q162: 0 | R162: 2000-01-01T08:12:00 | S162: 2000-01-01T08:17:00 | T162: 0.1874999998 | U162: 4.499999996 | W162: 54 | X162: 2066 | Y162: 111.564 | Z162: 0 | AA162: 0 | AB162: OOOOOOlOOlOOOlOOlOOOlOOOOOOlOOOOOOlOOOOOOlOOOOOOlOOOOOOlOOOOOOlOOOOOOlOOOOOOlOOOOOOlOOOOOOlOOOOOOlOOOOOOlOOOOOOlOOOOOOlOOOOOOlOOOOOOlOOOOOOlOOOOOOlOOOOOOlOOOOOOlOOOOOOlOOOOOOlOOOOOOlOOOOOOlOOOOOOlOOOOOOlOOOOOOlOOOOOOlOOOOOOlOOOOOOlOOOOOOlOOOOOOlOOOOOOlOOOOOOlOOOOOOlOOOOOOlOOOOOOlOOOOOOlOOOOOOlOOOOOOlOOOOOOlOOOOOOlOOOOOOlOOOOOOlOOOOOOlOOOOOOlOOOOOOlOOOOOOlOOOOOOl | AC162: MO2 | AD162: Reinheim Bf # Niedernhausen # Brandau #
A163: REG | B163: 18 | C163: HEAG Verkehrs-GmbH | E163: 057_ | F163: 0 | G163: H | H163: Sa | I163: 812 | K163: Groß-Bieberau | L163: Solo-Überlandbus-NF | M163: 0 | N163: 0 | O163: 0 | P163: 0 | Q163: 0 | R163: 2000-01-01T08:17:00 | S163: 2000-01-01T08:25:30 | T163: 0.3187500003 | U163: 7.650000006 | W163: 54 | X163: 3620 | Y163: 195.48 | Z163: 0 | AA163: 0 | AB163: OOOOOOlOOlOOOlOOlOOOlOOOOOOlOOOOOOlOOOOOOlOOOOOOlOOOOOOlOOOOOOlOOOOOOlOOOOOOlOOOOOOlOOOOOOlOOOOOOlOOOOOOlOOOOOOlOOOOOOlOOOOOOlOOOOOOlOOOOOOlOOOOOOlOOOOOOlOOOOOOlOOOOOOlOOOOOOlOOOOOOlOOOOOOlOOOOOOlOOOOOOlOOOOOOlOOOOOOlOOOOOOlOOOOOOlOOOOOOlOOOOOOlOOOOOOlOOOOOOlOOOOOOlOOOOOOlOOOOOOlOOOOOOlOOOOOOlOOOOOOlOOOOOOlOOOOOOlOOOOOOlOOOOOOlOOOOOOlOOOOOOlOOOOOOlOOOOOOlOOOOOOl | AC163: MO2 | AD163: Reinheim Bf # Niedernhausen # Brandau #
A164: REG | B164: 18 | C164: HEAG Verkehrs-GmbH | E164: 057_ | F164: 0 | G164: H | H164: Sa | I164: 812 | K164: Fischbachtal | L164: Solo-Überlandbus-NF | M164: 0 | N164: 0 | O164: 0 | P164: 0 | Q164: 0 | R164: 2000-01-01T08:25:30 | S164: 2000-01-01T08:33:54 | T164: 0.3149999998 | U164: 7.559999994 | W164: 54 | X164: 6649 | Y164: 359.046 | Z164: 0 | AA164: 0 | AB164: OOOOOOlOOlOOOlOOlOOOlOOOOOOlOOOOOOlOOOOOOlOOOOOOlOOOOOOlOOOOOOlOOOOOOlOOOOOOlOOOOOOlOOOOOOlOOOOOOlOOOOOOlOOOOOOlOOOOOOlOOOOOOlOOOOOOlOOOOOOlOOOOOOlOOOOOOlOOOOOOlOOOOOOlOOOOOOlOOOOOOlOOOOOOlOOOOOOlOOOOOOlOOOOOOlOOOOOOlOOOOOOlOOOOOOlOOOOOOlOOOOOOlOOOOOOlOOOOOOlOOOOOOlOOOOOOlOOOOOOlOOOOOOlOOOOOOlOOOOOOlOOOOOOlOOOOOOlOOOOOOlOOOOOOlOOOOOOlOOOOOOlOOOOOOlOOOOOOlOOOOOOl | AC164: MO2 | AD164: Reinheim Bf # Niedernhausen # Brandau #
A165: REG | B165: 18 | C165: HEAG Verkehrs-GmbH | E165: 057_ | F165: 0 | G165: H | H165: Sa | I165: 812 | K165: Modautal | L165: Solo-Überlandbus-NF | M165: 0 | N165: 0 | O165: 0 | P165: 0 | Q165: 0 | R165: 2000-01-01T08:33:54 | S165: 2000-01-01T08:47:00 | T165: 0.4912500001 | U165: 11.79 | W165: 54 | X165: 8797 | Y165: 475.038 | Z165: 0 | AA165: 0 | AB165: OOOOOOlOOlOOOlOOlOOOlOOOOOOlOOOOOOlOOOOOOlOOOOOOlOOOOOOlOOOOOOlOOOOOOlOOOOOOlOOOOOOlOOOOOOlOOOOOOlOOOOOOlOOOOOOlOOOOOOlOOOOOOlOOOOOOlOOOOOOlOOOOOOlOOOOOOlOOOOOOlOOOOOOlOOOOOOlOOOOOOlOOOOOOlOOOOOOlOOOOOOlOOOOOOlOOOOOOlOOOOOOlOOOOOOlOOOOOOlOOOOOOlOOOOOOlOOOOOOlOOOOOOlOOOOOOlOOOOOOlOOOOOOlOOOOOOlOOOOOOlOOOOOOlOOOOOOlOOOOOOlOOOOOOlOOOOOOlOOOOOOlOOOOOOlOOOOOOlOOOOOOl | AC165: MO2 | AD165: Reinheim Bf # Niedernhausen # Brandau #
A166: REG | B166: 18 | C166: HEAG Verkehrs-GmbH | E166: 057_ | F166: 0 | G166: H | H166: Sa | I166: 812 | K166: Lautertal (Odenwald) | L166: Solo-Überlandbus-NF | M166: 0 | N166: 0 | O166: 0 | P166: 0 | Q166: 0 | R166: 2000-01-01T08:47:00 | S166: 2000-01-01T08:58:00 | T166: 0.4125000002 | U166: 9.900000004 | W166: 54 | X166: 5965 | Y166: 322.11 | Z166: 0 | AA166: 0 | AB166: OOOOOOlOOlOOOlOOlOOOlOOOOOOlOOOOOOlOOOOOOlOOOOOOlOOOOOOlOOOOOOlOOOOOOlOOOOOOlOOOOOOlOOOOOOlOOOOOOlOOOOOOlOOOOOOlOOOOOOlOOOOOOlOOOOOOlOOOOOOlOOOOOOlOOOOOOlOOOOOOlOOOOOOlOOOOOOlOOOOOOlOOOOOOlOOOOOOlOOOOOOlOOOOOOlOOOOOOlOOOOOOlOOOOOOlOOOOOOlOOOOOOlOOOOOOlOOOOOOlOOOOOOlOOOOOOlOOOOOOlOOOOOOlOOOOOOlOOOOOOlOOOOOOlOOOOOOlOOOOOOlOOOOOOlOOOOOOlOOOOOOlOOOOOOlOOOOOOlOOOOOOl | AC166: MO2 | AD166: Reinheim Bf # Niedernhausen # Brandau #
A167: REG | B167: 18 | C167: HEAG Verkehrs-GmbH | E167: 057_ | F167: 0 | G167: H | H167: Sa | I167: 1012 | K167: Reinheim | L167: Solo-Überlandbus-NF | M167: 0 | N167: 0 | O167: 0 | P167: 0 | Q167: 0 | R167: 2000-01-01T10:12:00 | S167: 2000-01-01T10:17:00 | T167: 0.1874999998 | U167: 4.499999996 | W167: 54 | X167: 2066 | Y167: 111.564 | Z167: 0 | AA167: 0 | AB167: OOOOOOlOOlOOOlOOlOOOlOOOOOOlOOOOOOlOOOOOOlOOOOOOlOOOOOOlOOOOOOlOOOOOOlOOOOOOlOOOOOOlOOOOOOlOOOOOOlOOOOOOlOOOOOOlOOOOOOlOOOOOOlOOOOOOlOOOOOOlOOOOOOlOOOOOOlOOOOOOlOOOOOOlOOOOOOlOOOOOOlOOOOOOlOOOOOOlOOOOOOlOOOOOOlOOOOOOlOOOOOOlOOOOOOlOOOOOOlOOOOOOlOOOOOOlOOOOOOlOOOOOOlOOOOOOlOOOOOOlOOOOOOlOOOOOOlOOOOOOlOOOOOOlOOOOOOlOOOOOOlOOOOOOlOOOOOOlOOOOOOlOOOOOOlOOOOOOlOOOOOOl | AC167: MO2 | AD167: Reinheim Bf # Niedernhausen # Brandau #
A168: REG | B168: 18 | C168: HEAG Verkehrs-GmbH | E168: 057_ | F168: 0 | G168: H | H168: Sa | I168: 1012 | K168: Groß-Bieberau | L168: Solo-Überlandbus-NF | M168: 0 | N168: 0 | O168: 0 | P168: 0 | Q168: 0 | R168: 2000-01-01T10:17:00 | S168: 2000-01-01T10:25:30 | T168: 0.3187499999 | U168: 7.649999997 | W168: 54 | X168: 3620 | Y168: 195.48 | Z168: 0 | AA168: 0 | AB168: OOOOOOlOOlOOOlOOlOOOlOOOOOOlOOOOOOlOOOOOOlOOOOOOlOOOOOOlOOOOOOlOOOOOOlOOOOOOlOOOOOOlOOOOOOlOOOOOOlOOOOOOlOOOOOOlOOOOOOlOOOOOOlOOOOOOlOOOOOOlOOOOOOlOOOOOOlOOOOOOlOOOOOOlOOOOOOlOOOOOOlOOOOOOlOOOOOOlOOOOOOlOOOOOOlOOOOOOlOOOOOOlOOOOOOlOOOOOOlOOOOOOlOOOOOOlOOOOOOlOOOOOOlOOOOOOlOOOOOOlOOOOOOlOOOOOOlOOOOOOlOOOOOOlOOOOOOlOOOOOOlOOOOOOlOOOOOOlOOOOOOlOOOOOOlOOOOOOlOOOOOOl | AC168: MO2 | AD168: Reinheim Bf # Niedernhausen # Brandau #
A169: REG | B169: 18 | C169: HEAG Verkehrs-GmbH | E169: 057_ | F169: 0 | G169: H | H169: Sa | I169: 1012 | K169: Fischbachtal | L169: Solo-Überlandbus-NF | M169: 0 | N169: 0 | O169: 0 | P169: 0 | Q169: 0 | R169: 2000-01-01T10:25:30 | S169: 2000-01-01T10:33:54 | T169: 0.3150000002 | U169: 7.560000004 | W169: 54 | X169: 6649 | Y169: 359.046 | Z169: 0 | AA169: 0 | AB169: OOOOOOlOOlOOOlOOlOOOlOOOOOOlOOOOOOlOOOOOOlOOOOOOlOOOOOOlOOOOOOlOOOOOOlOOOOOOlOOOOOOlOOOOOOlOOOOOOlOOOOOOlOOOOOOlOOOOOOlOOOOOOlOOOOOOlOOOOOOlOOOOOOlOOOOOOlOOOOOOlOOOOOOlOOOOOOlOOOOOOlOOOOOOlOOOOOOlOOOOOOlOOOOOOlOOOOOOlOOOOOOlOOOOOOlOOOOOOlOOOOOOlOOOOOOlOOOOOOlOOOOOOlOOOOOOlOOOOOOlOOOOOOlOOOOOOlOOOOOOlOOOOOOlOOOOOOlOOOOOOlOOOOOOlOOOOOOlOOOOOOlOOOOOOlOOOOOOlOOOOOOl | AC169: MO2 | AD169: Reinheim Bf # Niedernhausen # Brandau #
A170: REG | B170: 18 | C170: HEAG Verkehrs-GmbH | E170: 057_ | F170: 0 | G170: H | H170: Sa | I170: 1012 | K170: Modautal | L170: Solo-Überlandbus-NF | M170: 0 | N170: 0 | O170: 0 | P170: 0 | Q170: 0 | R170: 2000-01-01T10:33:54 | S170: 2000-01-01T10:47:00 | T170: 0.4912500001 | U170: 11.79 | W170: 54 | X170: 8797 | Y170: 475.038 | Z170: 0 | AA170: 0 | AB170: OOOOOOlOOlOOOlOOlOOOlOOOOOOlOOOOOOlOOOOOOlOOOOOOlOOOOOOlOOOOOOlOOOOOOlOOOOOOlOOOOOOlOOOOOOlOOOOOOlOOOOOOlOOOOOOlOOOOOOlOOOOOOlOOOOOOlOOOOOOlOOOOOOlOOOOOOlOOOOOOlOOOOOOlOOOOOOlOOOOOOlOOOOOOlOOOOOOlOOOOOOlOOOOOOlOOOOOOlOOOOOOlOOOOOOlOOOOOOlOOOOOOlOOOOOOlOOOOOOlOOOOOOlOOOOOOlOOOOOOlOOOOOOlOOOOOOlOOOOOOlOOOOOOlOOOOOOlOOOOOOlOOOOOOlOOOOOOlOOOOOOlOOOOOOlOOOOOOlOOOOOOl | AC170: MO2 | AD170: Reinheim Bf # Niedernhausen # Brandau #
A171: REG | B171: 18 | C171: HEAG Verkehrs-GmbH | E171: 057_ | F171: 0 | G171: H | H171: Sa | I171: 1012 | K171: Lautertal (Odenwald) | L171: Solo-Überlandbus-NF | M171: 0 | N171: 0 | O171: 0 | P171: 0 | Q171: 0 | R171: 2000-01-01T10:47:00 | S171: 2000-01-01T10:58:00 | T171: 0.4124999998 | U171: 9.899999995 | W171: 54 | X171: 5965 | Y171: 322.11 | Z171: 0 | AA171: 0 | AB171: OOOOOOlOOlOOOlOOlOOOlOOOOOOlOOOOOOlOOOOOOlOOOOOOlOOOOOOlOOOOOOlOOOOOOlOOOOOOlOOOOOOlOOOOOOlOOOOOOlOOOOOOlOOOOOOlOOOOOOlOOOOOOlOOOOOOlOOOOOOlOOOOOOlOOOOOOlOOOOOOlOOOOOOlOOOOOOlOOOOOOlOOOOOOlOOOOOOlOOOOOOlOOOOOOlOOOOOOlOOOOOOlOOOOOOlOOOOOOlOOOOOOlOOOOOOlOOOOOOlOOOOOOlOOOOOOlOOOOOOlOOOOOOlOOOOOOlOOOOOOlOOOOOOlOOOOOOlOOOOOOlOOOOOOlOOOOOOlOOOOOOlOOOOOOlOOOOOOlOOOOOOl | AC171: MO2 | AD171: Reinheim Bf # Niedernhausen # Brandau #
A172: REG | B172: 18 | C172: HEAG Verkehrs-GmbH | E172: 057_ | F172: 0 | G172: H | H172: Sa | I172: 1212 | K172: Reinheim | L172: Solo-Überlandbus-NF | M172: 0 | N172: 0 | O172: 0 | P172: 0 | Q172: 0 | R172: 2000-01-01T12:12:00 | S172: 2000-01-01T12:17:00 | T172: 0.1875000002 | U172: 4.500000005 | W172: 54 | X172: 2066 | Y172: 111.564 | Z172: 0 | AA172: 0 | AB172: OOOOOOlOOlOOOlOOlOOOlOOOOOOlOOOOOOlOOOOOOlOOOOOOlOOOOOOlOOOOOOlOOOOOOlOOOOOOlOOOOOOlOOOOOOlOOOOOOlOOOOOOlOOOOOOlOOOOOOlOOOOOOlOOOOOOlOOOOOOlOOOOOOlOOOOOOlOOOOOOlOOOOOOlOOOOOOlOOOOOOlOOOOOOlOOOOOOlOOOOOOlOOOOOOlOOOOOOlOOOOOOlOOOOOOlOOOOOOlOOOOOOlOOOOOOlOOOOOOlOOOOOOlOOOOOOlOOOOOOlOOOOOOlOOOOOOlOOOOOOlOOOOOOlOOOOOOlOOOOOOlOOOOOOlOOOOOOlOOOOOOlOOOOOOlOOOOOOlOOOOOOl | AC172: MO2 | AD172: Reinheim Bf # Niedernhausen # Brandau #
A173: REG | B173: 18 | C173: HEAG Verkehrs-GmbH | E173: 057_ | F173: 0 | G173: H | H173: Sa | I173: 1212 | K173: Groß-Bieberau | L173: Solo-Überlandbus-NF | M173: 0 | N173: 0 | O173: 0 | P173: 0 | Q173: 0 | R173: 2000-01-01T12:17:00 | S173: 2000-01-01T12:25:30 | T173: 0.3187499999 | U173: 7.649999997 | W173: 54 | X173: 3620 | Y173: 195.48 | Z173: 0 | AA173: 0 | AB173: OOOOOOlOOlOOOlOOlOOOlOOOOOOlOOOOOOlOOOOOOlOOOOOOlOOOOOOlOOOOOOlOOOOOOlOOOOOOlOOOOOOlOOOOOOlOOOOOOlOOOOOOlOOOOOOlOOOOOOlOOOOOOlOOOOOOlOOOOOOlOOOOOOlOOOOOOlOOOOOOlOOOOOOlOOOOOOlOOOOOOlOOOOOOlOOOOOOlOOOOOOlOOOOOOlOOOOOOlOOOOOOlOOOOOOlOOOOOOlOOOOOOlOOOOOOlOOOOOOlOOOOOOlOOOOOOlOOOOOOlOOOOOOlOOOOOOlOOOOOOlOOOOOOlOOOOOOlOOOOOOlOOOOOOlOOOOOOlOOOOOOlOOOOOOlOOOOOOlOOOOOOl | AC173: MO2 | AD173: Reinheim Bf # Niedernhausen # Brandau #
A174: REG | B174: 18 | C174: HEAG Verkehrs-GmbH | E174: 057_ | F174: 0 | G174: H | H174: Sa | I174: 1212 | K174: Fischbachtal | L174: Solo-Überlandbus-NF | M174: 0 | N174: 0 | O174: 0 | P174: 0 | Q174: 0 | R174: 2000-01-01T12:25:30 | S174: 2000-01-01T12:33:54 | T174: 0.3150000002 | U174: 7.560000004 | W174: 54 | X174: 6649 | Y174: 359.046 | Z174: 0 | AA174: 0 | AB174: OOOOOOlOOlOOOlOOlOOOlOOOOOOlOOOOOOlOOOOOOlOOOOOOlOOOOOOlOOOOOOlOOOOOOlOOOOOOlOOOOOOlOOOOOOlOOOOOOlOOOOOOlOOOOOOlOOOOOOlOOOOOOlOOOOOOlOOOOOOlOOOOOOlOOOOOOlOOOOOOlOOOOOOlOOOOOOlOOOOOOlOOOOOOlOOOOOOlOOOOOOlOOOOOOlOOOOOOlOOOOOOlOOOOOOlOOOOOOlOOOOOOlOOOOOOlOOOOOOlOOOOOOlOOOOOOlOOOOOOlOOOOOOlOOOOOOlOOOOOOlOOOOOOlOOOOOOlOOOOOOlOOOOOOlOOOOOOlOOOOOOlOOOOOOlOOOOOOlOOOOOOl | AC174: MO2 | AD174: Reinheim Bf # Niedernhausen # Brandau #
A175: REG | B175: 18 | C175: HEAG Verkehrs-GmbH | E175: 057_ | F175: 0 | G175: H | H175: Sa | I175: 1212 | K175: Modautal | L175: Solo-Überlandbus-NF | M175: 0 | N175: 0 | O175: 0 | P175: 0 | Q175: 0 | R175: 2000-01-01T12:33:54 | S175: 2000-01-01T12:47:00 | T175: 0.4912499997 | U175: 11.78999999 | W175: 54 | X175: 8797 | Y175: 475.038 | Z175: 0 | AA175: 0 | AB175: OOOOOOlOOlOOOlOOlOOOlOOOOOOlOOOOOOlOOOOOOlOOOOOOlOOOOOOlOOOOOOlOOOOOOlOOOOOOlOOOOOOlOOOOOOlOOOOOOlOOOOOOlOOOOOOlOOOOOOlOOOOOOlOOOOOOlOOOOOOlOOOOOOlOOOOOOlOOOOOOlOOOOOOlOOOOOOlOOOOOOlOOOOOOlOOOOOOlOOOOOOlOOOOOOlOOOOOOlOOOOOOlOOOOOOlOOOOOOlOOOOOOlOOOOOOlOOOOOOlOOOOOOlOOOOOOlOOOOOOlOOOOOOlOOOOOOlOOOOOOlOOOOOOlOOOOOOlOOOOOOlOOOOOOlOOOOOOlOOOOOOlOOOOOOlOOOOOOlOOOOOOl | AC175: MO2 | AD175: Reinheim Bf # Niedernhausen # Brandau #
A176: REG | B176: 18 | C176: HEAG Verkehrs-GmbH | E176: 057_ | F176: 0 | G176: H | H176: Sa | I176: 1212 | K176: Lautertal (Odenwald) | L176: Solo-Überlandbus-NF | M176: 0 | N176: 0 | O176: 0 | P176: 0 | Q176: 0 | R176: 2000-01-01T12:47:00 | S176: 2000-01-01T12:58:00 | T176: 0.4125000002 | U176: 9.900000004 | W176: 54 | X176: 5965 | Y176: 322.11 | Z176: 0 | AA176: 0 | AB176: OOOOOOlOOlOOOlOOlOOOlOOOOOOlOOOOOOlOOOOOOlOOOOOOlOOOOOOlOOOOOOlOOOOOOlOOOOOOlOOOOOOlOOOOOOlOOOOOOlOOOOOOlOOOOOOlOOOOOOlOOOOOOlOOOOOOlOOOOOOlOOOOOOlOOOOOOlOOOOOOlOOOOOOlOOOOOOlOOOOOOlOOOOOOlOOOOOOlOOOOOOlOOOOOOlOOOOOOlOOOOOOlOOOOOOlOOOOOOlOOOOOOlOOOOOOlOOOOOOlOOOOOOlOOOOOOlOOOOOOlOOOOOOlOOOOOOlOOOOOOlOOOOOOlOOOOOOlOOOOOOlOOOOOOlOOOOOOlOOOOOOlOOOOOOlOOOOOOlOOOOOOl | AC176: MO2 | AD176: Reinheim Bf # Niedernhausen # Brandau #
A177: REG | B177: 18 | C177: HEAG Verkehrs-GmbH | E177: 057_ | F177: 0 | G177: H | H177: Sa | I177: 1412 | K177: Reinheim | L177: Solo-Überlandbus-NF | M177: 0 | N177: 0 | O177: 0 | P177: 0 | Q177: 0 | R177: 2000-01-01T14:12:00 | S177: 2000-01-01T14:17:00 | T177: 0.1874999998 | U177: 4.499999996 | W177: 54 | X177: 2066 | Y177: 111.564 | Z177: 0 | AA177: 0 | AB177: OOOOOOlOOlOOOlOOlOOOlOOOOOOlOOOOOOlOOOOOOlOOOOOOlOOOOOOlOOOOOOlOOOOOOlOOOOOOlOOOOOOlOOOOOOlOOOOOOlOOOOOOlOOOOOOlOOOOOOlOOOOOOlOOOOOOlOOOOOOlOOOOOOlOOOOOOlOOOOOOlOOOOOOlOOOOOOlOOOOOOlOOOOOOlOOOOOOlOOOOOOlOOOOOOlOOOOOOlOOOOOOlOOOOOOlOOOOOOlOOOOOOlOOOOOOlOOOOOOlOOOOOOlOOOOOOlOOOOOOlOOOOOOlOOOOOOlOOOOOOlOOOOOOlOOOOOOlOOOOOOlOOOOOOlOOOOOOlOOOOOOlOOOOOOlOOOOOOlOOOOOOl | AC177: MO2 | AD177: Reinheim Bf # Niedernhausen # Brandau #
A178: REG | B178: 18 | C178: HEAG Verkehrs-GmbH | E178: 057_ | F178: 0 | G178: H | H178: Sa | I178: 1412 | K178: Groß-Bieberau | L178: Solo-Überlandbus-NF | M178: 0 | N178: 0 | O178: 0 | P178: 0 | Q178: 0 | R178: 2000-01-01T14:17:00 | S178: 2000-01-01T14:25:30 | T178: 0.3187500003 | U178: 7.650000006 | W178: 54 | X178: 3620 | Y178: 195.48 | Z178: 0 | AA178: 0 | AB178: OOOOOOlOOlOOOlOOlOOOlOOOOOOlOOOOOOlOOOOOOlOOOOOOlOOOOOOlOOOOOOlOOOOOOlOOOOOOlOOOOOOlOOOOOOlOOOOOOlOOOOOOlOOOOOOlOOOOOOlOOOOOOlOOOOOOlOOOOOOlOOOOOOlOOOOOOlOOOOOOlOOOOOOlOOOOOOlOOOOOOlOOOOOOlOOOOOOlOOOOOOlOOOOOOlOOOOOOlOOOOOOlOOOOOOlOOOOOOlOOOOOOlOOOOOOlOOOOOOlOOOOOOlOOOOOOlOOOOOOlOOOOOOlOOOOOOlOOOOOOlOOOOOOlOOOOOOlOOOOOOlOOOOOOlOOOOOOlOOOOOOlOOOOOOlOOOOOOlOOOOOOl | AC178: MO2 | AD178: Reinheim Bf # Niedernhausen # Brandau #
A179: REG | B179: 18 | C179: HEAG Verkehrs-GmbH | E179: 057_ | F179: 0 | G179: H | H179: Sa | I179: 1412 | K179: Fischbachtal | L179: Solo-Überlandbus-NF | M179: 0 | N179: 0 | O179: 0 | P179: 0 | Q179: 0 | R179: 2000-01-01T14:25:30 | S179: 2000-01-01T14:33:54 | T179: 0.3149999998 | U179: 7.559999994 | W179: 54 | X179: 6649 | Y179: 359.046 | Z179: 0 | AA179: 0 | AB179: OOOOOOlOOlOOOlOOlOOOlOOOOOOlOOOOOOlOOOOOOlOOOOOOlOOOOOOlOOOOOOlOOOOOOlOOOOOOlOOOOOOlOOOOOOlOOOOOOlOOOOOOlOOOOOOlOOOOOOlOOOOOOlOOOOOOlOOOOOOlOOOOOOlOOOOOOlOOOOOOlOOOOOOlOOOOOOlOOOOOOlOOOOOOlOOOOOOlOOOOOOlOOOOOOlOOOOOOlOOOOOOlOOOOOOlOOOOOOlOOOOOOlOOOOOOlOOOOOOlOOOOOOlOOOOOOlOOOOOOlOOOOOOlOOOOOOlOOOOOOlOOOOOOlOOOOOOlOOOOOOlOOOOOOlOOOOOOlOOOOOOlOOOOOOlOOOOOOlOOOOOOl | AC179: MO2 | AD179: Reinheim Bf # Niedernhausen # Brandau #
A180: REG | B180: 18 | C180: HEAG Verkehrs-GmbH | E180: 057_ | F180: 0 | G180: H | H180: Sa | I180: 1412 | K180: Modautal | L180: Solo-Überlandbus-NF | M180: 0 | N180: 0 | O180: 0 | P180: 0 | Q180: 0 | R180: 2000-01-01T14:33:54 | S180: 2000-01-01T14:47:00 | T180: 0.4912500001 | U180: 11.79 | W180: 54 | X180: 8797 | Y180: 475.038 | Z180: 0 | AA180: 0 | AB180: OOOOOOlOOlOOOlOOlOOOlOOOOOOlOOOOOOlOOOOOOlOOOOOOlOOOOOOlOOOOOOlOOOOOOlOOOOOOlOOOOOOlOOOOOOlOOOOOOlOOOOOOlOOOOOOlOOOOOOlOOOOOOlOOOOOOlOOOOOOlOOOOOOlOOOOOOlOOOOOOlOOOOOOlOOOOOOlOOOOOOlOOOOOOlOOOOOOlOOOOOOlOOOOOOlOOOOOOlOOOOOOlOOOOOOlOOOOOOlOOOOOOlOOOOOOlOOOOOOlOOOOOOlOOOOOOlOOOOOOlOOOOOOlOOOOOOlOOOOOOlOOOOOOlOOOOOOlOOOOOOlOOOOOOlOOOOOOlOOOOOOlOOOOOOlOOOOOOlOOOOOOl | AC180: MO2 | AD180: Reinheim Bf # Niedernhausen # Brandau #
A181: REG | B181: 18 | C181: HEAG Verkehrs-GmbH | E181: 057_ | F181: 0 | G181: H | H181: Sa | I181: 1412 | K181: Lautertal (Odenwald) | L181: Solo-Überlandbus-NF | M181: 0 | N181: 0 | O181: 0 | P181: 0 | Q181: 0 | R181: 2000-01-01T14:47:00 | S181: 2000-01-01T14:58:00 | T181: 0.4125000002 | U181: 9.900000004 | W181: 54 | X181: 5965 | Y181: 322.11 | Z181: 0 | AA181: 0 | AB181: OOOOOOlOOlOOOlOOlOOOlOOOOOOlOOOOOOlOOOOOOlOOOOOOlOOOOOOlOOOOOOlOOOOOOlOOOOOOlOOOOOOlOOOOOOlOOOOOOlOOOOOOlOOOOOOlOOOOOOlOOOOOOlOOOOOOlOOOOOOlOOOOOOlOOOOOOlOOOOOOlOOOOOOlOOOOOOlOOOOOOlOOOOOOlOOOOOOlOOOOOOlOOOOOOlOOOOOOlOOOOOOlOOOOOOlOOOOOOlOOOOOOlOOOOOOlOOOOOOlOOOOOOlOOOOOOlOOOOOOlOOOOOOlOOOOOOlOOOOOOlOOOOOOlOOOOOOlOOOOOOlOOOOOOlOOOOOOlOOOOOOlOOOOOOlOOOOOOlOOOOOOl | AC181: MO2 | AD181: Reinheim Bf # Niedernhausen # Brandau #
A182: REG | B182: 18 | C182: HEAG Verkehrs-GmbH | E182: 057_ | F182: 0 | G182: H | H182: Sa | I182: 1612 | K182: Reinheim | L182: Solo-Überlandbus-NF | M182: 0 | N182: 0 | O182: 0 | P182: 0 | Q182: 0 | R182: 2000-01-01T16:12:00 | S182: 2000-01-01T16:17:00 | T182: 0.1874999998 | U182: 4.499999996 | W182: 54 | X182: 2066 | Y182: 111.564 | Z182: 0 | AA182: 0 | AB182: OOOOOOlOOlOOOlOOlOOOlOOOOOOlOOOOOOlOOOOOOlOOOOOOlOOOOOOlOOOOOOlOOOOOOlOOOOOOlOOOOOOlOOOOOOlOOOOOOlOOOOOOlOOOOOOlOOOOOOlOOOOOOlOOOOOOlOOOOOOlOOOOOOlOOOOOOlOOOOOOlOOOOOOlOOOOOOlOOOOOOlOOOOOOlOOOOOOlOOOOOOlOOOOOOlOOOOOOlOOOOOOlOOOOOOlOOOOOOlOOOOOOlOOOOOOlOOOOOOlOOOOOOlOOOOOOlOOOOOOlOOOOOOlOOOOOOlOOOOOOlOOOOOOlOOOOOOlOOOOOOlOOOOOOlOOOOOOlOOOOOOlOOOOOOlOOOOOOlOOOOOOl | AC182: MO2 | AD182: Reinheim Bf # Niedernhausen # Brandau #
A183: REG | B183: 18 | C183: HEAG Verkehrs-GmbH | E183: 057_ | F183: 0 | G183: H | H183: Sa | I183: 1612 | K183: Groß-Bieberau | L183: Solo-Überlandbus-NF | M183: 0 | N183: 0 | O183: 0 | P183: 0 | Q183: 0 | R183: 2000-01-01T16:17:00 | S183: 2000-01-01T16:25:30 | T183: 0.3187499999 | U183: 7.649999997 | W183: 54 | X183: 3620 | Y183: 195.48 | Z183: 0 | AA183: 0 | AB183: OOOOOOlOOlOOOlOOlOOOlOOOOOOlOOOOOOlOOOOOOlOOOOOOlOOOOOOlOOOOOOlOOOOOOlOOOOOOlOOOOOOlOOOOOOlOOOOOOlOOOOOOlOOOOOOlOOOOOOlOOOOOOlOOOOOOlOOOOOOlOOOOOOlOOOOOOlOOOOOOlOOOOOOlOOOOOOlOOOOOOlOOOOOOlOOOOOOlOOOOOOlOOOOOOlOOOOOOlOOOOOOlOOOOOOlOOOOOOlOOOOOOlOOOOOOlOOOOOOlOOOOOOlOOOOOOlOOOOOOlOOOOOOlOOOOOOlOOOOOOlOOOOOOlOOOOOOlOOOOOOlOOOOOOlOOOOOOlOOOOOOlOOOOOOlOOOOOOlOOOOOOl | AC183: MO2 | AD183: Reinheim Bf # Niedernhausen # Brandau #
A184: REG | B184: 18 | C184: HEAG Verkehrs-GmbH | E184: 057_ | F184: 0 | G184: H | H184: Sa | I184: 1612 | K184: Fischbachtal | L184: Solo-Überlandbus-NF | M184: 0 | N184: 0 | O184: 0 | P184: 0 | Q184: 0 | R184: 2000-01-01T16:25:30 | S184: 2000-01-01T16:33:54 | T184: 0.3150000002 | U184: 7.560000004 | W184: 54 | X184: 6649 | Y184: 359.046 | Z184: 0 | AA184: 0 | AB184: OOOOOOlOOlOOOlOOlOOOlOOOOOOlOOOOOOlOOOOOOlOOOOOOlOOOOOOlOOOOOOlOOOOOOlOOOOOOlOOOOOOlOOOOOOlOOOOOOlOOOOOOlOOOOOOlOOOOOOlOOOOOOlOOOOOOlOOOOOOlOOOOOOlOOOOOOlOOOOOOlOOOOOOlOOOOOOlOOOOOOlOOOOOOlOOOOOOlOOOOOOlOOOOOOlOOOOOOlOOOOOOlOOOOOOlOOOOOOlOOOOOOlOOOOOOlOOOOOOlOOOOOOlOOOOOOlOOOOOOlOOOOOOlOOOOOOlOOOOOOlOOOOOOlOOOOOOlOOOOOOlOOOOOOlOOOOOOlOOOOOOlOOOOOOlOOOOOOlOOOOOOl | AC184: MO2 | AD184: Reinheim Bf # Niedernhausen # Brandau #
A185: REG | B185: 18 | C185: HEAG Verkehrs-GmbH | E185: 057_ | F185: 0 | G185: H | H185: Sa | I185: 1612 | K185: Modautal | L185: Solo-Überlandbus-NF | M185: 0 | N185: 0 | O185: 0 | P185: 0 | Q185: 0 | R185: 2000-01-01T16:33:54 | S185: 2000-01-01T16:47:00 | T185: 0.4912500001 | U185: 11.79 | W185: 54 | X185: 8797 | Y185: 475.038 | Z185: 0 | AA185: 0 | AB185: OOOOOOlOOlOOOlOOlOOOlOOOOOOlOOOOOOlOOOOOOlOOOOOOlOOOOOOlOOOOOOlOOOOOOlOOOOOOlOOOOOOlOOOOOOlOOOOOOlOOOOOOlOOOOOOlOOOOOOlOOOOOOlOOOOOOlOOOOOOlOOOOOOlOOOOOOlOOOOOOlOOOOOOlOOOOOOlOOOOOOlOOOOOOlOOOOOOlOOOOOOlOOOOOOlOOOOOOlOOOOOOlOOOOOOlOOOOOOlOOOOOOlOOOOOOlOOOOOOlOOOOOOlOOOOOOlOOOOOOlOOOOOOlOOOOOOlOOOOOOlOOOOOOlOOOOOOlOOOOOOlOOOOOOlOOOOOOlOOOOOOlOOOOOOlOOOOOOlOOOOOOl | AC185: MO2 | AD185: Reinheim Bf # Niedernhausen # Brandau #
A186: REG | B186: 18 | C186: HEAG Verkehrs-GmbH | E186: 057_ | F186: 0 | G186: H | H186: Sa | I186: 1612 | K186: Lautertal (Odenwald) | L186: Solo-Überlandbus-NF | M186: 0 | N186: 0 | O186: 0 | P186: 0 | Q186: 0 | R186: 2000-01-01T16:47:00 | S186: 2000-01-01T16:58:00 | T186: 0.4124999998 | U186: 9.899999995 | W186: 54 | X186: 5965 | Y186: 322.11 | Z186: 0 | AA186: 0 | AB186: OOOOOOlOOlOOOlOOlOOOlOOOOOOlOOOOOOlOOOOOOlOOOOOOlOOOOOOlOOOOOOlOOOOOOlOOOOOOlOOOOOOlOOOOOOlOOOOOOlOOOOOOlOOOOOOlOOOOOOlOOOOOOlOOOOOOlOOOOOOlOOOOOOlOOOOOOlOOOOOOlOOOOOOlOOOOOOlOOOOOOlOOOOOOlOOOOOOlOOOOOOlOOOOOOlOOOOOOlOOOOOOlOOOOOOlOOOOOOlOOOOOOlOOOOOOlOOOOOOlOOOOOOlOOOOOOlOOOOOOlOOOOOOlOOOOOOlOOOOOOlOOOOOOlOOOOOOlOOOOOOlOOOOOOlOOOOOOlOOOOOOlOOOOOOlOOOOOOlOOOOOOl | AC186: MO2 | AD186: Reinheim Bf # Niedernhausen # Brandau #
A187: REG | B187: 18 | C187: HEAG Verkehrs-GmbH | E187: 057_ | F187: 0 | G187: H | H187: Sa | I187: 1812 | K187: Reinheim | L187: Solo-Überlandbus-NF | M187: 0 | N187: 0 | O187: 0 | P187: 0 | Q187: 0 | R187: 2000-01-01T18:12:00 | S187: 2000-01-01T18:17:00 | T187: 0.1875000002 | U187: 4.500000005 | W187: 54 | X187: 2066 | Y187: 111.564 | Z187: 0 | AA187: 0 | AB187: OOOOOOlOOlOOOlOOlOOOlOOOOOOlOOOOOOlOOOOOOlOOOOOOlOOOOOOlOOOOOOlOOOOOOlOOOOOOlOOOOOOlOOOOOOlOOOOOOlOOOOOOlOOOOOOlOOOOOOlOOOOOOlOOOOOOlOOOOOOlOOOOOOlOOOOOOlOOOOOOlOOOOOOlOOOOOOlOOOOOOlOOOOOOlOOOOOOlOOOOOOlOOOOOOlOOOOOOlOOOOOOlOOOOOOlOOOOOOlOOOOOOlOOOOOOlOOOOOOlOOOOOOlOOOOOOlOOOOOOlOOOOOOlOOOOOOlOOOOOOlOOOOOOlOOOOOOlOOOOOOlOOOOOOlOOOOOOlOOOOOOlOOOOOOlOOOOOOlOOOOOOl | AC187: MO2 | AD187: Reinheim Bf # Niedernhausen # Brandau #
A188: REG | B188: 18 | C188: HEAG Verkehrs-GmbH | E188: 057_ | F188: 0 | G188: H | H188: Sa | I188: 1812 | K188: Groß-Bieberau | L188: Solo-Überlandbus-NF | M188: 0 | N188: 0 | O188: 0 | P188: 0 | Q188: 0 | R188: 2000-01-01T18:17:00 | S188: 2000-01-01T18:25:30 | T188: 0.3187499999 | U188: 7.649999997 | W188: 54 | X188: 3620 | Y188: 195.48 | Z188: 0 | AA188: 0 | AB188: OOOOOOlOOlOOOlOOlOOOlOOOOOOlOOOOOOlOOOOOOlOOOOOOlOOOOOOlOOOOOOlOOOOOOlOOOOOOlOOOOOOlOOOOOOlOOOOOOlOOOOOOlOOOOOOlOOOOOOlOOOOOOlOOOOOOlOOOOOOlOOOOOOlOOOOOOlOOOOOOlOOOOOOlOOOOOOlOOOOOOlOOOOOOlOOOOOOlOOOOOOlOOOOOOlOOOOOOlOOOOOOlOOOOOOlOOOOOOlOOOOOOlOOOOOOlOOOOOOlOOOOOOlOOOOOOlOOOOOOlOOOOOOlOOOOOOlOOOOOOlOOOOOOlOOOOOOlOOOOOOlOOOOOOlOOOOOOlOOOOOOlOOOOOOlOOOOOOlOOOOOOl | AC188: MO2 | AD188: Reinheim Bf # Niedernhausen # Brandau #
A189: REG | B189: 18 | C189: HEAG Verkehrs-GmbH | E189: 057_ | F189: 0 | G189: H | H189: Sa | I189: 1812 | K189: Fischbachtal | L189: Solo-Überlandbus-NF | M189: 0 | N189: 0 | O189: 0 | P189: 0 | Q189: 0 | R189: 2000-01-01T18:25:30 | S189: 2000-01-01T18:33:54 | T189: 0.3150000002 | U189: 7.560000004 | W189: 54 | X189: 6649 | Y189: 359.046 | Z189: 0 | AA189: 0 | AB189: OOOOOOlOOlOOOlOOlOOOlOOOOOOlOOOOOOlOOOOOOlOOOOOOlOOOOOOlOOOOOOlOOOOOOlOOOOOOlOOOOOOlOOOOOOlOOOOOOlOOOOOOlOOOOOOlOOOOOOlOOOOOOlOOOOOOlOOOOOOlOOOOOOlOOOOOOlOOOOOOlOOOOOOlOOOOOOlOOOOOOlOOOOOOlOOOOOOlOOOOOOlOOOOOOlOOOOOOlOOOOOOlOOOOOOlOOOOOOlOOOOOOlOOOOOOlOOOOOOlOOOOOOlOOOOOOlOOOOOOlOOOOOOlOOOOOOlOOOOOOlOOOOOOlOOOOOOlOOOOOOlOOOOOOlOOOOOOlOOOOOOlOOOOOOlOOOOOOlOOOOOOl | AC189: MO2 | AD189: Reinheim Bf # Niedernhausen # Brandau #
A190: REG | B190: 18 | C190: HEAG Verkehrs-GmbH | E190: 057_ | F190: 0 | G190: H | H190: Sa | I190: 1812 | K190: Modautal | L190: Solo-Überlandbus-NF | M190: 0 | N190: 0 | O190: 0 | P190: 0 | Q190: 0 | R190: 2000-01-01T18:33:54 | S190: 2000-01-01T18:47:00 | T190: 0.4912499997 | U190: 11.78999999 | W190: 54 | X190: 8797 | Y190: 475.038 | Z190: 0 | AA190: 0 | AB190: OOOOOOlOOlOOOlOOlOOOlOOOOOOlOOOOOOlOOOOOOlOOOOOOlOOOOOOlOOOOOOlOOOOOOlOOOOOOlOOOOOOlOOOOOOlOOOOOOlOOOOOOlOOOOOOlOOOOOOlOOOOOOlOOOOOOlOOOOOOlOOOOOOlOOOOOOlOOOOOOlOOOOOOlOOOOOOlOOOOOOlOOOOOOlOOOOOOlOOOOOOlOOOOOOlOOOOOOlOOOOOOlOOOOOOlOOOOOOlOOOOOOlOOOOOOlOOOOOOlOOOOOOlOOOOOOlOOOOOOlOOOOOOlOOOOOOlOOOOOOlOOOOOOlOOOOOOlOOOOOOlOOOOOOlOOOOOOlOOOOOOlOOOOOOlOOOOOOlOOOOOOl | AC190: MO2 | AD190: Reinheim Bf # Niedernhausen # Brandau #
A191: REG | B191: 18 | C191: HEAG Verkehrs-GmbH | E191: 057_ | F191: 0 | G191: H | H191: Sa | I191: 1812 | K191: Lautertal (Odenwald) | L191: Solo-Überlandbus-NF | M191: 0 | N191: 0 | O191: 0 | P191: 0 | Q191: 0 | R191: 2000-01-01T18:47:00 | S191: 2000-01-01T18:58:00 | T191: 0.4125000002 | U191: 9.900000004 | W191: 54 | X191: 5965 | Y191: 322.11 | Z191: 0 | AA191: 0 | AB191: OOOOOOlOOlOOOlOOlOOOlOOOOOOlOOOOOOlOOOOOOlOOOOOOlOOOOOOlOOOOOOlOOOOOOlOOOOOOlOOOOOOlOOOOOOlOOOOOOlOOOOOOlOOOOOOlOOOOOOlOOOOOOlOOOOOOlOOOOOOlOOOOOOlOOOOOOlOOOOOOlOOOOOOlOOOOOOlOOOOOOlOOOOOOlOOOOOOlOOOOOOlOOOOOOlOOOOOOlOOOOOOlOOOOOOlOOOOOOlOOOOOOlOOOOOOlOOOOOOlOOOOOOlOOOOOOlOOOOOOlOOOOOOlOOOOOOlOOOOOOlOOOOOOlOOOOOOlOOOOOOlOOOOOOlOOOOOOlOOOOOOlOOOOOOlOOOOOOlOOOOOOl | AC191: MO2 | AD191: Reinheim Bf # Niedernhausen # Brandau #
A192: REG | B192: 18 | C192: HEAG Verkehrs-GmbH | E192: 057_ | F192: 0 | G192: H | H192: Sa | I192: 2023 | K192: Reinheim | L192: Solo-Überlandbus-NF | M192: 0 | N192: 0 | O192: 0 | P192: 0 | Q192: 0 | R192: 2000-01-01T20:23:00 | S192: 2000-01-01T20:28:00 | T192: 0.1874999998 | U192: 4.499999996 | W192: 54 | X192: 2066 | Y192: 111.564 | Z192: 0 | AA192: 0 | AB192: OOOOOOlOOlOOOlOOlOOOlOOOOOOlOOOOOOlOOOOOOlOOOOOOlOOOOOOlOOOOOOlOOOOOOlOOOOOOlOOOOOOlOOOOOOlOOOOOOlOOOOOOlOOOOOOlOOOOOOlOOOOOOlOOOOOOlOOOOOOlOOOOOOlOOOOOOlOOOOOOlOOOOOOlOOOOOOlOOOOOOlOOOOOOlOOOOOOlOOOOOOlOOOOOOlOOOOOOlOOOOOOlOOOOOOlOOOOOOlOOOOOOlOOOOOOlOOOOOOlOOOOOOlOOOOOOlOOOOOOlOOOOOOlOOOOOOlOOOOOOlOOOOOOlOOOOOOlOOOOOOlOOOOOOlOOOOOOlOOOOOOlOOOOOOlOOOOOOlOOOOOOl | AC192: MO2 | AD192: Reinheim Bf # Niedernhausen # Brandau #
A193: REG | B193: 18 | C193: HEAG Verkehrs-GmbH | E193: 057_ | F193: 0 | G193: H | H193: Sa | I193: 2023 | K193: Groß-Bieberau | L193: Solo-Überlandbus-NF | M193: 0 | N193: 0 | O193: 0 | P193: 0 | Q193: 0 | R193: 2000-01-01T20:28:00 | S193: 2000-01-01T20:36:30 | T193: 0.3187499999 | U193: 7.649999997 | W193: 54 | X193: 3620 | Y193: 195.48 | Z193: 0 | AA193: 0 | AB193: OOOOOOlOOlOOOlOOlOOOlOOOOOOlOOOOOOlOOOOOOlOOOOOOlOOOOOOlOOOOOOlOOOOOOlOOOOOOlOOOOOOlOOOOOOlOOOOOOlOOOOOOlOOOOOOlOOOOOOlOOOOOOlOOOOOOlOOOOOOlOOOOOOlOOOOOOlOOOOOOlOOOOOOlOOOOOOlOOOOOOlOOOOOOlOOOOOOlOOOOOOlOOOOOOlOOOOOOlOOOOOOlOOOOOOlOOOOOOlOOOOOOlOOOOOOlOOOOOOlOOOOOOlOOOOOOlOOOOOOlOOOOOOlOOOOOOlOOOOOOlOOOOOOlOOOOOOlOOOOOOlOOOOOOlOOOOOOlOOOOOOlOOOOOOlOOOOOOlOOOOOOl | AC193: MO2 | AD193: Reinheim Bf # Niedernhausen # Brandau #
A194: REG | B194: 18 | C194: HEAG Verkehrs-GmbH | E194: 057_ | F194: 0 | G194: H | H194: Sa | I194: 2023 | K194: Fischbachtal | L194: Solo-Überlandbus-NF | M194: 0 | N194: 0 | O194: 0 | P194: 0 | Q194: 0 | R194: 2000-01-01T20:36:30 | S194: 2000-01-01T20:44:54 | T194: 0.3150000002 | U194: 7.560000004 | W194: 54 | X194: 6649 | Y194: 359.046 | Z194: 0 | AA194: 0 | AB194: OOOOOOlOOlOOOlOOlOOOlOOOOOOlOOOOOOlOOOOOOlOOOOOOlOOOOOOlOOOOOOlOOOOOOlOOOOOOlOOOOOOlOOOOOOlOOOOOOlOOOOOOlOOOOOOlOOOOOOlOOOOOOlOOOOOOlOOOOOOlOOOOOOlOOOOOOlOOOOOOlOOOOOOlOOOOOOlOOOOOOlOOOOOOlOOOOOOlOOOOOOlOOOOOOlOOOOOOlOOOOOOlOOOOOOlOOOOOOlOOOOOOlOOOOOOlOOOOOOlOOOOOOlOOOOOOlOOOOOOlOOOOOOlOOOOOOlOOOOOOlOOOOOOlOOOOOOlOOOOOOlOOOOOOlOOOOOOlOOOOOOlOOOOOOlOOOOOOlOOOOOOl | AC194: MO2 | AD194: Reinheim Bf # Niedernhausen # Brandau #
A195: REG | B195: 18 | C195: HEAG Verkehrs-GmbH | E195: 057_ | F195: 0 | G195: H | H195: Sa | I195: 2023 | K195: Modautal | L195: Solo-Überlandbus-NF | M195: 0 | N195: 0 | O195: 0 | P195: 0 | Q195: 0 | R195: 2000-01-01T20:44:54 | S195: 2000-01-01T20:55:00 | T195: 0.3787500001 | U195: =T195*24 -> 9.090000003 | W195: 54 | X195: 7472 | Y195: 403.488 | Z195: 0 | AA195: 0 | AB195: OOOOOOlOOlOOOlOOlOOOlOOOOOOlOOOOOOlOOOOOOlOOOOOOlOOOOOOlOOOOOOlOOOOOOlOOOOOOlOOOOOOlOOOOOOlOOOOOOlOOOOOOlOOOOOOlOOOOOOlOOOOOOlOOOOOOlOOOOOOlOOOOOOlOOOOOOlOOOOOOlOOOOOOlOOOOOOlOOOOOOlOOOOOOlOOOOOOlOOOOOOlOOOOOOlOOOOOOlOOOOOOlOOOOOOlOOOOOOlOOOOOOlOOOOOOlOOOOOOlOOOOOOlOOOOOOlOOOOOOlOOOOOOlOOOOOOlOOOOOOlOOOOOOlOOOOOOlOOOOOOlOOOOOOlOOOOOOlOOOOOOlOOOOOOlOOOOOOlOOOOOOl | AC195: MO2 | AD195: Reinheim Bf # Niedernhausen # Brandau #
A196: REG | B196: 18 | C196: HEAG Verkehrs-GmbH | E196: 057_ | F196: 0 | G196: H | H196: Sa | I196: 2128 | K196: Reinheim | L196: Solo-Überlandbus-NF | M196: 0 | N196: 0 | O196: 0 | P196: 0 | Q196: 0 | R196: 2000-01-01T21:28:00 | S196: 2000-01-01T21:33:00 | T196: 0.1875000002 | U196: 4.500000005 | W196: 54 | X196: 2066 | Y196: 111.564 | Z196: 0 | AA196: 0 | AB196: OOOOOOlOOlOOOlOOlOOOlOOOOOOlOOOOOOlOOOOOOlOOOOOOlOOOOOOlOOOOOOlOOOOOOlOOOOOOlOOOOOOlOOOOOOlOOOOOOlOOOOOOlOOOOOOlOOOOOOlOOOOOOlOOOOOOlOOOOOOlOOOOOOlOOOOOOlOOOOOOlOOOOOOlOOOOOOlOOOOOOlOOOOOOlOOOOOOlOOOOOOlOOOOOOlOOOOOOlOOOOOOlOOOOOOlOOOOOOlOOOOOOlOOOOOOlOOOOOOlOOOOOOlOOOOOOlOOOOOOlOOOOOOlOOOOOOlOOOOOOlOOOOOOlOOOOOOlOOOOOOlOOOOOOlOOOOOOlOOOOOOlOOOOOOlOOOOOOlOOOOOOl | AC196: MO2 | AD196: Reinheim Bf # Niedernhausen # Brandau #
A197: REG | B197: 18 | C197: HEAG Verkehrs-GmbH | E197: 057_ | F197: 0 | G197: H | H197: Sa | I197: 2128 | K197: Groß-Bieberau | L197: Solo-Überlandbus-NF | M197: 0 | N197: 0 | O197: 0 | P197: 0 | Q197: 0 | R197: 2000-01-01T21:33:00 | S197: 2000-01-01T21:41:30 | T197: 0.3187499999 | U197: 7.649999997 | W197: 54 | X197: 3620 | Y197: 195.48 | Z197: 0 | AA197: 0 | AB197: OOOOOOlOOlOOOlOOlOOOlOOOOOOlOOOOOOlOOOOOOlOOOOOOlOOOOOOlOOOOOOlOOOOOOlOOOOOOlOOOOOOlOOOOOOlOOOOOOlOOOOOOlOOOOOOlOOOOOOlOOOOOOlOOOOOOlOOOOOOlOOOOOOlOOOOOOlOOOOOOlOOOOOOlOOOOOOlOOOOOOlOOOOOOlOOOOOOlOOOOOOlOOOOOOlOOOOOOlOOOOOOlOOOOOOlOOOOOOlOOOOOOlOOOOOOlOOOOOOlOOOOOOlOOOOOOlOOOOOOlOOOOOOlOOOOOOlOOOOOOlOOOOOOlOOOOOOlOOOOOOlOOOOOOlOOOOOOlOOOOOOlOOOOOOlOOOOOOlOOOOOOl | AC197: MO2 | AD197: Reinheim Bf # Niedernhausen # Brandau #
A198: REG | B198: 18 | C198: HEAG Verkehrs-GmbH | E198: 057_ | F198: 0 | G198: H | H198: Sa | I198: 2128 | K198: Fischbachtal | L198: Solo-Überlandbus-NF | M198: 0 | N198: 0 | O198: 0 | P198: 0 | Q198: 0 | R198: 2000-01-01T21:41:30 | S198: 2000-01-01T21:49:54 | T198: 0.3150000002 | U198: 7.560000004 | W198: 54 | X198: 6649 | Y198: 359.046 | Z198: 0 | AA198: 0 | AB198: OOOOOOlOOlOOOlOOlOOOlOOOOOOlOOOOOOlOOOOOOlOOOOOOlOOOOOOlOOOOOOlOOOOOOlOOOOOOlOOOOOOlOOOOOOlOOOOOOlOOOOOOlOOOOOOlOOOOOOlOOOOOOlOOOOOOlOOOOOOlOOOOOOlOOOOOOlOOOOOOlOOOOOOlOOOOOOlOOOOOOlOOOOOOlOOOOOOlOOOOOOlOOOOOOlOOOOOOlOOOOOOlOOOOOOlOOOOOOlOOOOOOlOOOOOOlOOOOOOlOOOOOOlOOOOOOlOOOOOOlOOOOOOlOOOOOOlOOOOOOlOOOOOOlOOOOOOlOOOOOOlOOOOOOlOOOOOOlOOOOOOlOOOOOOlOOOOOOlOOOOOOl | AC198: MO2 | AD198: Reinheim Bf # Niedernhausen # Brandau #
A199: REG | B199: 18 | C199: HEAG Verkehrs-GmbH | E199: 057_ | F199: 0 | G199: H | H199: Sa | I199: 2128 | K199: Modautal | L199: Solo-Überlandbus-NF | M199: 0 | N199: 0 | O199: 0 | P199: 0 | Q199: 0 | R199: 2000-01-01T21:49:54 | S199: 2000-01-01T22:00:00 | T199: 0.3787499997 | U199: 9.089999994 | W199: 54 | X199: 7472 | Y199: 403.488 | Z199: 0 | AA199: 0 | AB199: OOOOOOlOOlOOOlOOlOOOlOOOOOOlOOOOOOlOOOOOOlOOOOOOlOOOOOOlOOOOOOlOOOOOOlOOOOOOlOOOOOOlOOOOOOlOOOOOOlOOOOOOlOOOOOOlOOOOOOlOOOOOOlOOOOOOlOOOOOOlOOOOOOlOOOOOOlOOOOOOlOOOOOOlOOOOOOlOOOOOOlOOOOOOlOOOOOOlOOOOOOlOOOOOOlOOOOOOlOOOOOOlOOOOOOlOOOOOOlOOOOOOlOOOOOOlOOOOOOlOOOOOOlOOOOOOlOOOOOOlOOOOOOlOOOOOOlOOOOOOlOOOOOOlOOOOOOlOOOOOOlOOOOOOlOOOOOOlOOOOOOlOOOOOOlOOOOOOlOOOOOOl | AC199: MO2 | AD199: Reinheim Bf # Niedernhausen # Brandau #
A200: REG | B200: 18 | C200: HEAG Verkehrs-GmbH | E200: 057_ | F200: 0 | G200: H | H200: Sa | I200: 2328 | K200: Reinheim | L200: Solo-Überlandbus-NF | M200: 0 | N200: 0 | O200: 0 | P200: 0 | Q200: 0 | R200: 2000-01-01T23:28:00 | S200: 2000-01-01T23:33:00 | T200: 0.1874999998 | U200: 4.499999996 | W200: 54 | X200: 2066 | Y200: 111.564 | Z200: 0 | AA200: 0 | AB200: OOOOOOlOOlOOOlOOlOOOlOOOOOOlOOOOOOlOOOOOOlOOOOOOlOOOOOOlOOOOOOlOOOOOOlOOOOOOlOOOOOOlOOOOOOlOOOOOOlOOOOOOlOOOOOOlOOOOOOlOOOOOOlOOOOOOlOOOOOOlOOOOOOlOOOOOOlOOOOOOlOOOOOOlOOOOOOlOOOOOOlOOOOOOlOOOOOOlOOOOOOlOOOOOOlOOOOOOlOOOOOOlOOOOOOlOOOOOOlOOOOOOlOOOOOOlOOOOOOlOOOOOOlOOOOOOlOOOOOOlOOOOOOlOOOOOOlOOOOOOlOOOOOOlOOOOOOlOOOOOOlOOOOOOlOOOOOOlOOOOOOlOOOOOOlOOOOOOlOOOOOOl | AC200: MO2 | AD200: Reinheim Bf # Niedernhausen # Brandau #
... 306 more rows

Sheet Ermittlung Fahrplanstunden
A1: Fahrplanstunden gem. Betriebsleistungsstatistik | B1: =Grunddaten!U506 -> 9927.366667
A2: anrechenbare Fahrplanstunden | B2: =SUM(B1) -> 9927.366667
